Workbook

Sheet PLAN DE ACCIÓN_2024
C2: DEPARTAMENTO ADMINISTRATIVO NACIONAL DE ESTADÍSTICA (DANE) PLAN DE ACCIÓN INSTITUCIONAL Versión5 - Noviembre 6 de 2024 | G2: CÓDIGO: DES-020-PDT-001-f-002
G3: VERSIÓN: 04
G4: FECHA DE DILIGENCIAMIENTO
B6: INFORMACIÓN RESPONSABLES | D6: ALINEACIÓN ESTRATEGICA | G6: PROGRAMACIÓN DE METAS | S6: PROGRAMACIÓN PRESUPUESTAL | X6: ALINEACIÓN CON PROCESOS | AC6: SEGUIMIENTO I TRIMESTRE | AP6: SEGUIMIENTO II TRIMESTRE | BC6: SEGUIMIENTO III TRIMESTRE | BP6: SEGUIMIENTO IV TRIMESTRE
B7: ÁREA RESPONSABLE | C7: [ID META] | D7: LINEA ESTRATÉGICA PEI | F7: FUENTE DE META | G7: META TOTAL | H7: META DESCRIPTIVA | I7: TIPO DE INDICADOR | J7: UNIDAD DE MEDIDA | K7: FÓRMULA DEL INDICADOR | L7: ENTREGABLE | M7: FECHA DE INICIO | N7: FECHA FINAL | O7: AVANCE TRIMESTRAL ACUMULADO | S7: FUNCIONAMIENTO | T7: VALOR FUNCIONAMIENTO | U7: PROYECTO DE INVERSIÓN | V7: PRODUCTO | W7: VALOR | X7: PROCESO DEL SIGI ASOCIADO | Y7: PLANES ADMINISTRATIVOS | Z7: POLÍTICA MIPG RELACIONADA | AA7: TRANSFORMACIONES DEL PLAN NACIONAL DE DESARROLLO | AC7: AVANCE CUANTITATIVO | AD7: NIVEL DE CUMPLIMIENTO EN EL TRIMESTRE | AF7: AVANCE CUALITATIVO | AG7: EVIDENCIA | AH7: JUSTIFICACIÓN NO CUMPLIMIENTO | AI7: ESTADO REAL DE LA META EN EL TRIMESTRE | AJ7: Valor recursos de FUNCIONAMIENTO (pesos) | AK7: Ejecución recursos de FUNCIONAMIENTO (pesos) | AL7: Valor recursos de INVERSIÓN (pesos) | AM7: Ejecución recursos de INVERSIÓN EN COMPROMISOS (pesos) | AN7: Ejecución recursos de INVERSIÓN EN OBLIGACIONES (pesos) | AP7: AVANCE CUANTITATIVO | AQ7: NIVEL DE CUMPLIMIENTO EN EL TRIMESTRE | AS7: AVANCE CUALITATIVO | AT7: EVIDENCIA | AU7: JUSTIFICACIÓN NO CUMPLIMIENTO | AV7: ESTADO REAL DE LA META EN EL TRIMESTRE | AW7: Valor recursos de FUNCIONAMIENTO (pesos) | AX7: Ejecución recursos de FUNCIONAMIENTO (pesos) | AY7: Valor recursos de INVERSIÓN (pesos) | AZ7: Ejecución recursos de INVERSIÓN EN COMPROMISOS (pesos) | BA7: Ejecución recursos de INVERSIÓN EN OBLIGACIONES (pesos) | BC7: AVANCE CUANTITATIVO | BD7: NIVEL DE CUMPLIMIENTO EN EL TRIMESTRE | BF7: AVANCE CUALITATIVO | BG7: EVIDENCIA | BH7: JUSTIFICACIÓN NO CUMPLIMIENTO | BI7: ESTADO REAL DE LA META EN EL TRIMESTRE | BJ7: Valor recursos de FUNCIONAMIENTO (pesos) | BK7: Ejecución recursos de FUNCIONAMIENTO (pesos) | BL7: Valor recursos de INVERSIÓN (pesos) | BM7: Ejecución recursos de INVERSIÓN EN COMPROMISOS (pesos) | BN7: Ejecución recursos de INVERSIÓN EN OBLIGACIONES (pesos) | BP7: AVANCE CUANTITATIVO | BQ7: NIVEL DE CUMPLIMIENTO EN EL TRIMESTRE | BS7: AVANCE CUALITATIVO | BT7: EVIDENCIA | BU7: JUSTIFICACIÓN NO CUMPLIMIENTO | BV7: ESTADO REAL DE LA META EN EL TRIMESTRE | BW7: Valor recursos de FUNCIONAMIENTO (pesos) | BX7: Ejecución recursos de FUNCIONAMIENTO (pesos) | BY7: Valor recursos de INVERSIÓN (pesos) | BZ7: Ejecución recursos de INVERSIÓN EN COMPROMISOS (pesos) | CA7: Ejecución recursos de INVERSIÓN EN OBLIGACIONES (pesos)
B8: Área o dependencia responsable de la meta | C8: Sigla del área_# meta Ejemplo: DICE_1 | D8: Líneas estratégicas establecidas el marco de la entidad durante el cuatrienio | E8: Seleccione la meta estratégica asociada al área | F8: De dónde proviene la meta: 1. PND 2023 - 2026 2. Plan Estratégico Sectorial (PES) 3. Plan Estratégico Institucional (PEI) 4. Producto del proyecto de Inversión 5. Necesidad de funcionamiento 6. Compromiso externo (SIsconpes, ITA, FURAG, PNGRD, MIPG, etc) 7. Plan Anticorrupción y de Atención al Ciudadano (PAAC) 8. PAI_Plan de Acción Institucional 2023 | G8: Número entero o porcentaje | H8: Descripción de la meta: Sujeto + condición deseada del sujeto (verbo conjugado) + elementos adicionales de contexto descriptivo. | I8: Tipo de indicador de acuerdo al Procedimiento de Formulación y monitoreo de indicadores de gestión de la Entidad en su versión 11, | J8: Parámetro o unidad de referencia para determinar la magnitud de medición del indicador | K8: Representación matemática del cálculo del indicador que medirá la meta. | L8: Documento o producto entregable final de la meta. | M8: dd/mm/aaaa | N8: dd/mm/aaaa | O8: I TRIMESTRE | P8: II TRIMESTRE | Q8: III TRIMESTRE | R8: IV TRIMESTRE | S8: Seleccione: Si aplica o no aplica | T8: Indique el valor asociado para funcionamiento | U8: Proyecto de inversión que es fuente de los recursos asociados para el cumplimiento de la meta | V8: Producto de la FICHA EBI | W8: Indique el valor asociado a inversión | X8: Proceso del Sistema Integrado de Gestión Institucional de la entidad que se alinea con la meta | Y8: Plan Administrativo asociado con la meta, de acuerdo con lo dispuesto en el Decreto 612 de 2018. | Z8: Política de Gestión y Desempeño del Modelo Integrado de Planeación y Gestión, relacionada con la meta. | AA8: Transformaciones del PND al que la meta contribuye | AC8: Se debe aplicar la fórmula del indicador de la meta | AD8: Indica el porcentaje de avance logrado en el trimestre de acuerdo con lo programado | AE8: Nivel alcanzado | AF8: Se debe realizar una descripción cualitativa del avance o logro de la meta. | AG8: Se debe escribir el nombre de los documentos o soportes que son evidencia de la meta, es importante que coincidan con el nombre de los archivos cargados en el repositorio. | AH8: En caso de que el avance real sea menor al esperado, por favor justifique las razones del incumplimiento | AI8: Indica el estado de gestión de la meta de acuerdo con el reporte realizado en el trimestre | AJ8: Hace referencia al valor de funcionamiento actualizado​ (Reporte el nuevo valor en caso de existir una modificación frente al valor inicial programado)​ | AK8: Indique el valor ejecutado con corte al mes del reporte, teniendo en cuenta el porcentaje de avance de la meta. (Este valor es acumulado) | AL8: Esta información será reportada por la Oficina Asesora de Planeación. | AM8: Esta información será reportada por la Oficina Asesora de Planeación. | AN8: Esta información será reportada por la Oficina Asesora de Planeación. | AP8: Se debe aplicar la fórmula del indicador de la meta | AQ8: Indica el porcentaje de avance logrado en el trimestre de acuerdo con lo programado | AR8: Nivel alcanzado | AS8: Se debe realizar una descripción cualitativa del avance o logro de la meta. | AT8: Se debe escribir el nombre de los documentos o soportes que son evidencia de la meta, es importante que coincidan con el nombre de los archivos cargados en el repositorio. | AU8: En caso de que el avance real sea menor al esperado, por favor justifique las razones del incumplimiento | AV8: Indica el estado de gestión de la meta de acuerdo con el reporte realizado en el trimestre | AW8: Hace referencia al valor de funcionamiento actualizado​ (Reporte el nuevo valor en caso de existir una modificación frente al valor inicial programado)​ | AX8: Indique el valor ejecutado con corte al mes del reporte, teniendo en cuenta el porcentaje de avance de la meta. (Este valor es acumulado) | AY8: Esta información será reportada por la Oficina Asesora de Planeación. | AZ8: Esta información será reportada por la Oficina Asesora de Planeación. | BA8: Esta información será reportada por la Oficina Asesora de Planeación. | BC8: Se debe aplicar la fórmula del indicador de la meta | BD8: Indica el porcentaje de avance logrado en el trimestre de acuerdo con lo programado | BE8: Nivel alcanzado | BF8: Se debe realizar una descripción cualitativa del avance o logro de la meta. | BG8: Se debe escribir el nombre de los documentos o soportes que son evidencia de la meta, es importante que coincidan con el nombre de los archivos cargados en el repositorio. | BH8: En caso de que el avance real sea menor al esperado, por favor justifique las razones del incumplimiento | BI8: Indica el estado de gestión de la meta de acuerdo con el reporte realizado en el trimestre | BJ8: Hace referencia al valor de funcionamiento actualizado​ (Reporte el nuevo valor en caso de existir una modificación frente al valor inicial programado)​ | BK8: Indique el valor ejecutado con corte al mes del reporte, teniendo en cuenta el porcentaje de avance de la meta. (Este valor es acumulado) | BL8: Esta información será reportada por la Oficina Asesora de Planeación. | BM8: Esta información será reportada por la Oficina Asesora de Planeación. | BN8: Esta información será reportada por la Oficina Asesora de Planeación. | BP8: Se debe aplicar la fórmula del indicador de la meta | BQ8: Indica el porcentaje de avance logrado en el trimestre de acuerdo con lo programado | BR8: Nivel alcanzado | BS8: Se debe realizar una descripción cualitativa del avance o logro de la meta. | BT8: Se debe escribir el nombre de los documentos o soportes que son evidencia de la meta, es importante que coincidan con el nombre de los archivos cargados en el repositorio. | BU8: En caso de que el avance real sea menor al esperado, por favor justifique las razones del incumplimiento | BV8: Indica el estado de gestión de la meta de acuerdo con el reporte realizado en el trimestre | BW8: Hace referencia al valor de funcionamiento actualizado​ (Reporte el nuevo valor en caso de existir una modificación frente al valor inicial programado)​ | BX8: Indique el valor ejecutado con corte al mes del reporte, teniendo en cuenta el porcentaje de avance de la meta. (Este valor es acumulado) | BY8: Esta información será reportada por la Oficina Asesora de Planeación. | BZ8: Esta información será reportada por la Oficina Asesora de Planeación. | CA8: Esta información será reportada por la Oficina Asesora de Planeación.
B9: DIR GEDI_Enfoque Diferencial e Interseccional | C9: DIR_GEDI_1 | D9: L2 - Estadísticas para la visibilización de las inequidades | E9: L2.2_Un Sistema de Información estadístico para la economía popular, diseñado e implementado. | F9: PEI_Plan Estratégico Institucional | G9: 1 | H9: Elaborar un documento que contenga una propuesta metodológica con insumos para la implementación del Sistema Nacional de Cuidado, en el marco de la economía popular. | I9: Eficacia | J9: Porcentual | K9: Porcentaje de avance en la formulación de la estrategia | L9: Documento de trabajo | M9: 2024-02-15 | N9: 2024-12-30 | O9: 0.1 | P9: 0.5 | Q9: 0.8 | R9: 1 | S9: No aplica | T9: 7527885 | U9: Producción de información Estadística analizada | V9: Documentos metodológicos | W9: 162772408.6 | X9: 10_Gestión de Información y documental | Y9: No Aplica | Z9: POL_06: Fortalecimiento Organizacional y simplificación de procesos | AA9: 2_Seguridad humana y justicia social | AC9: 0.1 | AD9: =+IF($O9=0,"No Aplica",IF($AC9/$O9>=100%,100%,$AC9/$O9)) -> 1 | AE9: =IF(ISTEXT(AD9),"No reporta avance en el periodo",IF(AD9<=69%,"Avance insuficiente",IF(AD9>95%,"Avance satisfactorio",IF(AD9>70%,"Avance suficiente",IF(AD9<94%,"Avance suficiente",0))))) -> Avance satisfactorio | AF9: En el primer trimestre del año se desarrolló la importancia de ampliar las mediciones socioeconómicas del país más allá del PIB. Por esta razón, uno de los grandes avances es la creación de la Cuenta Satélite de Economía del Cuidado. Teniendo en cuenta que todas las personas requieren cuidado en algún momento de su vida, este sector desempeña un papel fundamental para el bienestar y funcionamiento de la sociedad, regula la inclusión de la Economía del Cuidado en el Sistema de Cuentas Nacionales y permite estimar la contribución del trabajo doméstico y de cuidado no remunerado al desarrollo económico y social. | AG9: 2024_Lineamientos para la construcción de la base de datos del Mapa de Cuidados de Colombia-v4 Documento en Word | AH9: No aplica | AI9: =IF($AC9<1%,"Sin iniciar",IF($AC9=100%,"Terminado","En gestión")) -> En gestión | AJ9: 7527885 | AK9: 7527885 | AL9: 225836577.7 | AM9: 203220376.6 | AN9: 12290770.6 | AP9: 0.5 | AQ9: =+IF($P9=0,"No Aplica",IF($AP9/$P9>=100%,100%,$AP9/$P9)) -> 1 | AR9: =IF(ISTEXT(AQ9),"No reporta avance en el periodo",IF(AQ9<=69%,"Avance insuficiente",IF(AQ9>95%,"Avance satisfactorio",IF(AQ9>70%,"Avance suficiente",IF(AQ9<94%,"Avance suficiente",0))))) -> Avance satisfactorio | AS9: En el segundo trimestre de 2024 se realizó el apoyo en la revisión de varias instrumentos relacionados con cuidado: revisión del cuestionario de la OOEE ENUT teniendo en cuenta las nuevas necesidades de información en el marco de la creación del Sistema Nacional de Cuidado (SNC); participación activa en la mesa de trabajo sobre perfil de personas cuidadoras convocada por Ministerio de Igualdad y Equidad; revisión de referentes sobre cuidado comunitario para identificar alternativas de medición; y por último, aporte de indicadores en el proceso de construcción del diagnóstico del CONPES del SNC. | AT9: 2024-Archivo de Excel con revisión de la OOEE ENUT 2024 - Actas mesa de trabajo perfil de cuidadoras (2) 2024 - Archivo en PPT 2024 - Archivo en Excel | AU9: No aplica | AV9: =IF($AP9<1%,"Sin iniciar",IF($AP9=100%,"Terminado","En gestión")) -> En gestión | AW9: 22583657 | AX9: 7527885 | AY9: 162772408.6 | AZ9: 162290583.3 | BA9: 61525704.6 | BC9: 0.8 | BD9: =+IF($Q9=0,"No Aplica",IF($BC9/$Q9>=100%,100%,$BC9/$Q9)) -> 1 | BE9: =IF(ISTEXT(BD9),"No reporta avance en el periodo",IF(BD9<=69%,"Avance insuficiente",IF(BD9>95%,"Avance satisfactorio",IF(BD9>70%,"Avance suficiente",IF(BD9<94%,"Avance suficiente",0))))) -> Avance satisfactorio | BF9: En el tercer trimestre de 2024, se llevó a cabo la revisión de la Gran Encuesta Integrada de Hogares (GEIH) como instrumento complementario para medir el uso del tiempo dedicado al trabajo de cuidado remunerado y no remunerado. Además, se participó activamente en la sesión de la mesa de trabajo sobre el perfil de las personas cuidadoras convocada por la Defensoría del Pueblo, donde se busca establecer una mesa adicional para el seguimiento a la implementación de la ley 2297 de 2023. Finalmente, se ajustaron los hitos, porcentajes y metas asociados a cada acción del DANE en el Plan de Acción y Seguimiento (PAS) del documento CONPES. | BG9: 2024 - GEIH_var_cuidado 2024 - Listado de asistencia mesa de seguimiento a la reglamentación de la Ley 2297 de 2023 2024 - Perfil ocupación cuidadoras 2024 - Plan de Acción y Seguimiento del documento CONPES_DANE | BI9: =IF(OR(AV9="En gestión",AV9="Sin iniciar"),IF($BC9>=$G9,"Terminado","En gestión"),"Terminado") -> En gestión | BJ9: 22583657 | BK9: 7527885 | BL9: 162772408.6 | BM9: 162290583.3 | BN9: 114780075.6 | BP9: 0.8 | BQ9: =+IF($R9=0,"No Aplica",IF($BP9/$R9>=100%,100%,$BP9/$R9)) -> 0.8 | BR9: =IF(ISTEXT(BQ9),"No reporta avance en el periodo",IF(BQ9<=69%,"Avance insuficiente",IF(BQ9>95%,"Avance satisfactorio",IF(BQ9>70%,"Avance suficiente",IF(BQ9<94%,"Avance suficiente",0))))) -> Avance suficiente | BS9: Esta meta no presenta avances para el periodo, los avances reportados a lo largo del 2024 dan cuenta de todos los insumos requeridos para el Sistema Nacional de Cuidado en diferentes ámbitos: cuestionario ENUT 2024-2025, CONPES de la política del cuidado, mapa de cuidado y el seguimiento de la implementación de la ley 2297 sobre los perfiles de personas cuidadoras. Para el último trimestre no hubo requerimientos adicionales interna o externamente, no obstante la meta se mantiene para el 2025 dado que son proyectos de largo plazo. | BT9: No aplica | BU9: La meta se desarrolló en el marco del acompañamiento en la implementación del Sistema Nacional de Cuidado con los productos entregados durante cada trimestre, para el último trimestre no hubo requerimientos adicionales internos o externas, no obstante la meta se mantiene para el 2025 dado que son proyectos de largo plazo. | BV9: =IF($BP9<1%,"Sin iniciar",IF($BP9=100%,"Terminado","En gestión")) -> En gestión | BW9: 7527885 | BX9: 7527885 | BY9: 162772408.6 | BZ9: 160997262.6 | CA9: 149712407.6
B10: DIR GEDI_Enfoque Diferencial e Interseccional | C10: DIR_GEDI_2 | D10: L5 - Un Sistema Estadístico Nacional - SEN coordinado | E10: L5.1_Implementar una estrategia de sensibilización e integración de las variables de género, diversidad y enfoque diferencial e interseccional en los producto de difusión, en el marco de las entidades productoras de información estadística y registros administrativos del SEN que permita unificar categorías para una mejor y justa caracterización de la población. | F10: PEI_Plan Estratégico Institucional | G10: 1 | H10: Elaborar un documento metodológico que contenga estrategias de sensibilización e implementación del enfoque diferencial e interseccional en las entidades del SEN. | I10: Eficacia | J10: Porcentual | K10: Porcentaje de avance en la formulación de la estrategia | L10: Documento de trabajo | M10: 2024-02-15 | N10: 2024-12-30 | O10: 0.1 | P10: 0.5 | Q10: 0.8 | R10: 1 | S10: No aplica | T10: 7527885 | U10: Producción de información Estadística analizada | V10: Documentos metodológicos | X10: 10_Gestión de Información y documental | Y10: No Aplica | Z10: POL_06: Fortalecimiento Organizacional y simplificación de procesos | AA10: No aplica | AC10: 0.1 | AD10: =+IF($O10=0,"No Aplica",IF($AC10/$O10>=100%,100%,$AC10/$O10)) -> 1 | AE10: =IF(ISTEXT(AD10),"No reporta avance en el periodo",IF(AD10<=69%,"Avance insuficiente",IF(AD10>95%,"Avance satisfactorio",IF(AD10>70%,"Avance suficiente",IF(AD10<94%,"Avance suficiente",0))))) -> Avance satisfactorio | AF10: Se realizó el cronograma del plan de trabajo | AG10: 2024- plan de trabajo de la guía documento que se encuentra en Excel | AH10: No aplica | AI10: =IF($AC10<1%,"Sin iniciar",IF($AC10=100%,"Terminado","En gestión")) -> En gestión | AJ10: 7527885 | AK10: 7527885 | AP10: 0.5 | AQ10: 1 | AR10: =IF(ISTEXT(AQ10),"No reporta avance en el periodo",IF(AQ10<=69%,"Avance insuficiente",IF(AQ10>95%,"Avance satisfactorio",IF(AQ10>70%,"Avance suficiente",IF(AQ10<94%,"Avance suficiente",0))))) -> Avance satisfactorio | AS10: A la fecha se han realizado 9 sesiones de trabajo para el proceso de actualización de la Guía de enfoque diferencial e interseccional, específicamente para la etapa de la estandarización de conceptos. En segundo lugar, se realizaron 2 mesas externa de trabajo para el enfoque diferencial LGBTIQ+. | AT10: 2024 - Actas de las sesiones de trabajo (11) | AU10: No aplica | AV10: =IF($AP10<1%,"Sin iniciar",IF($AP10=100%,"Terminado","En gestión")) -> En gestión | AW10: 22583657 | AX10: 7527885 | BC10: 0.8 | BD10: 1 | BE10: =IF(ISTEXT(BD10),"No reporta avance en el periodo",IF(BD10<=69%,"Avance insuficiente",IF(BD10>95%,"Avance satisfactorio",IF(BD10>70%,"Avance suficiente",IF(BD10<94%,"Avance suficiente",0))))) -> Avance satisfactorio | BF10: A la fecha se han realizado 11 sesiones adicionales de trabajo para el proceso de actualización de la Guía de Enfoque Diferencial e Interseccional, específicamente para la etapa de estandarización de conceptos. En segundo lugar, se realizó la mesa de trabajo de conceptos étnicos como se sugirió en el comité técnico. | BG10: 2024 - Actas de las sesiones de trabajo de estandarización de conceptos (11) y conceptos étnico-raciales (1) | BI10: =IF(OR(AV10="En gestión",AV10="Sin iniciar"),IF($BC10>=$G10,"Terminado","En gestión"),"Terminado") -> En gestión | BJ10: 22583657 | BK10: 7527885 | BP10: 1 | BQ10: 1 | BR10: =IF(ISTEXT(BQ10),"No reporta avance en el periodo",IF(BQ10<=69%,"Avance insuficiente",IF(BQ10>95%,"Avance satisfactorio",IF(BQ10>70%,"Avance suficiente",IF(BQ10<94%,"Avance suficiente",0))))) -> Avance satisfactorio | BS10: Al cierre del IV trimestre se realizaron 2 sesiones adicionales de trabajo para el proceso de actualización de la Guía de Enfoque Diferencial e Interseccional, específicamente para la etapa de estandarización de conceptos del enfoque diferenial de género. De igual manera se avanzó en la elaboración de la primera versión del documento sobre las estrategias de sensibilización para la implementación del enfoque diferencial e interseccional en las instituciones del SEN. | BT10: 2024 - Actas de las sesiones de trabajo de estandarización de conceptos (2) Matriz en Excel de conceptos estandarizados (1) Documento de Word estrategias de sensibilización (1) | BU10: No aplica | BV10: =IF($BQ10<1%,"Sin iniciar",IF($BQ10=100%,"Terminado","En gestión")) -> Terminado | BW10: 7527885 | BX10: 7527885
B11: DIR GEDI_Enfoque Diferencial e Interseccional | C11: DIR_GEDI_3 | D11: L2 - Estadísticas para la visibilización de las inequidades | E11: L2.4_Elaborar y publicar nuevas mediciones de niñez, desigualdad en torno a la tierra, la propiedad inmueble, la tenencia de activos financieros y la riqueza en el país. | F11: PEI_Plan Estratégico Institucional | G11: 1 | H11: Elaborar un documento metodológico que contenga la identificación de nuevas mediciones de desigualdad en torno a la niñez, mujer rural y tenencia de tierra. | I11: Eficacia | J11: Porcentual | K11: Porcentaje de avance en la formulación de la estrategia | L11: Documento de trabajo | M11: 2024-02-15 | N11: 2024-12-30 | O11: 0.1 | P11: 0.5 | Q11: 0.8 | R11: 1 | S11: No aplica | T11: 7527885 | U11: Producción de información Estadística analizada | V11: Documentos metodológicos | X11: 10_Gestión de Información y documental | Y11: No Aplica | Z11: POL_06: Fortalecimiento Organizacional y simplificación de procesos | AA11: 2_Seguridad humana y justicia social | AC11: 0.1 | AD11: 1 | AE11: Avance satisfactorio | AF11: En este primer trimestre se presenta la situación de las mujeres rurales desde las estadísticas, abordando las temáticas como: principales características demográficas de las mujeres que habitan las zonas rurales de Colombia; matrimonio infantil, uniones tempranas y fecundidad en mujeres rurales; educación de las mujeres rurales; entre otros el cambio climático no son neutrales al género; y las experiencias e historias de las mujeres rurales desde otras perspectivas que complementan el abordaje estadístico. | AG11: 2024 Mujer Rural y Campesina Documento en Word | AH11: No aplica | AI11: En gestión | AJ11: 7527885 | AK11: 7527885 | AP11: 0.4 | AQ11: 0.8 | AR11: Avance suficiente | AS11: En el segundo trimestre se avanzó en una estructura preliminar de la publicación de mujer rural en su quinta versión. Se realizó convocatoria a instituciones del SEN para participar de esta publicación. | AT11: 2024 - Archivo preliminar estructura publicación mujer rural | AU11: La nota será publicada para la conmemoración de mujer rural en el mes de octubre, las solicitudes a instituciones del SEN para participar y enviar insumos toman en promedio un mes o más. Por esa razón, se reporta el avance en la estructura que está directamente realizado por GEDI o en conjunto con el GIT de GEIH o ECV, y para el siguiente trimestre una versión más avanzada. | AV11: En gestión | AW11: 22583657 | AX11: 7527885 | BC11: 1 | BD11: 1 | BE11: Avance satisfactorio | BF11: Durante el tercer trimestre de 2024, se llevaron a cabo las siguientes acciones que permitieron avanzar en el desarrollo del documento: se realizaron los cálculos de la GEIH y su respectiva revisión interna; se elaboró un borrador de la nota con las cifras y cálculos disponibles; y se incorporó y ajustó información interna y externa. Además, se llevaron a cabo revisiones dentro del grupo de trabajo interno para realizar las correcciones pertinentes. Se determinó el 8 de octubre como fecha de entrega de la nota a la coordinación para avanzar en el proceso del comité editorial. | BG11: 2024 - Nota de mujer rural | BI11: =IF(OR(AV11="En gestión",AV11="Sin iniciar"),IF($BC11>=$G11,"Terminado","En gestión"),"Terminado") -> Terminado | BJ11: 22583657 | BK11: 7527885 | BP11: 1 | BQ11: 1 | BR11: Avance satisfactorio | BS11: Meta finalizada en el tercer trimestre | BT11: No aplica | BU11: No aplica | BV11: =IF($BQ11<1%,"Sin iniciar",IF($BQ11=100%,"Terminado","En gestión")) -> Terminado | BW11: 7527885 | BX11: 7527885
B12: DIR AAI_Alianzas y Asuntos Internacionales | C12: DIR_AAI_1 | D12: L1 - Difusión y acceso a la información | E12: L1.1_Desarrollar una estrategia de cooperación y movilización internacional | F12: PAI_Plan de Acción Institucional 2023 | G12: 3 | H12: Convenios Nacionales o Internacionales que contribuyan al fortalecimiento institucional del DANE, a través de acciones de posicionamiento, formalizados | I12: Eficiencia | J12: Numérico | K12: Número de convenios gestionados en el trimestre | L12: Convenios - Formalización de acuerdos | M12: 2024-02-01 | N12: 2024-06-28 | O12: 1 | P12: 2 | Q12: 0 | R12: 0 | S12: Si aplica | T12: 142333333 | U12: Fortalecimiento de la capacidad institucional para la implementación del modelo de gestión Nacional | V12: Documentos de planeación | W12: 420387570 | X12: 1_Direccionamiento Estratégico | Y12: No Aplica | Z12: POL_18: Gestión del Conocimiento y la Innovación | AA12: No aplica | AC12: 0.9 | AD12: 0.9 | AE12: Avance suficiente | AF12: A la fecha se cuenta con un Memorando de entendimiento revisado por ambos Institutos Nacionales de Estadística con acciones precisas a desarrollarse durante los próximos años. El objetivo de este instrumento será compartir experiencias en los diferentes frentes priorizados entre el DANE y la ONEI de Cuba. | AG12: Memorando de Entendimiento DANE ONEI | AH12: No aplica | AI12: =IF($AC12<0.5,"Sin iniciar",IF($AC12=100,"Terminado","En gestión")) -> En gestión | AJ12: 427000000 | AK12: 106750000 | AL12: 427000000 | AM12: 404705897 | AN12: 151081788.4 | AP12: 2 | AQ12: 1 | AR12: Avance satisfactorio | AS12: En el segundo trimestre de 2024, se firmó el Memorando de Entendimiento entre el DANE y la ciudad de Medellín, con el objetivo de formalizar la relación entre ambas entidades, permitiendo y facilitando el desarrollo de acciones enmarcadas en el Foro Mundial de Datos. Asimismo, se suscribió una enmienda con la Oficina de Estadísticas de Corea, la cual establece una nueva hoja de ruta para las acciones de 2024. | AT12: Enmienda DANE-KOSTAT MOU DANE-Medellín | AU12: No aplica | AV12: =IF($AP12<1,"Sin iniciar",IF($AP12=2,"Terminado","En gestión")) -> Terminado | AW12: 427000000 | AX12: 106750000 | AY12: 427000000 | AZ12: 395370367 | BA12: 35592814 | BD12: No Aplica | BE12: No reporta avance en el periodo | BF12: Teniendo en cuenta que en el primer trimestre se articularon las diferentes actividades para la firma Memorando de entendimiento entre el DANE y la ONEI de Cuba y que quedó como accion pendiente, su firma, en el marco del Comite Ejecutivo se hizo la firma de este instrumento. | BG12: Memorando de Entendiemitno DANE_ONEI | BH12: No aplica | BI12: =IF(OR(AV12="En gestión",AV12="Sin iniciar"),IF($BC12>=$G12,"Terminado","En gestión"),"Terminado") -> Terminado | BJ12: 427000000 | BK12: =+(BJ12/2)*2 -> 427000000 | BL12: 427000000 | BM12: 404705897 | BN12: 151081788.4 | BP12: 1 | BQ12: =+IF($BP12=0,"No Aplica",IF($BP12/$AQ12>=100%,100%,$BP12/$AQ12)) -> 1 | BR12: Avance satisfactorio | BS12: Meta finalizada en el segundo trimestre | BT12: Meta finalizada en el segundo trimestre | BU12: No aplica | BV12: =IF(OR(BI12="En gestión",BI12="Sin iniciar"),IF($BC12>=$G12,"Terminado","En gestión"),"Terminado") -> Terminado | BW12: 142333333 | BX12: =+(BW12/2)*2 -> 142333333 | BY12: 420387570 | BZ12: 400653362 | CA12: 381522378.4
B13: DIR AAI_Alianzas y Asuntos Internacionales | C13: DIR_AAI_2 | D13: L1 - Difusión y acceso a la información | E13: L1.1_Desarrollar una estrategia de cooperación y movilización internacional | F13: PEI_Plan Estratégico Institucional | G13: 40 | H13: Ayudas de memorias y/o documentos de preparación realizados en la participación de la dirección en reuniones y eventos que aporten al fortalecimiento de las actividades desarrolladas por el DANE. | I13: Eficiencia | J13: Numérico | K13: Número de ayudas de memoria realizadas en el trimestre | L13: Ayudas de memorias | M13: 2024-02-11 | N13: 2024-12-31 | O13: 10 | P13: 10 | Q13: 10 | R13: 10 | S13: Si aplica | T13: 142333333 | U13: Fortalecimiento de la capacidad institucional para la implementación del modelo de gestión Nacional | V13: Documentos de planeación | X13: 1_Direccionamiento Estratégico | Y13: No Aplica | Z13: POL_18: Gestión del Conocimiento y la Innovación | AA13: No aplica | AC13: 10 | AD13: 1 | AE13: Avance satisfactorio | AF13: En el marco de la 55° Comisión Estadística de Naciones Unidas, el GIT de Alianzas y Asuntos Internacionales desarrollo 10 ayudas de memoria que cuenta con un resumen del documentos, unas acciones a llevar, unos puntos a tener en cuenta y mensajes claves que son relevantes tener en cuenta para garantizar el posicionamiento de la entidad en los frentes priorizados por el DANE | AG13: Ayudas de Memoria | AH13: No aplica | AI13: En gestión | AJ13: 427000000 | AK13: 106750000 | AP13: 10 | AQ13: 1 | AR13: Avance satisfactorio | AS13: Eñ GIT de Alianzas y Asuntos Internacionales desarrollo 10 ayudas de memoria que cuenta con un contexto del documentos, unas acciones a llevar, unos puntos a tener en cuenta y mensajes claves que son relevantes para tener en cuenta y garantizar el posicionamiento de la entidad en los frentes priorizados por el DANE | AT13: 10 Ayudas de Memoria | AU13: No aplica | AV13: En gestión | AW13: 427000000 | AX13: 106750000 | BC13: 10 | BD13: 1 | BE13: Avance satisfactorio | BF13: Eñ GIT de Alianzas y Asuntos Internacionales desarrolló 10 ayudas de memoria que cuenta con un contexto del documentos, unas acciones, puntos y mensajes claves que son relevantes para tener en cuenta y garantizar el posicionamiento de la entidad en los frentes priorizados por el DANE | BG13: 10 ayudas de memoria | BH13: No aplica | BI13: =IF($BC13>=$G13,"Terminado","En gestión") -> En gestión | BK13: 320250000 | BP13: 10 | BQ13: 1 | BR13: Avance satisfactorio | BS13: El GIT de Alianzas y Asuntos Internacionales desarrolló 10 ayudas de memoria que cuenta con un contexto del documentos, unas acciones, puntos y mensajes claves que son relevantes para tener en cuenta y garantizar el posicionamiento de la entidad en los frentes priorizados por el DANE. Cabe resaltar, que estas exposiciones se hicieron el marco de la participación del DANE en la COP 16 y del V Foro Mundial de Datos de las Naciones Unidas | BT13: 10 ayudas de memoria | BU13: No aplica | BV13: =IF($BQ13<1%,"Sin iniciar",IF($BQ13=100%,"Terminado","En gestión")) -> Terminado | BW13: 142333333 | BX13: 320250000
B14: DIR AAI_Alianzas y Asuntos Internacionales | C14: DIR_AAI_3 | D14: L1 - Difusión y acceso a la información | E14: L1.1_Desarrollar una estrategia de cooperación y movilización internacional | F14: PEI_Plan Estratégico Institucional | G14: 1 | H14: Ficha técnica implementada que permita la identificación de necesidades en las áreas del DANE. | I14: Eficiencia | J14: Porcentual | K14: Porcentaje de avance en la implementación de la ficha técnica en el trimestre | L14: Ficha de identificación de necesidades DANE | M14: 2024-04-01 | N14: 2024-12-31 | O14: 0 | P14: 0.33 | Q14: 0.66 | R14: 1 | S14: Si aplica | T14: 142333334 | U14: Fortalecimiento de la capacidad institucional para la implementación del modelo de gestión Nacional | V14: Documentos de planeación | X14: 1_Direccionamiento Estratégico | Y14: No Aplica | Z14: POL_18: Gestión del Conocimiento y la Innovación | AA14: No aplica | AC14: 0.33 | AD14: No Aplica | AE14: No reporta avance en el periodo | AF14: En el Marco de realizar la estrategia de Cooperación, el GIT de Alianzas y Asuntos Internacionales se encuentra avanzando en el diseño de la herramienta de consolidación de oferta y demanda que permitirá contar con el insumo necesario para la estrategia | AG14: Matriz Formato Cooperación Técnica | AH14: No aplica | AI14: En gestión | AJ14: 427000000 | AK14: 106750000 | AP14: 0.33 | AQ14: 1 | AR14: Avance satisfactorio | AS14: En el Marco de realizar la estrategia de Cooperación, el GIT de Alianzas y Asuntos Internacionales se encuentra avanzando en el diseño de la herramienta de consolidación de oferta y demanda que permitirá contar con el insumo necesario para la estrategia. esta version cuenta unos ajustes alineaciones con el PAI y un mapeo de estrategias de cooperación | AT14: Matriz Formato Cooperación Técnica Estrategías de otras instituciones | AU14: No aplica | AV14: En gestión | AW14: 427000000 | AX14: 106750000 | BC14: 0.66 | BD14: 1 | BE14: Avance satisfactorio | BF14: En el Marco de realizar la estrategia de Cooperación, el GIT de Alianzas y Asuntos Internacionales se encuentra avanzando en el diseño de la herramienta de consolidación de oferta y demanda que permitirá contar con el insumo necesario para la estrategia. Esta version cuenta con ajustes alineados con el PAI y un mapeo de estrategias de cooperación, el cual está en revision y consulta informal. | BG14: Matriz Formato Cooperación Técnica Estrategías de otras instituciones | BH14: No aplica | BI14: =IF(OR(AV14="En gestión",AV14="Sin iniciar"),IF($BC14>=$G14,"Terminado","En gestión"),"Terminado") -> En gestión | BK14: =+(BJ12/4)*3 -> 320250000 | BP14: 1 | BQ14: 1 | BR14: Avance satisfactorio | BS14: la estrategia de Cooperación, el GIT de Alianzas y Asuntos Internacionales es un insumo clave para el desarrollo de la hoja de ruta del DANE para los próximos años. En este contexto en 2024 se realizo todo el levantamiento y mapeo de lo que será el desarrollo o las bases para la construcción de sta en 2025 y 2026, | BT14: Matriz Formato Cooperación Técnica Estrategías de otras instituciones | BU14: No aplica | BV14: =IF($BQ14<1%,"Sin iniciar",IF($BQ14=100%,"Terminado","En gestión")) -> Terminado | BW14: 142333334 | BX14: =+(BW12/4)*3 -> 106749999.8
B15: DIR AAI_Alianzas y Asuntos Internacionales | C15: DIR_AAI_4 | D15: L1 - Difusión y acceso a la información | E15: L1.2_Participar en el Foro Mundial de Estadísticas Colombia realizado en la ciudad de Medellín | F15: PEI_Plan Estratégico Institucional | G15: 1 | H15: Un documento con alcance global resultado del Foro Mundial de Datos, que consignará los compromisos específicos de cada sector, consolidando esfuerzos para fortalecer la comunidad estadística y de datos. | I15: Eficiencia | J15: Porcentual | K15: Porcentaje de avance en la construcción del documento | L15: Declaración de Medellín - Documento de resultados | M15: 2024-11-11 | N15: 2024-12-31 | O15: 0 | P15: 0 | Q15: 0 | R15: 1 | S15: Si aplica | T15: 2673245143 | U15: Ampliación de la capacidad del DANE para la coordinación del SEN | V15: Servicio de asistencia técnica | W15: 3006050985 | X15: 1_Direccionamiento Estratégico | Y15: No Aplica | Z15: POL_18: Gestión del Conocimiento y la Innovación | AA15: No aplica | AC15: 0 | AD15: =+IF($O15=0,"No Aplica",IF($AC15/$O15>=100%,100%,$AC15/$O15)) -> No Aplica | AE15: No reporta avance en el periodo | AF15: A la fecha se ha avanzado en la consolidación de las áreas, prioridades, acciones y compromisos los cuales se consignaran en el documento de resultados del Foro Mundial de Datos | AG15: CTGAP 2.0_20240322 Medellín outcome_20240322 | AH15: No aplica | AI15: Sin iniciar | AJ15: 2673245143 | AK15: 2673245143 | AL15: 2673245143 | AM15: 78873494 | AN15: 17262589.91 | AP15: 0 | AQ15: =+IF($P15=0,"No Aplica",IF($AP15/$P15>=100%,100%,$AP15/$P15)) -> No Aplica | AR15: No reporta avance en el periodo | AS15: En el marco de la Declaración de Medellín, la cual es el documento resultante del Foro Mundial de Datos, en el presente trimestre se inició el proceso de consulta con los países y demás actores interesados para su consolidación definitiva. | AT15: Medellín outcome_20240420_TRV_ESP CTGAP 2.0_20240420_TRV_ESP (1) | AU15: No aplica | AV15: Sin iniciar | AW15: 2673245143 | AX15: 2673245143 | AY15: 2673245143 | AZ15: 20000000 | BA15: - | BC15: 0 | BD15: No Aplica | BE15: No reporta avance en el periodo | BF15: En el marco de la Declaración de Medellín, la cual es el documento resultante del Foro Mundial de Datos, en el presente trimestre el documento se encuentra en proceso de consulta con los países y demás actores interesados para su consolidación definitiva. | BG15: Medellín outcome_20240420_TRV_ESP CTGAP 2.0_20240420_TRV_ESP ajustado en revisión | BH15: No aplica | BI15: =IF(OR(AV15="En gestión",AV15="Sin iniciar"),IF($BC15>=$G15,"Terminado","En gestión"),"Terminado") -> En gestión | BJ15: 2673245143 | BK15: =+(BJ15/4)*3 -> 2004933857 | BL15: 2673245143 | BM15: 78873494 | BN15: 17262589.91 | BP15: 1 | BQ15: 1 | BR15: Avance satisfactorio | BS15: En cumplimiento al desarrollo del V Foro Mundial de Datos de las Naciones Unidas, el DANE junto con la Secretaria de las Naciones Unidas Lanzo el documento de resultados titulado Marco para la Acción de Medellín sobre Datos para el Desarrollo Sostenible, el cual brinda los lineamientos y la hoja de ruta para el desarrollo de datos mas sostenibles | BT15: Marco para la Acción de Medellín sobre Datos para el Desarrollo Sostenible | BU15: No aplica | BV15: =IF($BQ15<1%,"Sin iniciar",IF($BQ15=100%,"Terminado","En gestión")) -> Terminado | BW15: 2673245143 | BX15: =+(BW15/4)*3 -> 2004933857 | BY15: 3006050985 | BZ15: 2960758571 | CA15: 2646744119
B16: DIR ODS_Objetivos de Desarrollo Sostenible | C16: GIT ODS_1 | D16: L3 - Fortalecimiento de la producción estadística a partir de la innovación y la gestión tecnológica. | E16: L3.4_Fortalecer la producción de información estadística para el seguimiento de los Objetivos de Desarrollo Sostenible - ODS. | F16: PEI_Plan Estratégico Institucional | G16: 15 | H16: Indicadores de los Objetivos de Desarrollo Sostenible en categorías B, C o D del barómetro ascendidos de categoría. | I16: Eficacia | J16: Numérico | K16: Indicadores ODS clasificados en categorías B, C y D del barómetro que ascienden a una categoría de clasificación superior. | L16: Barómetros de los indicadores | M16: 2024-02-01 | N16: 30/12/2024 | O16: 1 | P16: 5 | Q16: 9 | R16: 15 | S16: Si aplica | T16: 98168616 | U16: Producción de información Estadística analizada | V16: Cuadros de resultados | W16: 372817267.3 | X16: 5_Producción Estadística | Y16: No Aplica | Z16: POL_17: Gestión de la información estadística | AA16: No aplica | AC16: 1 | AD16: 1 | AE16: =IF(ISTEXT(AD16),"No reporta avance en el periodo",IF(AD16<=69%,"Avance insuficiente",IF(AD16>95%,"Avance satisfactorio",IF(AD16>70%,"Avance suficiente",IF(AD16<94%,"Avance suficiente",0))))) -> Avance satisfactorio | AF16: Durante el primer trimestre del año, el indicador ODS 10.7.3 aumentó de categoría del barómetro al pasar de la Categoría C, donde tenía un porcentaje de avance de 47% a la Categoría B donde obtuvo un porcentaje de avance en la producción de 51% | AG16: Barómetro 10.7.3 | AH16: No aplica | AI16: =IF($AC16<1,"Sin iniciar",IF($AC16=100,"Terminado","En gestión")) -> En gestión | AJ16: 98168616 | AK16: =+AJ16/4 -> 24542154 | AL16: 315000000 | AM16: 283094219 | AN16: 17334204 | AP16: =+AC16+5 -> 6 | AQ16: =+IF($P16=0,"No Aplica",IF($AP16/$P16>=100%,100%,$AP16/$P16)) -> 1 | AR16: =IF(ISTEXT(AQ16),"No reporta avance en el periodo",IF(AQ16<=69%,"Avance insuficiente",IF(AQ16>95%,"Avance satisfactorio",IF(AQ16>70%,"Avance suficiente",IF(AQ16<94%,"Avance suficiente",0))))) -> Avance satisfactorio | AS16: En el primer semestre se reportó el avance de un indicador, en el segundo trimestre del año 5 indicadores ODS (10.b.1, 11.5.2, 16.7.1, 17.18.2 y 17.18.3) aumentaron de categoría del Barómetro | AT16: 2024_05_15 Barómetro 10.b.1 2024_05_15_Bitácora + Barómetro 11.5.2-1.5.2 2024_05_17_ Bitacora + Barómetro 16.7.1 2024_05_17_Barómetro viejo indicador 17.18.3 2024_05_15_Barómetro viejo indicador 17.18.2 | AU16: No aplica | AV16: =IF($AP16<1%,"Sin iniciar",IF($AP16=100%,"Terminado","En gestión")) -> En gestión | AW16: 98168616 | AX16: 49084308 | AY16: 427000000 | AZ16: 404705897 | BA16: 151081788.4 | BC16: 9 | BD16: =+IF($Q16=0,"No Aplica",IF($BC16/$Q16>=100%,100%,$BC16/$Q16)) -> 1 | BE16: =IF(ISTEXT(BD16),"No reporta avance en el periodo",IF(BD16<=69%,"Avance insuficiente",IF(BD16>95%,"Avance satisfactorio",IF(BD16>70%,"Avance suficiente",IF(BD16<94%,"Avance suficiente",0))))) -> Avance satisfactorio | BF16: En el primer y segundo trimestre del año se había reportado el avance en el barómetro de 6 indicadores. Para el tercer trimestre se reporta que tres indicadores ODS (3.9.1, 7.1.1 y 11.7.2) aumentaron de categoría del Barómetro | BG16: 2024_09_16_Barómetro + Bitácora 3.9.12024_09_16_Barómetro + Bitácora 7.1.1 2024_09_16_Barómetro + Bitácora 11.7.2 | BH16: No aplica | BI16: =IF(OR(AV16="En gestión",AV16="Sin iniciar"),IF($BC16>=$G16,"Terminado","En gestión"),"Terminado") -> En gestión | BJ16: 98168616 | BK16: =(BJ16/4)*3 -> 73626462 | BL16: 355314638.7 | BM16: 341728698 | BN16: 208149777.6 | BP16: 15 | BQ16: =+IF($R16=0,"No Aplica",IF($BP16/$R16>=100%,100%,$BP16/$R16)) -> 1 | BR16: =IF(ISTEXT(BQ16),"No reporta avance en el periodo",IF(BQ16<=69%,"Avance insuficiente",IF(BQ16>95%,"Avance satisfactorio",IF(BQ16>70%,"Avance suficiente",IF(BQ16<94%,"Avance suficiente",0))))) -> Avance satisfactorio | BS16: Para el cuarto trimestre de 2024 se reporta que 6 indicadores ODS aumentaron de categoría finalizando en la Categoría A, estos son: 6.b.1, 10.1.1, 10.2.1, 10.4.1, 10.5.1 y 10.6.1, de esta manera se da por cumplida la acción | BT16: 2024_12_20_Barómetro 6.b.1 2024_12_20_Barómetro 10.1.1 2024_12_20_Barómetro 10.2.1 2024_12_20_Barómetro 10.4.1 2024_12_20_Barómetro 10.5.1 2024_12_20_Barómetro 10.6.1 | BU16: No aplica | BV16: =IF($BQ16<1%,"Sin iniciar",IF($BQ16=100%,"Terminado","En gestión")) -> Terminado | BW16: 98168616 | BX16: =(BW16/4)*4 -> 98168616 | BY16: 372817267.3 | BZ16: 351639692 | CA16: 324135298.7
B17: DIR ODS_Objetivos de Desarrollo Sostenible | C17: GIT ODS_2 | D17: L3 - Fortalecimiento de la producción estadística a partir de la innovación y la gestión tecnológica. | E17: L3.4_Fortalecer la producción de información estadística para el seguimiento de los Objetivos de Desarrollo Sostenible - ODS. | F17: PEI_Plan Estratégico Institucional | G17: 1 | H17: Estrategia conjunta con Sistema de Naciones Unidas diseñada e implementada, para la difusión de la información relacionada con la Agenda 2030 | I17: Eficacia | J17: Porcentual | K17: Porcentaje de avance: 1. Formulación de la estrategia (20%) 2. Implementación (80%) | L17: Documento de la estrategia. Productos de difusión. | M17: 2024-02-01 | N17: 30/12/2024 | O17: 0.1 | P17: 0.3 | Q17: 0.7 | R17: 1 | S17: Si aplica | T17: 46055988 | U17: Producción de información Estadística analizada | V17: Cuadros de resultados | X17: 2_Comunicación | Y17: No Aplica | Z17: POL_17: Gestión de la información estadística | AA17: No aplica | AC17: 0.2 | AD17: =+IF($O17=0,"No Aplica",IF($AC17/$O17>=100%,100%,$AC17/$O17)) -> 1 | AE17: =IF(ISTEXT(AD17),"No reporta avance en el periodo",IF(AD17<=69%,"Avance insuficiente",IF(AD17>95%,"Avance satisfactorio",IF(AD17>70%,"Avance suficiente",IF(AD17<94%,"Avance suficiente",0))))) -> Avance satisfactorio | AF17: Durante el primer trimestre del año, se elaboró y finalizó la estrategia de comunicaciones de la implementación de la Agenda 2030. Dado que la estrategia fue finalizada en el primer trimestre, se reporta el 20% de avance y no el 10% que era el esperado | AG17: Estrategia comunicación ODS 2024 | AH17: No aplica | AI17: =IF($AC17<1%,"Sin iniciar",IF($AC17=100%,"Terminado","En gestión")) -> En gestión | AJ17: 46055988 | AK17: =+AJ17/4 -> 11513997 | AP17: =+AC17+26.66% -> 0.4666 | AQ17: =+IF($P17=0,"No Aplica",IF($AP17/$P17>=100%,100%,$AP17/$P17)) -> 1 | AR17: =IF(ISTEXT(AQ17),"No reporta avance en el periodo",IF(AQ17<=69%,"Avance insuficiente",IF(AQ17>95%,"Avance satisfactorio",IF(AQ17>70%,"Avance suficiente",IF(AQ17<94%,"Avance suficiente",0))))) -> Avance satisfactorio | AS17: Durante el primer trimestre del año, se reportó el 20% de avance dado que la fomrulación de la estrategia de difusión fue finalizada. En el segundo trimestre del año se realizaron diferentes actividades relacionadas con la fase 1 de la estrategia de difusión. Las actividades desarrolladas van desde la realización de eventos, publicaciones en redes sociales, tanto de información general, datos y campañas de expectativa, podcast y plataformas digitales para reportes de información. Las actividades realizadas son: - Carrusel de imágenes titulado como "3 datos sobre” presenta la información de avance en materia de indicadores ODS - Podcast con el CODS - Evento lanzamiento de la iniciativa Datos de Alto impacto “Power of Data” - Webinar ODS sobre planificación territorial. | AT17: 3 datos sobre FIES - Inseguridad alimentaria Podcast ODS Power of Data Webinar ODS Planificación territorial | AU17: No aplica | AV17: =IF($AP17<1%,"Sin iniciar",IF($AP17=100%,"Terminado","En gestión")) -> En gestión | AW17: 46055988 | AX17: 23027994 | BC17: 0.73 | BD17: =+IF($Q17=0,"No Aplica",IF($BC17/$Q17>=100%,100%,$BC17/$Q17)) -> 1 | BE17: =IF(ISTEXT(BD17),"No reporta avance en el periodo",IF(BD17<=69%,"Avance insuficiente",IF(BD17>95%,"Avance satisfactorio",IF(BD17>70%,"Avance suficiente",IF(BD17<94%,"Avance suficiente",0))))) -> Avance satisfactorio | BF17: En el tercer trimestre del año se continuó avanzando en la implementación de la estrategia de difusión, a través de la realización de las actividades relacionadas con la fase 2. Estas actividades van desde la realización de eventos, publicaciones en redes sociales, tanto de información general, datos y campañas de expectativa, podcast y plataformas digitales para reportes de información. Las actividades realizadas son: - Podcast Reporte Nacional Voluntario 2024 -SDG National Tour - Reporte Nacional Voluntario Digitial - Difusión Reporte Nacional Voluntario - Podcast Papel del DANE en los ODS - Taller de apropiación Nuestros ODS - Publicación avances indicadores 6.4.1 y 6.4.2 - Evento virtual Datos en Acción -Carrusel Día Internacional de las Víctimas de Desapariciones Forzadas | BG17: 01_Podcast Reporte Nacional Voluntario 02_SDG National Tour 03_Reporte Nacional Voluntario Digital 04_Difusión Reporte nacional voluntario 05_Podcast Papel del DANE en los ODS 06_Taller Nuestros ODS 07_Publicación avances indicadores 6.4.1 y 6.4.2 08_Datos en Acción 09_Día Internacional Víctima de Desapariciones Forzadas | BH17: No aplica | BI17: =IF(OR(AV17="En gestión",AV17="Sin iniciar"),IF($BC17>=$G17,"Terminado","En gestión"),"Terminado") -> En gestión | BJ17: 46055988 | BK17: =(BJ17/4)*3 -> 34541991 | BP17: 1 | BQ17: =+IF($R17=0,"No Aplica",IF($BP17/$R17>=100%,100%,$BP17/$R17)) -> 1 | BR17: =IF(ISTEXT(BQ17),"No reporta avance en el periodo",IF(BQ17<=69%,"Avance insuficiente",IF(BQ17>95%,"Avance satisfactorio",IF(BQ17>70%,"Avance suficiente",IF(BQ17<94%,"Avance suficiente",0))))) -> Avance satisfactorio | BS17: En el cuarto trimestre del año se continuó avanzando en la implementación de la estrategia de difusión, a través de la realización de las actividades relacionadas con la fase 3, de esta manera se dio por culminada esta acción del PAI. Las actividades desarrolladas incluyen: talleres de apropiación, documentos, datatones y, publicaciones en redes sociales. Las actividades son: - Bitácora económica ODS - ACOPI - Dataton educativa sube de nivel con los ODS - Día Mundial de los ODS -Educación en Derechos Humanos -Taller de apropiación -UN Dathaton 2024 | BT17: 01_Bitácora económica y ODS - ACOPI 02_Dataton_Educativa 03_UN Datathon 2024 04_Taller apropiación ODS- DANE 05_Día Mundial de los ODS 06_Educación en Derechos Humanos - PLANEDH | BU17: No aplica | BV17: =IF($BQ17<1%,"Sin iniciar",IF($BQ17=100%,"Terminado","En gestión")) -> Terminado | BW17: 46055988 | BX17: =(BW17/4)*4 -> 46055988
B18: SUB_Subdirección | C18: SUB_2 | D18: L2 - Estadísticas para la visibilización de las inequidades | E18: L2.4_Elaborar y publicar nuevas mediciones de niñez, desigualdad en torno a la tierra, la propiedad inmueble, la tenencia de activos financieros y la riqueza en el país. | F18: PND_"Colombia Potencia Mundial de la Vida" 2022 - 2026 | G18: 1 | H18: Documento con la viabilidad técnica para las nuevas mediciones de desigualdad realizado | I18: Eficacia | J18: Porcentual | K18: Porcentaje de avance en la construcción de la viabilidad técnica | L18: Documento de viabilidad técnica para las nuevas mediciones de viabilidad técnicas | M18: 2024-02-01 | N18: 2024-12-30 | O18: 0.1 | P18: 0.2 | Q18: 0.4 | R18: 1 | S18: Si aplica | T18: 18624000 | U18: No aplica | V18: No aplica | W18: 0 | X18: 5_Producción Estadística | Y18: No Aplica | Z18: POL_17: Gestión de la información estadística | AA18: 2_Seguridad humana y justicia social | AC18: 0.1 | AD18: =+IF(O18=0,"No Aplica",IF(AC18/O18>=100%,100%,AC18/O18)) -> 1 | AE18: =IF(ISTEXT(AD18),"No reporta avance en el periodo",IF(AD18<=69%,"Avance insuficiente",IF(AD18>95%,"Avance satisfactorio",IF(AD18>70%,"Avance suficiente",IF(AD18<94%,"Avance suficiente",0))))) -> Avance satisfactorio | AF18: Durante el I trimestre de 2024 se adelantaron reuniones de articulación inteinstitucional con el DNP, el IGAC y la UPRA, apuntando a la exploración de fuentes y metodologías de medición de desigualdad ya existentes. También se adelantarón reuniones con la agencia de cooperación francesa para el desarrollo AFD, para consolidar una medición exploratoria iniciada en 2023 de ingreso disponible para el país, y la construcción de un gini que use esta estimación juntando nuevos socios institucionales. | AG18: 1. Soportes reunión interna DANE_Exploración metodologías medición desigualdad (30Ene2024) 2. Soportes reunión DANE-UPRA_Indicador Informalidad Tenencia de Tierra (26Feb24) 3. Soportes reuión DANE-AFD-MinHacienda_Ingreso Disponible(4Mar24) 3. Cuadro exploración metodologías de medicion de dediguadad DANE | AH18: No aplica | AI18: =IF(AC18<1%,"Sin iniciar",IF(AC18=100%,"Terminado","En gestión")) -> En gestión | AJ18: 18624000 | AK18: 1862000 | AL18: 0 | AM18: 0 | AN18: 0 | AP18: 0 | AQ18: =+IF($P18=0,"No Aplica",IF($AP18/$P18>=100%,100%,$AP18/$P18)) -> 0 | AR18: =IF(ISTEXT(AQ18),"No reporta avance en el periodo",IF(AQ18<=69%,"Avance insuficiente",IF(AQ18>95%,"Avance satisfactorio",IF(AQ18>70%,"Avance suficiente",IF(AQ18<94%,"Avance suficiente",0))))) -> Avance insuficiente | AS18: No se presenta avance para el trimestre | AT18: No se cuenta con evidencias, dado que para el trimestre no hubo avance | AU18: Teniendo en cuenta los movimientos de la planta de personal derivados del desarrollo del concurso de méritos, así como cambios a nivel directivo (Subdirección) fue necesario la reprogramación de mesas interinstitucionales para dar cumplimiento al avaance de la meta programado para el trimestre. | AV18: =IF($AC18<1%,"Sin iniciar",IF($AC18=100%,"Terminado","En gestión")) -> En gestión | AW18: 18624000 | AX18: 1862000 | BC18: 0.4 | BD18: 1 | BE18: Avance satisfactorio | BF18: Estructuración del contenido del reporte sobre viabilidad técnica de los indicadores. Sesiones de trabajo interna para la coordinación de los grupos de trabajo interno. Vinculación de un apoyo temático al equipo de trabajo. Solicitud de acompañamiento por parte de un experto internacional. | BG18: sesion-04-23082024.pptx" FormulacionProyectoAprovechamientoCatastro.pdf" Nota conceptual medidas de desigualdad.pdf" | BH18: No aplica | BI18: En gestión | BJ18: 18624000 | BK18: 13968000 | BL18: 0 | BM18: 0 | BN18: 0 | BP18: 1 | BQ18: =+IF($R18=0,"No Aplica",IF($BP18/$R18>=100%,100%,$BP18/$R18)) -> 1 | BR18: =IF(ISTEXT(BQ18),"No reporta avance en el periodo",IF(BQ18<=69%,"Avance insuficiente",IF(BQ18>95%,"Avance satisfactorio",IF(BQ18>70%,"Avance suficiente",IF(BQ18<94%,"Avance suficiente",0))))) -> Avance satisfactorio | BS18: Se da por finalizada la meta en referencia a la elaboración del documento de viabilidad técnica | BT18: Documento de Viabilidad Técnica https://danegovco.sharepoint.com/:f:/s/DANE_Subdireccion_0365/ErTeVwFrLTNCjjRVfTXFlaMB6Qqq5J_j6xPPBQMFTZBdjA?e=xG8suU | BU18: No aplica | BV18: =IF($BQ18<1%,"Sin iniciar",IF($BQ18=100%,"Terminado","En gestión")) -> Terminado | BW18: 18624000 | BX18: 18624000 | BY18: 0 | BZ18: 0 | CA18: 0
B19: SUB_Subdirección | C19: SUB_3 | D19: L2 - Estadísticas para la visibilización de las inequidades | E19: L2.7_Fortalecimiento de capacidades para la continuidad del Sistema de información de Economía Circular (SIEC). | F19: PEI_Plan Estratégico Institucional | G19: 1 | H19: Reportes de información para economía cultural y creativa y economía circular publicados, realizados | I19: Eficacia | J19: Porcentual | K19: Porcentaje de avance de los reportes de información | L19: Dos reportes de información para economía cultural y creativa, y un reporte para economía circular | M19: 2024-01-16 | N19: 2024-12-30 | O19: 0.15 | P19: 0.35 | Q19: 0.5 | R19: 1 | S19: Si aplica | T19: 18624000 | U19: Producción de información Estadística analizada | V19: Documentos metodológicos | W19: 287613730 | X19: 5_Producción Estadística | Y19: No Aplica | Z19: POL_17: Gestión de la información estadística | AA19: No aplica | AC19: 0.15 | AD19: 1 | AE19: Avance satisfactorio | AF19: Se han realizado las reuniones de planeación estratégica sobre las actividades relacionadas a la publicación de los reportes, además de los asociados a los respectivos sistemas de información tanto para la temática de Economía Circular como Economía Cultural y Creativa. | AG19: 1. Plan de trabajo reporte Economía Cultural y Creativa. 2. Plan de trabajo preliminar para Economía Circular. | AH19: No aplica | AI19: En gestión | AJ19: 18624000 | AK19: 2793600 | AL19: 290000000 | AM19: 285967000 | AN19: 27658099 | AP19: 0.35 | AQ19: 1 | AR19: Avance satisfactorio | AS19: Economía Cultural y Creativa: Se consolidó y construyo el bosquejo del primer reporte del Sector Cultural, Creativo y de Saberes para su publicación el 25 de Julio Economía Circular: Se consolida y concerta el plan de trabajo con las áreas para llevar el control sobre la recepción de información interna y externa, la primera publicación se realizará el 16 de septiembre | AT19: 1. Plan de trabajo concertado para la producción del reporte de Economía Circular. 2. Machote Undécimo Reporte sector Cultural, Creativo y de Saberes | AU19: No aplica | AV19: =IF($AP19<1%,"Sin iniciar",IF($AP19=100%,"Terminado","En gestión")) -> En gestión | AW19: 18624000 | AX19: 5587200 | AY19: 292569734.9 | AZ19: 285967000 | BA19: 112801099 | BC19: 0.5 | BD19: 1 | BE19: Avance satisfactorio | BF19: Economía Cultural y Creativa: Se ajustó el reporte de estadísticas del sector disponiendo un documento para surtir el protocolo de revisión final y publicación; En paralelo se da inicio al relacionamiento con entidades para el segundo reporte del año Economía Circular: Se dispone de la versión preliminar diagramada del reporte, para revisión de los equipos técnicos. | BG19: 1. Undécimo Reporte sector Cultural, Creativo y de Saberes para publicación; junto a sus respectivos anexos. 2. Noveno Reporte de Economía Circular en versión preliminar para revisión y ajustes; junto a sus respectivos anexos. | BH19: No aplica | BI19: En gestión | BJ19: 18624000 | BK19: 13968000 | BL19: 292569734.9 | BM19: 243196899.7 | BN19: 180774165.7 | BP19: 1 | BQ19: 1 | BR19: Avance satisfactorio | BS19: Se da por finalizada la meta. Publicación del Undécimo Reporte del Sector Cultural Creativo y de Saberes así como del Noveno Reporte de Economía Circular en conjunto con sus respectivos anexos estadísticos Igualmente se encuentran elaborados el duodécimo reporte del Sector Cultural Creativo y de Saberes así como el Décimo Reporte de Economía Circular. | BT19: Reportes disponibles en: https://www.dane.gov.co/index.php/estadisticas-por-tema/ambientales/economia-circular/reportes-de-economia-circular https://www.dane.gov.co/index.php/estadisticas-por-tema/cultura/economia-cultural-y-creativa/reportes | BU19: No aplica | BV19: Terminado | BW19: 18624000 | BX19: 18624000 | BY19: 287613730 | BZ19: 280671779.7 | CA19: 254560474.7
B20: SUB_Subdirección | C20: SUB_4 | D20: L3 - Fortalecimiento de la producción estadística a partir de la innovación y la gestión tecnológica. | E20: Aporte directo a la línea estratégica | F20: PEI_Plan Estratégico Institucional | G20: 1 | H20: Definición de criterios de calidad en la estimación de indicadores a partir de muestras probabilísticas. | I20: Eficacia | J20: Porcentual | K20: Porcentaje de avance del documento preliminar | L20: Documento preliminar para la definición de criterios de calidad en la estimación de indicadores a partir de muestras probabilísticas | M20: 2024-01-16 | N20: 2024-12-30 | O20: 0.1 | P20: 0.2 | Q20: 0.4 | R20: 1 | S20: Si aplica | T20: 40248000 | U20: Producción de información Estadística analizada | V20: Documentos metodológicos | X20: 13_Gestión de desarrollo de capacidades e innovación | Y20: No Aplica | Z20: POL_18: Gestión del Conocimiento y la Innovación | AA20: No aplica | AC20: 0.1 | AD20: 1 | AE20: Avance satisfactorio | AF20: Durante el primer trimestre se realizó la revisión de literatura academia, experiencias de otros institutos de estadística y publicaciones de organismos multilaterales para definir los parámetros de calidad de desagregación de dominios a través de encuestas probabilísticas. Además, se realizó la revisión de las publicaciones de DANE para determinar faltantes y cuellos de botella para generar recomendaciones sobre la publicación | AG20: 1. Documento de trabajo con la revisión de literatura y casos publicados en DANE | AH20: No aplica | AI20: En gestión | AJ20: 40248000 | AK20: 4024800 | AP20: 0.2 | AQ20: 1 | AR20: Avance satisfactorio | AS20: Se consolido una primera versión del documento de criterios de calidad. | AT20: Documento borrador vs 1. | AU20: No aplica | AV20: En gestión | AW20: 40248000 | AX20: 8049600 | BC20: 0.4 | BD20: 1 | BE20: Avance satisfactorio | BF20: Avances en la redacción del documento | BG20: Documento borrador vs 2. | BH20: No aplica | BI20: En gestión | BJ20: 40248000 | BK20: 30186000 | BP20: 1 | BQ20: 1 | BR20: Avance satisfactorio | BS20: Se da por finalizada la meta. Se entrega el documento de criterios técnicos para muestras. | BT20: Documento de criterios técnicos https://danegovco.sharepoint.com/:f:/s/DANE_Subdireccion_0365/Ej2YYX6dtAxFi3cTIMVwNmEBW0EbXoinognXy15e2eE1fA?e=EOVhyQ | BU20: No aplica | BV20: Terminado | BW20: 40248000 | BX20: 40248000
B21: SUB_Subdirección | C21: SUB_5 | D21: L2 - Estadísticas para la visibilización de las inequidades | E21: L2.5_Realizar la publicación de mediciones de pobreza | F21: PI_Productos proyecto de inversión | G21: 1 | H21: Aplicación de la metodología de estimación en áreas pequeñas en la producción de estadísticas oficiales - mapa de pobreza monetaria | I21: Eficacia | J21: Porcentual | K21: Porcentaje de avance de desarrollo del documento | L21: Documento metodológica con el desarrollo del modelo de estimación de pobreza a nivel municipal 2022 aplicando la metodología de estimación en áreas pequeñas | M21: 2024-02-01 | N21: 2024-12-30 | O21: 0.1 | P21: 0.4 | Q21: 0.7 | R21: 1 | S21: Si aplica | T21: 60000000 | U21: Prospectiva E Innovación | V21: Documentos de investigación | W21: 143028333.3 | X21: 13_Gestión de desarrollo de capacidades e innovación | Y21: No Aplica | Z21: POL_18: Gestión del Conocimiento y la Innovación | AA21: 2_Seguridad humana y justicia social | AC21: 0.1 | AD21: 1 | AE21: Avance satisfactorio | AF21: Se realizó la estandarización de variables en censo y GEIH para la estimación del modelo de ingreso per cápita y predicción de la pobreza monetaria a través del modelo EBP Bayesiano. Se realizó la estimación de un modelo LOGIT para definir la probabilidad de contar con datos de identificación válidos para la integración de información, teniendo en cuenta que un % de las covariables se construyeron a partir de los cruces con registro administrativo lo que genero 3 escenarios para la estimación del modelo EBP: imputación de variables, exclusión de hogares con problemas de integración y omisión del sesgo de integración. Se ha realizado la estimación de modelos mixtos frecuentistas para validar las diferencias entre escenarios | AG21: 1. Presentación con estimación de modelos 2. Scripts en R con las funciones de estimación | AH21: No aplica | AI21: En gestión | AJ21: 60000000 | AK21: 6000000 | AL21: 172000000 | AM21: 171995000 | AN21: 5921333 | AP21: 0.4 | AQ21: 1 | AR21: Avance satisfactorio | AS21: 1. Agrupación de covariables para reducciòn de costos computacionales. 2. Se explora un modelo logistico bayesiano para la estimaciòn de la probabilidad de la probreza. 3. Mesas de trabajo con CEPAL para el asesoramiento de en la construcción del modelo. | AT21: 1. comprobantes de citacion a reunion 2. presentaciones de trabajo 3. scrips de R | AU21: No aplica | AV21: En gestión | AW21: 60000000 | AX21: 12000000 | AY21: 172500000 | AZ21: 171995000 | BA21: 75949666 | BC21: 0.7 | BD21: 1 | BE21: Avance satisfactorio | BF21: Implementación de infraestructura de nube para la gestión del proyecto y la estimación frecuentista y bayesiana del modelo, atendiendo las necesidades de computo del modelo. Se realizó el benchmarking para el ajuste de las estimaciones para las 23 ciudades del paise, así como las estimaciones para las desagregaciones de sexo, etnia, zona y nivel educativo. | BG21: 03_Estimaciones_frecuentista.R" 04_PostBenchmarking.R" Presentacion_PMON_Octubre.pptx" 01_1_Ajuste_Variables_Geih.R" 02_Modelo_de_unidad.R" | BH21: No aplica | BI21: En gestión | BJ21: 60000000 | BK21: 45000000 | BL21: 172500000 | BM21: 143028333 | BN21: 114386333 | BP21: 1 | BQ21: 1 | BR21: Avance satisfactorio | BS21: Documentos de calculo de pobreza monetaria | BT21: Documentos técnicos de pobreza mediante sae. https://danegovco.sharepoint.com/:f:/s/DANE_Subdireccion_0365/EvvrhLXDyIxEvD3fSpMN3z4BFpFfcRscK-4rqPe-vuvIEg?e=YtkRda | BU21: No aplica | BV21: Terminado | BW21: 60000000 | BX21: 60000000 | BY21: 143028333.3 | BZ21: 143028333 | CA21: 125006333
B22: SUB_Subdirección | C22: SUB_6 | D22: L3_Fortalecimiento_de_la_producción_estadística_a_partir_de_la_innovación_y_la_gestión_tecnológica._ | E22: Aporte_directo_a_la_linea_estratégica | F22: PI_Productos proyecto de inversión | G22: 1 | H22: Documento de investigación producido sobre nuevas metodologías para la producción estadística | I22: Eficiencia | J22: Porcentual | K22: Porcentaje de avance de desarrollo del documento proyectado | L22: Documento que describe la metodología para la estimación de los precios de las bebidas alcohólicas. | M22: 2024-01-02 | N22: 30/12/2024 | O22: 0.1 | P22: 0.4 | Q22: 0.7 | R22: 1 | S22: Si aplica | T22: 60000000 | U22: Prospectiva E Innovación | V22: Documentos de investigación | X22: 5_Producción Estadística | Y22: No Aplica | Z22: POL_18: Gestión del Conocimiento y la Innovación | AA22: No aplica | AC22: 0.2 | AD22: 1 | AE22: =IF(ISTEXT(AD22),"No reporta avance en el periodo",IF(AD22<=69%,"Avance insuficiente",IF(AD22>95%,"Avance satisfactorio",IF(AD22>70%,"Avance suficiente",IF(AD22<94%,"Avance suficiente",0))))) -> Avance satisfactorio | AF22: Se realizó el ajuste de modelos de aprendizaje de máquina y bayesianos para predecir el precio de los vinos con distintas configuraciones con el fin de mejorar las estimaciones ya obtenidas, y organización de todos los códigos para tener las mismas métricas de rendimiento para todos los modelos. | AG22: 1. Literatura: artículos empleados en la sección de revisión de literatura. 2. outline precios de licores: borrador del documento de investigación con las secciones a incluir. 3. PPT "Metodo_XGboost" se presenta el método a emplear para la estimación. | AH22: No aplica | AI22: En gestión | AJ22: 60000000 | AK22: =AJ22*0.2 -> 12000000 | AP22: 0.8 | AQ22: 1 | AR22: Avance satisfactorio | AS22: Se logra un avance del 90% en el cual se terminó la documentación del proceso para obtener y evaluar las estimaciones de los precios de los vinos, en la cual se detalla el paso a paso para replicar la metodología. Adicionalmente, se replicó el proceso para predecir el precio del whisky, en el cual se dejaron de forma más genérica las funciones y códigos para automatizar el flujo de trabajo. | AT22: doc: Documento metodológico del proceso para precios de vinos (Documentación Licores.docx) y presentación de principales resultados obtenidos (Presentacion_Licores.ppt). out: Se encuentran dos carpetas “vinos” y “whisky” que contienen los resultados para cada estos tipos de licores, a su vez, cada carpeta contiene los códigos finales para ejecutar todo el proceso desde la depuración de las bases de datos, análisis descriptivo y análisis de resultados de los modelos. Las subcarpetas que comienzan con el prefijo “vt_” son las que contienen todos los resultados de los modelos, gráficas y métricas de desempeño, en las que se pueden encontrar carpetas individuales que contienen resultados para cada uno de los modelos ensayados. En el caso de la carpeta “vt_full” se tienen resultados usando todas las variables significativas, es decir, incluyendo datos de webscrapping, mientras que en “vt_prod” y “vt_campo” se tienen resultados solamente usando variables que vienen de la base de datos original de licores. scripts: En esta carpeta se encuentran los distintos experimentos realizados para obtener los mejores resultados en cuanto a la predicción del precio de los licores. 02_vino_tienda: Similar a la carpeta anterior, se tiene todo el procesamiento realizado para el enfoque de la predicción de los precios de los vinos, pero en este caso teniendo en cuenta todas las mediciones de un mismo producto como unidad de medida. 03_whisky: Tiene el procesamiento realizado, pero para los whiskies. 00_funciones: Es un código que tiene funciones que se usan en distintas partes del proyecto y que de alguna forma son transversales al mismo. | AU22: No aplica | AV22: En gestión | AW22: $ 60.000.000 | AX22: $ 24.000.000 | BC22: 1 | BD22: 1 | BE22: Avance satisfactorio | BF22: Se finalizó el proyecto de investigación del documento con los hallazgos y se presentaron los resultados al área correspondiente. También se finalizó el modelo para realizar la estimación de precios de cualquier tipo de bebida alcohólica. | BG22: doc: Documento metodológico del proceso para precios de vinos (Documentación Licores.docx) y presentación de principales resultados obtenidos (Presentacion_Licores.ppt). out: Se encuentran dos carpetas “vinos” y “whisky” que contienen los resultados para cada estos tipos de licores, a su vez, cada carpeta contiene los códigos finales para ejecutar todo el proceso desde la depuración de las bases de datos, análisis descriptivo y análisis de resultados de los modelos. Las subcarpetas que comienzan con el prefijo “vt_” son las que contienen todos los resultados de los modelos, gráficas y métricas de desempeño, en las que se pueden encontrar carpetas individuales que contienen resultados para cada uno de los modelos ensayados. En el caso de la carpeta “vt_full” se tienen resultados usando todas las variables significativas, es decir, incluyendo datos de webscrapping, mientras que en “vt_prod” y “vt_campo” se tienen resultados solamente usando variables que vienen de la base de datos original de licores. scripts: En esta carpeta se encuentran los distintos experimentos realizados para obtener los mejores resultados en cuanto a la predicción del precio de los licores. 02_vino_tienda: Similar a la carpeta anterior, se tiene todo el procesamiento realizado para el enfoque de la predicción de los precios de los vinos, pero en este caso teniendo en cuenta todas las mediciones de un mismo producto como unidad de medida. 03_whisky: Tiene el procesamiento realizado, pero para los whiskies. 00_funciones: Es un código que tiene funciones que se usan en distintas partes del proyecto y que de alguna forma son transversales al mismo. | BH22: No aplica | BI22: Terminado | BJ22: 60000000 | BK22: 45000000 | BP22: 1 | BQ22: =+IF($R22=0,"No Aplica",IF($BP22/$BC22>=100%,100%,$BP22/$BC22)) -> 1 | BR22: Avance satisfactorio | BS22: Esta meta fue finalizada en el tercer trimestre. | BT22: Esta meta fue finalizada en el tercer trimestre. | BU22: No aplica | BV22: =IF($BD22<1%,"Sin iniciar",IF($BD22=100%,"Terminado","En gestión")) -> Terminado | BW22: 60000000 | BX22: 60000000
B23: SUB_Subdirección | C23: SUB_7 | D23: L3_Fortalecimiento_de_la_producción_estadística_a_partir_de_la_innovación_y_la_gestión_tecnológica._ | E23: Aporte_directo_a_la_linea_estratégica | F23: PI_Productos proyecto de inversión | G23: 1 | H23: Documento de investigación producido sobre omisión censal | I23: Eficiencia | J23: Porcentual | K23: Porcentaje de avance de desarrollo del documento proyectado | L23: Documento que hace un inventario del estado del arte de las metodologías para estimar la omisión censal. | M23: 2024-01-02 | N23: 30/12/2024 | O23: 0.1 | P23: 0.4 | Q23: 0.7 | R23: 1 | S23: Si aplica | T23: 15000000 | U23: Prospectiva E Innovación | V23: Documentos de investigación | X23: 5_Producción Estadística | Y23: No Aplica | Z23: POL_18: Gestión del Conocimiento y la Innovación | AA23: No aplica | AC23: 0.1 | AD23: 1 | AE23: Avance satisfactorio | AF23: Se presento el método de estimación censal utilizado por la Comisión para el Esclarecimiento de la Verdad, además se investigó el método de vinculación de registros utilizado por la división de censos (implementado en la librería de Pyhton “SPLink”). Se evaluó el uso de WOSviewer para la búsqueda y registro de bibliografía sobre la omisión censal. También se realizó la revisión de literatura sobre omisión censal disponible en las librerías Web of Science y Scopus. | AG23: 1. "Múltiple system": descripción de los métodos de omisión censal explorados. 2. "Exploración método": scripts en R. 3. "Literatura": referencias y artículos utilizados. | AH23: No aplica | AI23: En gestión | AJ23: 20000000 | AK23: =AJ23*0.1 -> 2000000 | AP23: 0.4 | AQ23: 1 | AR23: Avance satisfactorio | AS23: Se avanzó sobre dos documentos metodológicos: uno sobre imputación múltiple (completo) y vinculación de registros (parcial), y otro sobre los tres métodos de estimación de la omisión censal contemplados y aplicables para todos los tipos de censo (parcial). Adicionalmente, se trabajó en manuales paso a paso sobre el proceso de estimación de la omisión sobre una base con datos nacionales (completo) y el de vinculación de registros, para lo que se utilizó un conjunto de datos simulado en donde se aplicaron dichos procesos y cuyo código está documentado. | AT23: “Rev literatura_Omisión Censal”: Registro de la literatura consultada para la investigación de: vinculación de registros, imputación múltiple y omisión censal. “Imputación múltiple y vinculación”: Documento metodológico parcial sobre los procesos de imputación múltiple y vinculación de registros. “Estimación de la omisión censal con LCMCR”: Manual de la estimación de la omisión censal en R con LCMCR. “Metodologías omisión”: Documento metodológico parcial sobre los métodos de omisión censal: dual system, multiple system y LCMCR. “Base_Colombia”: Script en R con el proceso de estimación de la omisión censal por medio de LCMCR paso a paso sobre una base de datos nacionales. “Simulación” (Carpeta): contiene tres archivos: “Documentación”: Descripción de un conjunto de datos simulado para la aplicación de métodos de vinculación de registros y omisión censal. “Caso simulación”. Script en Python con la vinculación de registros sobre el conjunto de datos simulado. “Estimación omisión simulada”: Script en R con la estimación de la omisión censal sobre la base simulada. | AU23: No aplica | AV23: =IF($AP22<1%,"Sin iniciar",IF($AP22=100%,"Terminado","En gestión")) -> En gestión | AW23: $ 20.000.000 | AX23: $ 8.000.000 | BC23: 0.8 | BD23: 1 | BE23: Avance satisfactorio | BF23: En el proyecto de omisión censal se redactó y revisó el documento de investigación preliminar y se están corrigiendo los comentarios, además de corroborar las estimaciones obtenidas. | BG23: Documento preliminar Metodologías Omisión Censal | BH23: No aplica | BI23: En gestión | BJ23: 15000000 | BK23: 11250000 | BP23: 1 | BQ23: 1 | BR23: Avance satisfactorio | BS23: Esta meta fue finalizada en el tercer trimestre. | BT23: Esta meta fue finalizada en el tercer trimestre. | BU23: No aplica | BV23: Terminado | BW23: 15000000 | BX23: 15000000
B24: OCI_Oficina de Control Interno | C24: OCI_1 | D24: L4 - Fortalecimiento de la gestión institucional y el modelo organizacional | E24: L4.4_Implementar una estrategia con enfoque preventivo que permita mejorar la gestión interna de los procesos de la entidad. | F24: PEI_Plan Estratégico Institucional | G24: 1 | H24: Plan Anual de Auditoría Interna - PAAI 2024 aprobado e implementado por el CICCI, incluyendo la prueba piloto del procedimiento de consultorías, en el marco de la estrategia de enfoque preventivo. | I24: Efectividad | J24: Porcentual | K24: Número de informes generados/ Número de Informes PAAI 2024 *100% | L24: Informes finales resultado de la ejecución del PAAI 2024 | M24: 2024-01-02 | N24: 2024-12-31 | O24: 0.2 | P24: 0.4 | Q24: 0.6 | R24: 1 | S24: Si aplica | T24: 612288232.3 | U24: Fortalecimiento de la capacidad institucional para la implementación del modelo de gestión Nacional | V24: Documentos de lineamientos técnicos | W24: 395142886.3 | X24: 4_Sinergia Organizacional | Y24: No Aplica | Z24: POL_19: Control interno | AA24: No aplica | AC24: 0.15 | AD24: =+IF(O24=0,"No Aplica",IF(AC24/O24>=100%,100%,AC24/O24)) -> 0.75 | AE24: =IF(ISTEXT(AD24),"No reporta avance en el periodo",IF(AD24<=69%,"Avance insuficiente",IF(AD24>95%,"Avance satisfactorio",IF(AD24>70%,"Avance suficiente",IF(AD24<94%,"Avance suficiente",0))))) -> Avance suficiente | AF24: Durante el primer trimestre de 2024, con el fin de dar cumplimiento a la ejecución del plan anual de auditoría aprobado para la vigencia, la OCI generó los siguientes informes de seguimiento: - Informe de evaluación independiente del estado del Sistema de Control interno (SCI). - Evaluación Anual del Sistema de Control Interno Contable DANE - FONDANE. - Informe de evaluación Institucional por dependencias. - Informe de Verificación del cumplimiento de la normatividad relacionada con el Derechos de Autor y licenciamiento de software y hardware DANE - FONDANE. - Informe de Certificaciones del 1er Semestre la Actividad Litigiosa de DANE y FONDANE emitidas en el aplicativo EKOGUI. - 1er Informe Trimestral Oct-Dic 2023 de Seguimientos a las medidas de austeridad del gasto público y Plan de Austeridad DANE - FONDANE. - Matriz de Seguimiento Mapa de Riesgos de Corrupción PAAC III Cuatrimestre de 2023 y Seguimiento Mapa de Riesgos Corrupción III Cuatrimestre 2023. - 1er Informe semestral de Seguimiento a Indicadores de Gestión y a las METAS DE GOBIERNO SINERGIA-SISMEG de DANE - FONDANE. | AG24: 1. Informe-SCI-parametrizado_DANE_II_Sem_2023_Final 1.1 Soporte_Envío_Resultados_Dirección_CICCI 2. 20241400003613_INFORME_FINAL_EVALUACIÓN CIC_2023_DANE_FONDANE 2.2 Soporte_Envío_Informe_Dirección_CICCI 2.3 CERTIFICADO DE ENVIO CIC DANE 2023 2.4 CERTIFICADO DE ENVIO CIC FONDANE 2023 3. 20241400005373_Informe_Final_Evaluación_Dependencias 3.1 Soporte_Envio_Informe_Dirección_CICCI 4. 20241400008093_ Informe_final_derechos_autor_DANE_FONDANE 4.1 Transmisión Informe DNDA 5. 20241400005363_Informe_Final_Seguimiento_EKOGUI 5.1 Soporte_envió_Informe_Dirección_CICCI 6. 20241400003793_Informe_Preliminar_Austeridad IV trimestre2023 6.1 Soporte_Envio_Informe_Procesos 7. inf-OCI-SeguimientoPAAC-dic2023 7.1 anex-OCI-MatrizSeguimientoPAAC-sep-dic2023 8. 20241400003263_INFORME_FINAL_IND_GEST_II_SEM_2023 8.1 Soporte_Envío_Informe_Dirección_CICCI 9. 20241400005863_ Informe Preliminar de Seguimiento II semestre 2023 Plan de Acción DANE-FONDANE | AH24: No aplica | AI24: En gestión | AJ24: 641872534.2 | AK24: 160468134 | AL24: 400000000 | AM24: 320219999 | AN24: 29956665.33 | AP24: =24.5/54 -> 0.4537037037 | AQ24: 1 | AR24: Avance satisfactorio | AS24: Durante el segundo trimestre de 2024, con el fin de dar cumplimiento a la ejecución del plan anual de auditoria aprobado para la vigencia, la OCI generó los siguientes informes de seguimiento: - Evaluación del Sistema de Control Interno (SCI) DANE - FONDANE - FURAG. - Verificación del cumplimiento de la normatividad relacionada con el Derechos de Autor y licenciamiento de software y hardware DANE - FONDANE. - Seguimiento a las medidas de austeridad en el gasto público en el Ministerio de Hacienda y Crédito Público y Plan de Austeridad DANE - FONDANE. *Octubre-Diciembre 2023. *Enero-Marzo 2024. - Seguimiento al Plan Anticorrupción y de Atención al Ciudadano PAAC y Riesgos de Corrupcción DANE - FONDANE, 1 cuatrimestre 2024. - Seguimiento Reporte de Empleos de Carrera Administrativa que se encuentra en Vacancia Definitiva. - Ejecución Presupuestal, Reservas presupuestales constituidas en vigencia anterior y Cumplimiento de PAC por Nivel Central y Direcciones Territoriales DANE - FONDANE. *Octubre-Diciembre 2023. *Enero-Marzo 2024. - Informe Final Seguimiento al Plan de Acción (PAI) DANE- FONDANE Segundo semestre 2023. - Segumiento a Planes de Mejoramiento (PM) Externos CGR en SIRECI e Internos DANE - FONDANE. *Octubre-Diciembre 2023. *Enero-Marzo 2024. - Políticas de Seguridad Financiera SIIF DANE - FONDANE. - Seguimiento a la Atención a PQRSD (Oportunidad y Calidad) DANE - FONDANE. Adicionalmente, se ejecutaron las auditorías internas de gestión, a los procesos: Direccionamiento Estratégico, Regulación Estadística y Calidad Estadística. | AT24: 1. Reporte_FURAG_DAFP 1.1 Certificado_DilFURAG_DAFP 2. Informe_Final_Derechos_Autor_Software_2023 2.2 Soporte_Envío_Informe_Final_Derechos_Autor_Software_2023 2.3 Certificado_Transmisión_Informe 3. Informe_Final_Austeridad IV trimestre2023 3.1 Soporte_Envío_Informe_Dirección_CICCI 4. Informe_Final_Austeridad I trimestre2024 4.1 Soporte_Envío_Informe_Dirección_CICCI 5. inf-OCI-SeguimientoPAAC-ICuat2024 5.1 anex-OCI-MatrizSeguimientoPAAC-Abr2024 6. Informe_final_Seguimiento_Reporte_Vacantes2023 6.1 Soporte_envío_Informe_Dirección_CICCI_Vacantes 7. Informe_Definitivo_Seguimiento_Presupuesto_IV_Trimestre_2024 7.1 Soporte_Envío_Informe_Presupuesto_Dirección_CICCI 8. INFORME FINAL SEGUIMIENTO_PPTAL I TRIM_2024 8.1 Soporte_Envío_Informepptal_Dirección_CICCI 9. Informe_Final_Seguimiento_Plan_Acción_II_Semestre_2023 9.1 Anexo_Seguimiento_plandeaccion_II_SEM_2023_OCI_Final 9.2 Soporte_Envío_InformePAI_Dirección_CICCI 10. inf-OCI-PlanMejoramientoInterno-IVtrim2023-Itrim2024 10.1 anex-OCI-PlanMejoramientoInterno-IVtrim2023-Itrm2024 11. inf-OCI-PlanMejoramientoInterno-IVtrim2023-Itrim2024 11.1 anex-OCI-PlanMejoramientoInterno-IVtrim2023-Itrm2024 12. Informe_Final_Politicas_SIIF_2023 12.1 Soporte_Envío_Informe_Dirección_CICCI 13. Informe_Seguimiento_PQRSD-2o.Semestre2023 13.1 Anexo_Seguimiento_PQRSD_II_Sem_2023 13.2 Soporte_envío_InformePQRSD_Dirección_CICCI 14. Informe_Final_de_Auditoría_Direccionamiento_Estrategico- DES 14.1 inf-AuditoriaInternaGestionProcesoDES-2024 14.2 Soporte_Envío_InformeAudiDES_Procesos 15. InformeFinal_Auditoria_Interna_GestionREG_2024 15.1 inf-AuditoriaInternaGestionProcesoGTE-2024 15.2 Soporte_Envío_InformeAudiProceso REG 16. INFORME FINAL DE AUDITORIA_INTERNA_CALIDAD_ESTADÍSTICA 16.1 inf-AuditoriaInternaGestionProcesoCalES-2024 16.2 Soporte_Envió_InformeAudCE_Proceso | AU24: No aplica | AV24: =IF($AP24<1%,"Sin iniciar",IF($AP24=100%,"Terminado","En gestión")) -> En gestión | AW24: $ 640.342.673,36 | AX24: $ 319.406.406,25 | AY24: 403675000.3 | AZ24: 320219999 | BA24: 126256665.3 | BC24: =36/46 -> 0.7826086957 | BD24: 1 | BE24: Avance satisfactorio | BF24: Durante el tercer trimestre de 2024, con el fin de dar cumplimiento a la ejecución del plan anual de auditoria aprobado para la vigencia, la OCI generó los siguientes informes: 1. Certificación Actividad Litigiosa EKOGUI DANE – FONDANE 1 semestre 2024. 2. Seguimiento a las medidas de austeridad en el gasto público y Plan de Austeridad DANE - FONDANE segundo cuatrimestre 2024. 3. Seguimiento al Plan Anticorrupción y de Atención al Ciudadano PAAC y Riesgos de Corrupción DANE - FONDANE y SUIT. 4. Seguimiento a Beneficiario Final vigencia 2023. 5. Seguimiento Ejecución Presupuestal y Reservas presupuestales DANE NC y Direcciones Territoriales con corte a 31 de agosto de 2024 6. Seguimiento a Indicadores de Gestión y a las Metas de Gobierno Sinergia SISMEG de DANE – FONDANE. 7. Informe preliminar de Seguimiento al Plan de Acción (PAI) DANE- FONDANE 1 semestre 2024. 8. Seguimiento a la Gestión del Comité de Conciliación de DANE-FONDANE 1 semestre 2024. 9. Seguimiento a la Atención a PQRSD (Oportunidad y Calidad) DANE – FONDANE 1 semestre 2024. 10. Informe preliminar de Seguimiento a la actualización de información en SIGEP 1 de julio 2023 a 31 de julio 2024. 11. Auditoría al Proceso Comunicación COM. 12. Informe preliminar de Auditoría al Proceso Gestión Contractual GCO. *Cabe anotar que el denominador del indicador tuvo una modificación, teniendo en cuenta el ajuste al PAAI 2024 aprobado en la sesión 81 del CICCI. | BG24: 1. Inf Definitivo EKOGUI 1er SEM 2024 2. inf-OCI-AusteridadDANEyFON-IITrim2024 3. inf-OCI-SeguimientoPAAC-IICuat2024 3.1 anex-OCI-MatrizSeguimientoPAAC-IICuat2024 4. Informe Final Seg. Pago Beneficiario Final Vigencia 2023 5. 2024-31ago-ejecucion-presupuestal-DANE-FONDANE 6. Informe_seg_indicadores_ISem2024 7. Informe Preliminar Seguimiento PAI ISem 2024 8. Informe final de Seguimiento Gestión Comité de Conciliación DANE-FONDANE ISem2024. 9. Informe Final Seguimiento PQRS 1er semestre 2024. 10. Informe_Preliminar_Seguimiento_SIGEP 1 de julio 2023 a 31 de julio 2024 11. inf-AuditoriaInternaGestionProcesoCOM-2024 12. Informe Preliminar de Auditoría Contractual 2024 | BH24: No aplica | BI24: En gestión | BJ24: 612288232.3 | BK24: 467423871 | BL24: 403675000.3 | BM24: 326373331.3 | BN24: 219795608.3 | BP24: =49.7/50 -> 0.994 | BQ24: 0.994 | BR24: Avance satisfactorio | BS24: Durante el cuarto trimestre, la OCI generó los siguientes informes, a partir de la ejecución de los trabajos programados en el PAAI para la vigencia: 1. Informe Final de Auditoría al Proceso de Producción Estadística tomando como muestra el Censo Económico Nacional Urbano CENU. 2. Informe Definitivo De Seguimiento a la Evaluación del Modelo de Seguridad y Privacidad de la Información. 3. Informe Definitivo Seguimiento al Plan de Acción Dane-Fondane Corte I Semestre 2024. 4. Informe Final de seguimiento a la información reportada SIGEP del 1 de julio de 2023 al 31 de julio de 2024 DANE- FONDANE. 5. Informe Definitivo de Verificación al Estado de Cumplimiento del Reporte a Boletín de Deudores Morosos del Estado – (BDME). 6. Informe Definitivo de Arqueo de Caja Menor DANE 2024. 7. Informe Definitivo de Auditoría Interna de Gestión al procedimiento de evaluación y/o valoración de los servidores de la Entidad. 8. Informe Definitivo Auditoría de Gestión al Proceso Gestión Contractual DANE - FONDANE. 9. Informe Final de Seguimiento al Decreto 270 de 2017 - Agenda Regulatoria DANE-FONDANE vigencia 2024. 10. Informe Final detallado de Seguimiento a las directrices de austeridad del gasto. 11. Informe Final Indicadores de Gestión y SINERGIA I Sem 2024. 12. Informe Final PAAC II 2024. 13. Informe Final de Seguimiento a la Rendición de Cuentas 2024. 14. Informe Final de Seguimiento ITA. 15. Informe Final PQRS 1er Semestre 2024. 16. Informe Final de Seguimiento a Acuerdos de Gestión. 17. Reporte de seguimiento a posibles actos de corrupción, irregularidades - secretaría de Transparencia de la Presidencia e identificación de posibles casos de conflicto de intereses DANE – FONDANE- julio - diciembre 2024. 18. Informe Preliminar de Seguimiento a Estados Financieros. | BT24: 1. Informe Final de Auditoría al Proceso de Producción Estadística tomando como muestra el Censo Económico Nacional Urbano CENU. 2. Informe Defintivo De Seguimiento a la Evaluación del Modelo de Seguridad y Privacidad de la Información. 3. Informe Definitivo Seguimiento al Plan de Acción Dane-Fondane Corte I Semestre 2024. 4. Informe Final de seguimiento a la información reportada SIGEP del 1 de julio de 2023 al 31 de julio de 2024 DANE- FONDANE. 5. Informe Definitivo de Verificación al Estado de Cumplimiento del Reporte a Boletín de Deudores Morosos del Estado – (BDME). 6. Informe Definitivo de Arqueo de Caja Menor DANE 2024. 7. Informe Definitivo de Auditoría Interna de Gestión al procedimiento de evaluación y/o valoración de los servidores de la Entidad. 8. Informe Definitivo Auditoría de Gestión al Proceso Gestión Contractual DANE - FONDANE. 9. Informe Final de Seguimiento al Decreto 270 de 2017 - Agenda Regulatoria DANE-FONDANE vigencia 2024. 10. Informe Final detallado de Seguimiento a las directrices de austeridad del gasto. 11. Informe Final Indicadores de Gestión y SINERGIA I Sem 2024. 12. Informe Final PAAC II 2024. 13. Informe Final de Seguimiento a la Rendición de Cuentas 2024. 14. Informe Final de Seguimiento ITA. 15. Informe Final PQRS 1er Semestre 2024. 16. Informe Final de Seguimiento a Acuerdos de Gestión. 17. Reporte de seguimiento a posibles actos de corrupción, irregularidades - secretaría de Transparencia de la Presidencia e identificación de posibles casos de conflicto de intereses DANE – FONDANE- julio - diciembre 2024. 18. Informe Preliminar de Evaluación a Estados Financieros. | BU24: La OCI cumplió con la ejecución de los trabajos y seguimientos programados en el PAAI 2024. Sin embargo, en lo que respecta al "Seguimiento a Estados Financieros", se emitió el informe preliminar el 27 de diciembre de 2024, lo que impidió que la meta alcanzara el 100%, quedando en un 99,4%. Dado que el proceso auditado debía revisar el informe preliminar, la emisión del informe definitivo se retrasó, y el informe final fue expedido el 17 de enero de 2025. | BV24: =IF($BQ24<1%,"Sin iniciar",IF($BQ24=100%,"Terminado","En gestión")) -> En gestión | BW24: 612288232.3 | BX24: 612288232.3 | BY24: 395142886.3 | BZ24: 389119503.3 | CA24: 364372065.3
B25: OSIS_Oficina de Sistemas | C25: OSIS_1 | D25: L4 - Fortalecimiento de la gestión institucional y el modelo organizacional | E25: L4.1_Aumentar el índice de desempeño institucional de las políticas del MIPG | F25: PEI_Plan Estratégico Institucional | G25: 0.89 | H25: Índice de la política de Gobierno Digital igual o superior desarrollado que permita aumentar el desempeño institucional de la entidad en el MIPG | I25: Eficacia | J25: Porcentual | K25: Porcentaje de avance del Resultado del índice de la política de Gobierno Digital 2023 | L25: Publicación del índice de la política de Gobierno Digital 2023 en el instrumento del DAFP | M25: 2024-02-15 | N25: 2024-11-30 | O25: 0.2 | P25: 0.6 | Q25: 0.8 | R25: 1 | S25: Si aplica | T25: 117311368 | U25: Modernización tecnológica para la transformación digital del DANE a nivel Nacional | V25: Documentos para la planeación estratégica en TI | W25: 1143332883 | X25: 11_Gestión de Información y Transformación Digital | Y25: 10_Plan Estratégico de Tecnologías de la Información y las Comunicaciones_PETI | Z25: POL_07: Gobierno Digital | AA25: No aplica | AC25: 0.2 | AD25: 1 | AE25: Avance satisfactorio | AF25: Se formula la hoja de ruta para cerrar las brechas del cuestionario FURAG 2023 con las acciones de mejora por cada uno de los índices de la política de gobierno digital de acuerdo con las indicaciones del MINTIC. | AG25: FURAG - HOJA DE RUTA 2024 20240209.XLSX | AH25: No aplica | AI25: En gestión | AJ25: 116539017 | AK25: 29134754 | AL25: 1151889712 | AM25: 689957299.3 | AN25: 78602498.67 | AP25: 0.6 | AQ25: 1 | AR25: Avance satisfactorio | AS25: _Se trabaja junto con OPLAN y las demás áreas del DANE en la solución del cuestionario de FURAG 2023. _ Se realiza el autodiagnóstico de acuerdo con el tablero de control de gobierno digital de MINTIC y elabora el plan de trabajo para cierre de brechas | AT25: 14_Autodiagnostico_Politica_Gobierno_Digital.xlsx 4_Matriz-de-preguntas-FURAG-2023_VF.xlsx Evidencias Gobierno Digital.url Evidencias Seguridad Digital.url | AU25: No aplica | AV25: En gestión | AW25: 116539017 | AX25: 29134754 | AY25: 1151889712 | AZ25: 746148632.7 | BA25: 290271833 | BC25: 0.903 | BD25: =+IF($Q25=0,"No Aplica",IF($BC25/$Q25>=100%,100%,$BC25/$Q25)) -> 1 | BE25: =IF(ISTEXT(BD25),"No reporta avance en el periodo",IF(BD25<=69%,"Avance insuficiente",IF(BD25>95%,"Avance satisfactorio",IF(BD25>70%,"Avance suficiente",IF(BD25<94%,"Avance suficiente",0))))) -> Avance satisfactorio | BF25: En el marco del cumplimiento de la Política de Gobierno Digital y conforme a los resultados publicados por el DAFP, la entidad logró un puntaje de 90,30. Dicho resultado refleja el esfuerzo continuo de la OSIS para alinearse con los estándares nacionales y promover un gobierno más transparente y eficiente. Se lograron avances significativos en los índices Arquitectura alcanzando un puntaje de 95,1 y Estado Abierto con 92,9. | BG25: Resultados_POLITICA_GOBIERNO_DIGITAL_2023 | BH25: No aplica | BI25: =IF(OR(AV25="En gestión",AV25="Sin iniciar"),IF($BC25>=$G25,"Terminado","En gestión"),"Terminado") -> Terminado | BJ25: $ 117.311.368,00 | BK25: $ 87.983.526,00 | BL25: 1151889712 | BM25: 992532820.7 | BN25: 552039297 | BP25: =(90.3)+(1-90.3) -> 1 | BQ25: 1 | BR25: Avance satisfactorio | BS25: Se realiza el análisis del inverso del resultado de la evaluación de FURAG de la política de Gobierno Digital (X=100%-90,3%) para identificar las acciones que mejorarán el resultado para la medición de la siguiente vigencia, en concordancia con el plan de autodiagnóstico planteado | BT25: *4_Matriz-de-preguntas-FURAG-2023_VF Retroalimentación.xlsx *Resultados Desempeño v2023 (1).xlsx | BU25: No aplica | BV25: Terminado | BW25: 117311368 | BX25: 117311368 | BY25: 1143332883 | BZ25: 1133593348 | CA25: 899848233
B26: OSIS_Oficina de Sistemas | C26: OSIS_2 | D26: L4 - Fortalecimiento de la gestión institucional y el modelo organizacional | E26: L4.3_Realizar la reestructuración organizacional del DANE | F26: PEI_Plan Estratégico Institucional | G26: 1 | H26: Instrumentos documentales actualizados del proceso de Transformación digital y gestión de datos como parte de la reestructuración organizacional del DANE | I26: Eficacia | J26: Porcentual | K26: Porcentaje de avance alcanzado en el proceso de actualización de los instrumentos documentales de la OSIS (Acumulativo) | L26: Publicación de la documentación del proceso de Transformación digital y gestión de la información | M26: 2024-02-15 | N26: 2024-12-15 | O26: 0.25 | P26: 0.5 | Q26: 0.7 | R26: 1 | S26: Si aplica | T26: 51389575 | U26: Modernización tecnológica para la transformación digital del DANE a nivel Nacional | V26: Documentos para la planeación estratégica en TI | X26: 11_Gestión de Información y Transformación Digital | Y26: 10_Plan Estratégico de Tecnologías de la Información y las Comunicaciones_PETI | Z26: POL_07: Gobierno Digital | AA26: No aplica | AC26: =29/105 -> 0.2761904762 | AD26: 1 | AE26: Avance satisfactorio | AF26: En la herramienta ISOLUCION se encuentran en estado de revisión y aprobación 29 documentos normativos asociados al proceso nuevo proceso de GTD frente a 105 documentos normativos del proceso de GTE | AG26: Transferencia documental 20200401.XLS | AH26: No aplica | AI26: En gestión | AJ26: 51389575 | AK26: 12847394 | AP26: 0.7280701754 | AQ26: 1 | AR26: Avance satisfactorio | AS26: En la herramienta ISOLUCION se encuentran en estado de revisión y aprobación 83 documentos normativos asociados al proceso nuevo proceso de GTD frente a 114 documentos normativos que se esperan documentar del proceso GTD | AT26: Transferencia documental TRIM II OSIS.XLSX | AU26: No aplica | AV26: En gestión | AW26: 51389575 | AX26: 12847394 | BC26: =110/114 -> 0.9649122807 | BD26: 1 | BE26: Avance satisfactorio | BF26: En la herramienta ISOLUCION se encuentran en estado de aprobados 110 documentos normativos asociados al nuevo proceso de GTD frente a 114 documentos normativos que se esperan documentar del proceso GTD | BG26: Transferencia documental TRIM III OSIS.XLSX | BH26: No aplica | BI26: =IF(OR(AV26="En gestión",AV26="Sin iniciar"),IF($BC26>=$G26,"Terminado","En gestión"),"Terminado") -> En gestión | BJ26: $ 51.730.152,00 | BK26: $ 38.797.614,00 | BP26: =+(114)/(114) -> 1 | BQ26: 1 | BR26: Avance satisfactorio | BS26: En la herramienta ISOLUCION se encuentran en estado de aprobados 114 documentos normativos asociados al nuevo proceso de GTD frente a 114 documentos normativos que se planearon documentar del proceso GTD | BT26: Transferencia documental TRIM IV OSIS.XLSX | BU26: No aplica | BV26: Terminado | BW26: 51730152 | BX26: 51730152
B27: OSIS_Oficina de Sistemas | C27: OSIS_3 | D27: L3 - Fortalecimiento de la producción estadística a partir de la innovación y la gestión tecnológica. | E27: L3.5_Fortalecer las capacidades tecnológicas que habilitan las operaciones estadísticas y la gestión institucional, asegurando la prestación de los servicios de tecnologías de la información y comunicaciones de la entidad. | F27: PEI_Plan Estratégico Institucional | G27: 0.7 | H27: Plan Estratégico de Tecnologías de la Información (PETI) actualizado para la vigencia 2024 e instrumento de control con la ejecución de la vigencia 2024 de los proyectos del PETI 2023-2026 para fortalecer las capacidades de Gobierno de TI | I27: Eficacia | J27: Porcentual | K27: Porcentaje de ejecución o avance de los proyectos de PETI 2023-2026 en la vigencia 2024 | L27: Plan Estratégico de Tecnologías de la Información 2023-2026 | M27: 2024-01-15 | N27: 2024-12-15 | O27: 0.7 | P27: 0.7 | Q27: 0.7 | R27: 0.7 | S27: Si aplica | T27: 43705577 | U27: Modernización tecnológica para la transformación digital del DANE a nivel Nacional | V27: Documentos para la planeación estratégica en TI | X27: 11_Gestión de Información y Transformación Digital | Y27: 10_Plan Estratégico de Tecnologías de la Información y las Comunicaciones_PETI | Z27: POL_07: Gobierno Digital | AA27: No aplica | AC27: =19.79%/23.94% -> 0.8266499582 | AD27: 1 | AE27: Avance satisfactorio | AF27: El cumplimiento de la vigencia 2024 del PETI presenta un avance real del 19,79% frente al avance proyectado a de 23,94% (SPI = 82,68%) | AG27: Seguimiento 2024 PETI-2023-2026 20240403.XLSX | AH27: No aplica | AI27: En gestión | AJ27: 43705577 | AK27: 10926394 | AP27: 0.8228258161 | AQ27: 1 | AR27: Avance satisfactorio | AS27: El cumplimiento de la vigencia 2024 del PETI presenta un avance real del 33,02% frente al avance proyectado a de 40,13% (SPI = 82,29%) | AT27: Seguimiento 2024 PETI Mayo. PPTX | AU27: No aplica | AV27: En gestión | AW27: 43705577 | AX27: 10926394 | BC27: 0.891 | BD27: 1 | BE27: Avance satisfactorio | BF27: Durante el cumplimiento del periodo 2024, el Plan Estratégico de Tecnologías de la Información (PETI) ha alcanzado un avance real acumulado del 60.90%, en comparación con el 68.08% proyectado. Esto se traduce en un indicador del proyecto (SPI) del 89.11%. | BG27: Seguimiento 2024 PETI Agosto. PPTX Seguimiento 2024 PETI-2023-2026 20240801. XLSX | BH27: No aplica | BI27: =IF(COUNT(AC27,AP27,BC27,#REF!)=COUNT(O27:R27),"Terminado","En gestión") -> En gestión | BJ27: $ 43.995.232,00 | BK27: $ 32.996.424,00 | BP27: =(95.14)/(103) -> 0.9236893204 | BQ27: 1 | BR27: Avance satisfactorio | BS27: El Plan Estratégico de Tecnologías de la Información (PETI), durante el mes de diciembre tuvo un avance real acumulado para la vigencia 2024 del 95.14% frente al 103% ,para un SPI acumulado del 91.85%. Para 2024 se registraron 20 controles de cambio de los siguientes proyectos: • PRY-02 Fortalecimiento del Ecosistema de Gestión de Datos (2 Controles de cambio) • PRY-03 Iniciativas sectoriales (1) • PRY-03-01 Automatización del procesamiento de información para la construcción de estadísticas oficiales (2) • PRY-03-02 Interoperabilidad e intercambio de información geoespacial entre entidades y el territorio (2) • PRY-04 Soporte y mantenimiento de Sistemas de OOEE (1) • PRY-05 Soporte y mantenimiento de Sistemas de Gestión Institucional y direccionamiento estratégico (1) • PRY-05-04 Sentencias judiciales (1) • PRY-07 Sistema de apoyo y gestión a las territoriales (1) • PRY-08 Censo de pescadores (1) • PRY-11 Conteo Intercensal (1) • PRY-13 Sistema de Información de la Gestión Financiera Pública (SIGFP) (2) • PRY-14 Renovación y mantenimiento del Sistema de Información Geoestadística (SIGE) (1) • PRY-15 Registros administrativos (SIGRAC) (2) • PRY-16 Herramientas de datos estadísticos (1) • PRY-19 Gestión de los servicios de infraestructura tecnológica (1) | BT27: *Seguimiento 2024 PETI Diciembre.pptx *Seguimiento 2024 PETI-2023-2026 202412.xlsx | BU27: No aplica | BV27: Terminado | BW27: 43995232 | BX27: 43995232
B28: OSIS_Oficina de Sistemas | C28: OSIS_4 | D28: L3 - Fortalecimiento de la producción estadística a partir de la innovación y la gestión tecnológica. | E28: L3.5_Fortalecer las capacidades tecnológicas que habilitan las operaciones estadísticas y la gestión institucional, asegurando la prestación de los servicios de tecnologías de la información y comunicaciones de la entidad. | F28: PEI_Plan Estratégico Institucional | G28: 0.9 | H28: Plan de anual de adquisiciones de la OSIS ejecutado durante la vigencia 2024 para fortalecer las capacidades Tics que habilitan las operaciones estadísticas y la gestión institucional, asegurando la prestación de los servicios en la entidad. | I28: Eficacia | J28: Porcentual | K28: Número de contratos adjudicados / Número de contratos planeados en la vigencia 2024 | L28: Instrumentos de control de adquisición de bienes y servicios de TICs y de Contratación de personal PSP y AGP | M28: 2024-01-02 | N28: 2024-12-15 | O28: 0.3 | P28: 0.5 | Q28: 0.7 | R28: 1 | S28: Si aplica | T28: 367054216 | U28: Modernización tecnológica para la transformación digital del DANE a nivel Nacional | V28: Documentos para la planeación estratégica en TI | X28: 11_Gestión de Información y Transformación Digital | Y28: 10_Plan Estratégico de Tecnologías de la Información y las Comunicaciones_PETI | Z28: POL_07: Gobierno Digital | AA28: No aplica | AC28: =(7+100)/(19+108) -> 0.842519685 | AD28: 1 | AE28: Avance satisfactorio | AF28: Para el 1er TRIM de 2024, se proyectó realizar la contratación de 127 contratos en total (19 de Bienes y servicios TIC y 108 contratistas) de los cuales se adjudicaron 107 contratos (7 de Bienes y servicios TIC y 100 contratistas) | AG28: 2024 Lista adquisiciones TI OSIS 20240403.XLSX 2024 Lista de Contratistas TI OSIS 20240403.XLSX | AH28: No aplica | AI28: En gestión | AJ28: 366637913 | AK28: 91659478 | AP28: 0.8762886598 | AQ28: 1 | AR28: Avance satisfactorio | AS28: Para el 2do TRIM de 2024, se proyectó realizar la contratación de 194 contratos en total (23 de Bienes y servicios TIC y 171 contratistas) de los cuales se adjudicaron 170 contratos (9 de Bienes y servicios TIC y 161 contratistas) | AT28: Tablero de control BySTI 20240704.XLSX Tablero de control Contratistas TI 20240704.XLSX | AU28: No aplica | AV28: En gestión | AW28: 366637913 | AX28: 91659478 | BC28: =(10+122)/(18+124) -> 0.9295774648 | BD28: 1 | BE28: Avance satisfactorio | BF28: Para el 3er TRIM de 2024, se proyectó realizar la contratación de 142 contratos en total (18 de Bienes y servicios TIC y 124 contratistas) de los cuales se adjudicaron 132 contratos (10 de Bienes y servicios TIC y 122 contratistas) | BG28: Tablero de control BySTI 20241004.XLSX Tablero de control Contratistas TI 20241004.XLSX | BH28: No aplica | BI28: =IF(OR(AV28="En gestión",AV28="Sin iniciar"),IF($BC28>=$G28,"Terminado","En gestión"),"Terminado") -> Terminado | BJ28: $ 367.054.216,00 | BK28: $ 275.290.662,00 | BP28: =+(22+132)/(22+132) -> 1 | BQ28: 1 | BR28: Avance satisfactorio | BS28: Para el 4to TRIM de 2024, se proyectó realizar la contratación de 219 contratos en total (27 de Bienes y servicios TIC y 192 contratistas) los cuales fueron asignados en su totalidad | BT28: BASE PROGRAMACIÓN SPGI 20241230_TOTAL DANE_FONDANE.xlsx | BU28: No aplica | BV28: Terminado | BW28: 367054216 | BX28: 367054216
B29: OSIS_Oficina de Sistemas | C29: OSIS_5 | D29: L3 - Fortalecimiento de la producción estadística a partir de la innovación y la gestión tecnológica. | E29: L3.5_Fortalecer las capacidades tecnológicas que habilitan las operaciones estadísticas y la gestión institucional, asegurando la prestación de los servicios de tecnologías de la información y comunicaciones de la entidad. | F29: PEI_Plan Estratégico Institucional | G29: 1 | H29: Proyectos de Automatización habilitados para el fortalecimiento de los procesos de producción que apoyen a las metas y objetivos de la gestión estadística de las direcciones técnicas del DANE | I29: Eficacia | J29: Porcentual | K29: Porcentaje de avance de los documentos | L29: 1. Un (1) documento del proyecto con el cumplimiento de las diferentes etapas de la automatización requerida. 2. Documentación del proyecto en la herramienta - GITLAB | M29: 2024-02-15 | N29: 2024-12-15 | O29: 0.25 | P29: 0.5 | Q29: 0.75 | R29: 1 | S29: Si aplica | T29: 18417408 | U29: Modernización tecnológica para la transformación digital del DANE a nivel Nacional | V29: Servicios de información actualizados | W29: 3485766209 | X29: 10_Gestión de Información y documental | Y29: 10_Plan Estratégico de Tecnologías de la Información y las Comunicaciones_PETI | Z29: POL_07: Gobierno Digital | AA29: No aplica | AC29: 0.25 | AD29: 1 | AE29: Avance satisfactorio | AF29: Se inicio la aplicación de las diferentes etapas de la automatización de los proyectos solicitados por las áreas misionales, los cuales se encuentran documentos tanto en el informe de cumplimiento como en la herramienta GITLAB | AG29: Cumplimiento de las diferentes etapas de la automatización Documentación del proyecto en la herramienta - GITLAB | AH29: No aplica | AI29: En gestión | AJ29: 13722115 | AK29: 3430529 | AL29: 3504500558 | AM29: 3340663250 | AN29: 342644881 | AP29: 0.5 | AQ29: 1 | AR29: Avance satisfactorio | AS29: Se continua con la aplicación de las diferentes etapas de la automatización de los proyectos solicitados por las áreas misionales, los cuales se encuentran documentos tanto en el informe de cumplimiento como en la herramienta GITLAB | AT29: 1. cumplimiento de las diferentes etapas de la automatización 2. Documentación del proyecto en la herramienta - GITLAB | AU29: No aplica | AV29: En gestión | AW29: 13722115 | AX29: 3430529 | AY29: 3504500558 | AZ29: 3420544800 | BA29: 1253396850 | BC29: 0.75 | BD29: 1 | BE29: Avance satisfactorio | BF29: Se avanza de la aplicación de las diferentes etapas de la automatización de los proyectos solicitados por las áreas misionales, los cuales se encuentran documentos tanto en el informe de cumplimiento como en la herramienta GITLAB | BG29: 1. cumplimiento de las diferentes etapas de la automatización 2. Documentación del proyecto en la herramienta - GITLAB | BH29: No aplica | BI29: =IF(OR(AV29="En gestión",AV29="Sin iniciar"),IF($BC29>=$G29,"Terminado","En gestión"),"Terminado") -> En gestión | BJ29: $ 18.417.408,00 | BK29: $ 13.813.056,00 | BL29: 3504500558 | BM29: 3500754800 | BN29: 2183798443 | BP29: 1 | BQ29: 1 | BR29: Avance satisfactorio | BS29: Se cumple al 100% del proyecto de Automatización habilitados para el fortalecimiento de los procesos de producción que apoyen a las metas y objetivos de la gestión estadística de las direcciones técnicas del DANE | BT29: Carpeta 1. cumplimiento de las diferentes etapas de la automatización con el documento: OSIS_META1_DOCUMENTO_PROYECTOS_AUTOMATIZACION_2024_ FINAL Carpeta 2. Documentación del proyecto en la herramienta - GITLAB con los pdf del CARGUE GITLAB- DICIEMBRE DEFINITIVO | BU29: No aplica | BV29: Terminado | BW29: 18417408 | BX29: 18417408 | BY29: 3485766209 | BZ29: 3432471652 | CA29: 3174377564
B30: OSIS_Oficina de Sistemas | C30: OSIS_6 | D30: L3 - Fortalecimiento de la producción estadística a partir de la innovación y la gestión tecnológica. | E30: L3.5_Fortalecer las capacidades tecnológicas que habilitan las operaciones estadísticas y la gestión institucional, asegurando la prestación de los servicios de tecnologías de la información y comunicaciones de la entidad. | F30: PEI_Plan Estratégico Institucional | G30: 1 | H30: Requerimientos de gestión de datos atendidos a demanda para el fortalecimiento de procesos de producción de información de OOEE y RRAA del DANE. | I30: Eficacia | J30: Porcentual | K30: Total de solicitudes atendidas en el trimestre / Total de solicitudes recibidas en el trimestre *100% | L30: 1. Requerimientos atendidos a demanda de Almacenamiento, custodia, disposición y automatización de datos. 2. Requerimientos atendidos a demanda de bodega de datos, SDMX, GEIH y otras encuestas . 3. Requerimientos atendidos a demanda de interoperabilidad 4. Requerimientos atendidos a demanda de datos maestros | M30: 2024-01-15 | N30: 2024-12-30 | O30: 1 | P30: 1 | Q30: 1 | R30: 1 | S30: Si aplica | T30: 269763110 | U30: Modernización tecnológica para la transformación digital del DANE a nivel Nacional | V30: Servicios de información actualizados | X30: 10_Gestión de Información y documental | Y30: 10_Plan Estratégico de Tecnologías de la Información y las Comunicaciones_PETI | Z30: POL_07: Gobierno Digital | AA30: No aplica | AC30: 1 | AD30: 1 | AE30: Avance satisfactorio | AF30: En el primer trimestre se atendieron los requerimientos de gestión de datos: 1. Requerimientos atendidos a demanda de Almacenamiento, custodia, disposición y automatización de datos. 39 Solicitudes atendidas de 39 solicitudes recibidas 2. Requerimientos atendidos a demanda de bodega de datos, SDMX, GEIH y otras encuestas . 159 solicitudes atendidas de 159 solicitudes recibidas 3. Requerimientos atendidos a demanda de interoperabilidad. 35 Solicitudes atendidas de 35 solicitudes recibidas 4. Requerimientos atendidos a demanda de datos maestros. 0 Solicitudes recibidas Total de solicitudes atendidas en el trimestre: Se recibieron 233 solicitudes Registradas en 122 Casos GLPI y atendidas 233 solicitudes | AG30: INFORME ATENCION A SOLICITUDES ENERO 2024 GLPI ENERO 2024 INFORME ATENCION A SOLICITUDES FEBRERO 2024 GLPI FEBRERO 2024 INFORME ATENCION A SOLICITUDES MARZO 2024 GLPI MARZO 2024 | AH30: No aplica | AI30: Terminado | AJ30: 247073110 | AK30: 61768277 | AP30: 1 | AQ30: 1 | AR30: Avance satisfactorio | AS30: En el segundo trimestre se atendieron los requerimientos de gestión de datos: 1. Requerimientos atendidos a demanda de Almacenamiento, custodia, disposición y automatización de datos. 94 Solicitudes atendidas de 94solicitudes recibidas 2. Requerimientos atendidos a demanda de bodega de datos, SDMX, GEIH y otras encuestas . 190 solicitudes atendidas de 190 solicitudes recibidas 3. Requerimientos atendidos a demanda de interoperabilidad. 79 Solicitudes atendidas de 79 solicitudes recibidas 4. Requerimientos atendidos a demanda de datos maestros. 0 Solicitudes recibidas Total de solicitudes atendidas en el trimestre: Se recibieron 363 solicitudes Registradas en 226 Casos GLPI | AT30: ATENCION A SOLICITUDES ABRIL ATENCION A SOLICITUDES JUNIO ATENCION A SOLICITUDES MAYO | AU30: No aplica | AV30: Terminado | AW30: 247073110 | AX30: 61768277 | BC30: =408/408 -> 1 | BD30: 1 | BE30: Avance satisfactorio | BF30: En el tercer trimestre se | los requerimientos de gestión de datos: 1. Requerimientos atendidos a demanda de almacenamiento, custodia, disposición y automatización de datos. 94 solicitudes atendidas de 94 solicitudes recibidas 2. Requerimientos atendidos a demanda de bodega de datos, SDMX, GEIH y otras encuestas. 276 solicitudes atendidas de 276 solicitudes recibidas 3. Requerimientos atendidos a demanda de interoperabilidad. 38 solicitudes atendidas de 38 solicitudes recibidas 4. Requerimientos atendidos a demanda de datos maestros. 0 solicitudes recibidas Total de solicitudes atendidas en el trimestre: Se recibieron 408 solicitudes Registradas en 187 Casos GLPI | BG30: Atención a solicitudes JULIO Atención a solicitudes AGOSTO Atención a solicitudes SEPTIEMBRE | BH30: No aplica | BI30: Terminado | BJ30: $ 253.184.809,55 | BK30: $ 189.856.081,55 | BP30: =(491/491)*100% -> 1 | BQ30: 1 | BR30: Avance satisfactorio | BS30: Total de solicitudes recibida y atendidas: 491. Se atiende al 100% Requerimientos de gestión de datos atendidos a demanda para el fortalecimiento de procesos de producción de información de OOEE y RRAA del DANE. | BT30: Carpeta Atención a solicitudes DICIEMBRE con el reporte GLPi Carpeta Atención a solicitudes NOVIEMBRE con el reporte GLPi Carpeta Atención a solicitudes OCTUBRE con el reporte GLPi | BU30: No aplica | BV30: Terminado | BW30: 269763110 | BX30: 269763110
B31: OSIS_Oficina de Sistemas | C31: OSIS_7 | D31: L3 - Fortalecimiento de la producción estadística a partir de la innovación y la gestión tecnológica. | E31: L3.5_Fortalecer las capacidades tecnológicas que habilitan las operaciones estadísticas y la gestión institucional, asegurando la prestación de los servicios de tecnologías de la información y comunicaciones de la entidad. | F31: PEI_Plan Estratégico Institucional | G31: 1 | H31: Proyectos de interoperabilidad para el fortalecimiento interinstitucional en su componente del servicio ciudadano de interoperabilidad en el marco de la política de Gobierno digital. | I31: Eficacia | J31: Porcentual | K31: Porcentaje de avance trimestral acumulado respecto a la meta | L31: 1. Dos (2) servicio de difusión de indicadores de la temática económica a través de mecanismos tecnológicos de interoperabilidad que fortalezcan los canales de difusión estadística del DANE implementado. 2. Dos (2) servicio de difusión de indicadores de la temática sociodemográfica a través de mecanismos tecnológicos de interoperabilidad que fortalezcan los canales de difusión estadística del DANE implementado 3. Un (1) servicio de interoperabilidad de información espacial sociodemográfica a través de mecanismos tecnológicos que fortalezcan los canales de difusión estadística del DANE implementado | M31: 2024-02-15 | N31: 2024-12-15 | O31: 0.25 | P31: 0.5 | Q31: 0.75 | R31: 1 | S31: Si aplica | T31: 18417408 | U31: Modernización tecnológica para la transformación digital del DANE a nivel Nacional | V31: Servicios de información actualizados | X31: 10_Gestión de Información y documental | Y31: 10_Plan Estratégico de Tecnologías de la Información y las Comunicaciones_PETI | Z31: POL_07: Gobierno Digital | AA31: No aplica | AC31: 0.25 | AD31: 1 | AE31: Avance satisfactorio | AF31: Se avanza al 90% de la ejecución del producto (Especificación técnica para consumo de información): 1. Dos (2) servicios de difusión de indicadores de la temática económica a través de mecanismos tecnológicos de interoperabilidad que fortalezcan los canales de difusión estadística del DANE implementado. | AG31: Servicio de difusión de indicadores de la temática económica_ConsumoEstadisticas PIB Servicio de difusión de indicadores de la temática económica_ConsumoEstadisticasIPC 2024 | AH31: No aplica | AI31: En gestión | AJ31: 13722115 | AK31: 3430529 | AP31: 0.5 | AQ31: 1 | AR31: Avance satisfactorio | AS31: Se finaliza el Servicio de difusión de indicadores de la temática económica_ConsumoEstadisticas PIB y el Servicio de difusión de indicadores de la temática | AT31: Servicio IPP-IPC Servicio Web PIB SDMX | AU31: No aplica | AV31: En gestión | AW31: 13722115 | AX31: 3430529 | BC31: 0.75 | BD31: 1 | BE31: Avance satisfactorio | BF31: Se realizaron Dos (2) servicios de difusión de indicadores de la temática sociodemográfica a través de mecanismos tecnológicos de interoperabilidad que fortalezcan los canales de difusión estadística del DANE implementado | BG31: Demográficas - Producto final ELIC - avance SINIC - avance | BH31: No aplica | BI31: =IF(OR(AV31="En gestión",AV31="Sin iniciar"),IF($BC31>=$G31,"Terminado","En gestión"),"Terminado") -> En gestión | BJ31: $ 18.417.408,00 | BK31: $ 13.813.056,00 | BP31: 1 | BQ31: 1 | BR31: Avance satisfactorio | BS31: Se cumple al 100% del Proyectos de interoperabilidad para el fortalecimiento interinstitucional en su componente del servicio ciudadano de interoperabilidad en el marco de la política de Gobierno digital. | BT31: Carpeta Demograficas con pdf de Servicio ETL ELIC y Servicio SINIC Carpeta Economicas con pdf de Micro servicio IPC y Micro servicio PIB | BU31: No aplica | BV31: Terminado | BW31: 18417408 | BX31: 18417408
B32: OSIS_Oficina de Sistemas | C32: OSIS_8 | D32: L3 - Fortalecimiento de la producción estadística a partir de la innovación y la gestión tecnológica. | E32: L3.5_Fortalecer las capacidades tecnológicas que habilitan las operaciones estadísticas y la gestión institucional, asegurando la prestación de los servicios de tecnologías de la información y comunicaciones de la entidad. | F32: PEI_Plan Estratégico Institucional | G32: 1 | H32: Modernización del componente tecnológico XROAD del DANE a la versión 7.22 en el marco de la política de Gobierno digital, como apoyo para la recolección y difusión de las operaciones estadísticas del DANE | I32: Eficacia | J32: Porcentual | K32: Porcentaje de avance trimestral acumulado respecto a la meta | L32: Un mecanismo de aseguramiento de los servicios de interoperabilidad de la PDI para los proyectos de Interoperabilidad del DANE XRoad en QA version7.22 Un (1) mecanismo de aseguramiento de los servicios de interoperabilidad de la PDI para los proyectos de Interoperabilidad del DANE XRoad en pre producción version7.22 Un (1) mecanismo de aseguramiento de los servicios de interoperabilidad de la PDI para los proyectos de Interoperabilidad del DANE XRoad en producción version7.22 | M32: 2024-02-15 | N32: 2024-12-15 | O32: 0.25 | P32: 0.5 | Q32: 0.75 | R32: 1 | S32: Si aplica | T32: 18417408 | U32: Modernización tecnológica para la transformación digital del DANE a nivel Nacional | V32: Servicios de información actualizados | X32: 10_Gestión de Información y documental | Y32: 10_Plan Estratégico de Tecnologías de la Información y las Comunicaciones_PETI | Z32: POL_07: Gobierno Digital | AA32: No aplica | AC32: 0.25 | AD32: 1 | AE32: Avance satisfactorio | AF32: Se da inicio a la implementación del mecanismo de aseguramiento de los servicios de interoperabilidad de la PDI para los proyectos de Interoperabilidad del DANE XRoad en QA para la versión 7.22 | AG32: Actualización X-Road Ambiente QA | AH32: No aplica | AI32: En gestión | AJ32: 13722115 | AK32: 3430529 | AP32: 0.5 | AQ32: 1 | AR32: Avance satisfactorio | AS32: Se finaliza la implementación del mecanismo de aseguramiento de los servicios de interoperabilidad de la PDI para los proyectos de Interoperabilidad del DANE XRoad en QA para la versión 7.22 y se da inicio a la implementación en el ambiente de pre-producción | AT32: Actualización X-Road Ambiente QA Actualización X-Road Ambiente PRE - avance | AU32: No aplica | AV32: En gestión | AW32: 13722115 | AX32: 3430529 | BC32: 0.75 | BD32: 1 | BE32: Avance satisfactorio | BF32: Se finaliza la implementación del mecanismo de aseguramiento de los servicios de interoperabilidad de la PDI para los proyectos de Interoperabilidad del DANE XRoad en pre producción version7.22 y se da inicio a la etapa de producción | BG32: Actualización X-Road Ambiente Pre - producción - Finalizado | BH32: No aplica | BI32: =IF(OR(AV32="En gestión",AV32="Sin iniciar"),IF($BC32>=$G32,"Terminado","En gestión"),"Terminado") -> En gestión | BJ32: $ 18.417.408,00 | BK32: $ 13.813.056,00 | BP32: 1 | BQ32: 1 | BR32: Avance satisfactorio | BS32: Se realizó al 100% de la Modernización del componente tecnológico XROAD del DANE a la versión 7.22 en el marco de la política de Gobierno digital, como apoyo para la recolección y difusión de las operaciones estadísticas del DANE | BT32: Actualización X-Road 7.22 Ambiente PRO FINAL.pdf | BU32: No aplica | BV32: Terminado | BW32: 18417408 | BX32: 18417408
B33: OSIS_Oficina de Sistemas | C33: OSIS_9 | D33: L3 - Fortalecimiento de la producción estadística a partir de la innovación y la gestión tecnológica. | E33: L3.5_Fortalecer las capacidades tecnológicas que habilitan las operaciones estadísticas y la gestión institucional, asegurando la prestación de los servicios de tecnologías de la información y comunicaciones de la entidad. | F33: PEI_Plan Estratégico Institucional | G33: 1 | H33: Lago de datos local implementado para el fortalecimiento de la producción estadística a partir de la innovación y la gestión tecnología del DANE. | I33: Eficacia | J33: Porcentual | K33: Porcentaje de avance trimestral acumulado respecto a la meta | L33: 1. Lago de datos configurado en producción. 2. Un (1) Documento de pruebas de desempeño. | M33: 2024-05-01 | N33: 2024-12-15 | O33: 0 | P33: 0.33 | Q33: 0.66 | R33: 1 | S33: Si aplica | T33: 18417408 | U33: Modernización tecnológica para la transformación digital del DANE a nivel Nacional | V33: Servicios de información actualizados | X33: 10_Gestión de Información y documental | Y33: 10_Plan Estratégico de Tecnologías de la Información y las Comunicaciones_PETI | Z33: POL_07: Gobierno Digital | AA33: No aplica | AC33: 0 | AD33: No Aplica | AE33: No reporta avance en el periodo | AF33: No aplica | AG33: No aplica | AH33: No aplica | AI33: Sin iniciar | AJ33: 13722115 | AK33: 3430529 | AP33: 0.33 | AQ33: 1 | AR33: Avance satisfactorio | AS33: Se inicia la implementación del Lago de datos local para el fortalecimiento de la producción estadística a partir de la innovación y la gestión tecnologíca del DANE. | AT33: Documento de Arquitectura de Solución para el lago de datos On Premise - V3.5 | AU33: No aplica | AV33: En gestión | AW33: 13722115 | AX33: 3430529 | BC33: 0.66 | BD33: 1 | BE33: Avance satisfactorio | BF33: Se avanza en la implementación del lago de datos local para el fortalecimiento de la producción estadística a partir de la innovación y la gestión tecnológica del DANE. | BG33: Resultados_Terasort Resultados_TestDFSIO | BH33: No aplica | BI33: =IF(OR(AV33="En gestión",AV33="Sin iniciar"),IF($BC33>=$G33,"Terminado","En gestión"),"Terminado") -> En gestión | BJ33: $ 18.417.408,00 | BK33: $ 13.813.056,00 | BP33: 1 | BQ33: 1 | BR33: Avance satisfactorio | BS33: Se cumple al 100% del Lago de datos local implementado para el fortalecimiento de la producción estadística a partir de la innovación y la gestión tecnológica del DANE. | BT33: Pruebas de rendimiento para el lago de datos On Premise-V1.0 Documento de Arquitectura de Solución para el lago de datos On Premise - V3.5 | BU33: No aplica | BV33: Terminado | BW33: 18417408 | BX33: 18417408
B34: OSIS_Oficina de Sistemas | C34: OSIS_12 | D34: L3 - Fortalecimiento de la producción estadística a partir de la innovación y la gestión tecnológica. | E34: L3.5_Fortalecer las capacidades tecnológicas que habilitan las operaciones estadísticas y la gestión institucional, asegurando la prestación de los servicios de tecnologías de la información y comunicaciones de la entidad. | F34: PEI_Plan Estratégico Institucional | G34: 1 | H34: Dominio de arquitectura de información apropiado | I34: Eficacia | J34: Porcentual | K34: Porcentaje de avance trimestral acumulado respecto a la meta | L34: Un Catálogo de información para RRAA Un Catálogo de flujos de información RRAA Un Catálogo de Intercambio de información RRAA Un Diagrama del Modelo de Información RRAA Un Diagrama de flujos de información RRAA | M34: 2024-02-15 | N34: 2024-12-15 | O34: 0.25 | P34: 0.5 | Q34: 0.75 | R34: 1 | S34: Si aplica | T34: 18417408 | U34: Modernización tecnológica para la transformación digital del DANE a nivel Nacional | V34: Servicios de información actualizados | X34: 11_Gestión de Información y Transformación Digital | Y34: 10_Plan Estratégico de Tecnologías de la Información y las Comunicaciones_PETI | Z34: POL_08:Seguridad Digital | AA34: No aplica | AC34: 0.25 | AD34: 1 | AE34: Avance satisfactorio | AF34: Se avanza en la construcción del documento de Dominio de arquitectura de información y el flujo de información | AG34: CRONOGRAMA - APROPIACIÓN DOMINIO DE ARQUITECTURA DE INFORMACIÓN Catálogo_Componentes_Informacion | AH34: No aplica | AI34: En gestión | AJ34: 13722115 | AK34: 3430529 | AP34: 0.5 | AQ34: 1 | AR34: Avance satisfactorio | AS34: Se avanza en la construcción del la documentación del Dominio de arquitectura de informacion y se finaliza el producto Catálogo de información y el catalogo del flujo de información. | AT34: Catálogo_Información_RRAA Catálogo_FlujoInformación_RRAA | AU34: No aplica | AV34: En gestión | AW34: 13722115 | AX34: 3430529 | BC34: 0.75 | BD34: 1 | BE34: Avance satisfactorio | BF34: Se avanza en la apropiación dominio de arquitectura de información generando los modelos de información | BG34: Modelo de Información - flujo Modelo de Información | BH34: No aplica | BI34: =IF(OR(AV34="En gestión",AV34="Sin iniciar"),IF($BC34>=$G34,"Terminado","En gestión"),"Terminado") -> En gestión | BJ34: 18417408 | BK34: 13813056 | BP34: 1 | BQ34: 1 | BR34: Avance satisfactorio | BS34: Se cumple al 100% dominio de arquitectura de información apropiado | BT34: CATALOGO DE COMPONENTES con los atributos de datos, de información, de servicios de información y flujo de información | BU34: No aplica | BV34: Terminado | BW34: 18417408 | BX34: 18417408
B35: OSIS_Oficina de Sistemas | C35: OSIS_13 | D35: L3 - Fortalecimiento de la producción estadística a partir de la innovación y la gestión tecnológica. | E35: L3.6_Mejorar la seguridad digital del DANE a través del fortalecimiento de las capacidades de ciberseguridad para asegurar la protección de la información misional e institucional | F35: PEI_Plan Estratégico Institucional | G35: 1 | H35: Controles en los componentes de seguridad informática, administrados, actualizados para potenciar la estrategia de confidencialidad, integridad y disponibilidad de la información de la Entidad. a demanda | I35: Eficiencia | J35: Porcentual | K35: Número de eventos mitigados en el trimestre/ Sumatoria del número de eventos de seguridad informática identificados en el trimestre * 100% | L35: Informe sobre los eventos mitigados mediante las soluciones de seguridad informática. | M35: 2024-01-15 | N35: 2024-12-31 | O35: 1 | P35: 1 | Q35: 1 | R35: 1 | S35: Si aplica | T35: 105177882 | U35: Modernización tecnológica para la transformación digital del DANE a nivel Nacional | V35: Servicios tecnológicos | W35: 1.09039186e+10 | X35: 11_Gestión de Información y Transformación Digital | Y35: 10_Plan Estratégico de Tecnologías de la Información y las Comunicaciones_PETI | Z35: POL_07: Gobierno Digital | AA35: No aplica | AC35: =(18025+102+11+49)/(18025+102+11+49) -> 1 | AD35: 1 | AE35: Avance satisfactorio | AF35: 1. Office365: (18.025/18.025) -Revisión de correos maliciosos y archivos en cuarentena -Seguimiento y revisión a la plataforma de seguridad. 2. Antivirus : 102/102 Durante el primer trimestre se realizó seguimiento a territoriales de los productos de protección antivirus e investigación a los eventos reportados por el SOC(Security Operations Center ) Adicionalmente bloqueos de indicadores de compromisos hash. 3. EDR: 11/11 Durante el primer trimestre y de acuerdo a los eventos evidenciado en la herramienta de monitoreo EDR se realiza investigación con herramientas externas y se mitigan los archivos maliciosos. 4. Seguridad Perimetral: 49/49 -Durante el trimestre 1 se lograron resolver las alertas reportadas por el SOC (Security Operations Center ) que monitorea la infraestructura tecnológica del DANE. | AG35: 1. Office365: (18.025/18.025) Phish-List_2024-01-01_2024-01-16_UTC / Phish-List_2024-01-16_2024-02-01_UTC / Phish-List_2024-02-01_2024-02-16_UTC / Phish-List_2024-02-16_2024-03-01_UTC / Phish-List_2024-03-01_2024-03-16_UTC / Phish-List_2024-03-16_2024-04-01_UTC 2. Antivirus: -PAI-2024-ENERO PAI-2024-FEBRERO Antivirus-Marzo-PAI-2024 3.EDR: Informe GESTION EDR-Enero PAI-2024-EDR-Febrero Informe EDR_Marzo.2024 4. Seguridad Perimetral: -2024 - 3 - Evidencia - SOC -2024 - 2 - Evidencia - SOC -2024 - 1 - Evidencia - SOC | AH35: No aplica | AI35: Terminado | AJ35: 104485412 | AK35: 26121353 | AL35: 1.084913763e+10 | AM35: 9225135565 | AN35: 439363103.6 | AP35: 1 | AQ35: 1 | AR35: Avance satisfactorio | AS35: 1. Antivirus: 52/52 Durante el 2do trimestre se evidencian eventos maliciosos los cuales fueron eliminados por el antivirus Trellix y tomadas acciones frente a los equipos de cómputo con dichos hallazgos. 2. EDR: 16/16 Durante el 2do trimestre se evidencian en la herramienta de monitoreo EDR 16 eventos sospechosos, a los cuales se les realiza investigación con herramientas externas y se mitigan los archivos maliciosos. 3. Office365: (13.476/13.476) Para el segundo trimestre se continuó con la gestión sobre la plataforma de herramientas colaborativas realizando las siguientes acciones: -Revisión de correos maliciosos y archivos en cuarentena -Seguimiento y revisión a la plataforma de seguridad. 4. Seguridad Perimetral: 102/102 Durante el 2° trimestre se lograron resolver las alertas reportadas por el SOC (Security Operations Center ) y las alertas identificadas por los dispositivos de seguridad perimetral que monitorean la infraestructura tecnológica del DANE. | AT35: Antivirus 1. Abril-ANTIVIRUS_Eventos Mitigados Mediante las Soluciones de Seguridad Informática. 2.Mayo-ANTIVIRUS_Eventos Mitigados Mediante las Soluciones de Seguridad Informática. 3.Junio-ANTIVIRUS_Eventos Mitigados Mediante las Soluciones de Seguridad Informática EDR: 1.Abril-EDR_Eventos Mitigados Mediante las Soluciones de Seguridad Informática. 2.Mayo-EDR_Eventos Mitigados Mediante las Soluciones de Seguridad Informática 3.Junio-EDR_Eventos Mitigados Mediante las Soluciones de Seguridad Informática 1. Office365: (13.476/13.476) 04 SEGURIDAD OFFICE - INFORME ABRIL 01-30 05 SEGURIDAD OFFICE - INFORME MAYO 01-31 06 SEGURIDAD OFFICE - INFORME JUNIO 01-30 4. Seguridad Perimetral: 102/102 -Informe Seguridad Perimetral Abril 2024 -Informe Seguridad Perimetral Mayo 2024 -Informe Seguridad Perimetral Junio 2024 | AU35: No aplica | AV35: Terminado | AW35: 104485412 | AX35: 26121353 | AY35: 1.084913763e+10 | AZ35: 9383506867 | BA35: 6407383659 | BC35: =(8318+33+7608+197)/(8318+33+7608+197) -> 1 | BD35: 1 | BE35: Avance satisfactorio | BF35: 1. Antivirus: 8.318/8.318 Durante el tercer trimestre se evidencian eventos maliciosos los cuales fueron eliminados por el antivirus Trellix y tomadas acciones frente a los equipos de cómputo con dichos hallazgos. 2. EDR-XDR: 33/33 Durante el tercer trimestre se evidencian en la herramienta de monitoreo EDR-XDR 36 eventos maliciosos, a los cuales se les realiza investigación con herramientas externas y se mitigan los archivos maliciosos. 3. Office365: (7.608/7.608) Para el el tercer trimestre se continuó con la gestión sobre la plataforma de herramientas colaborativas realizando las siguientes acciones: -Revisión de correos maliciosos y archivos en cuarentena -Seguimiento y revisión a la plataforma de seguridad. 4. Seguridad Perimetral (197/197) Durante el 3° trimestre se lograron resolver las alertas reportadas por el SOC (Security Operations Center ) y las alertas identificadas por los dispositivos de seguridad perimetral que monitorean la infraestructura tecnológica del DANE. | BG35: 1. Antivirus 1. Informe-Gestion_Consola Antivirus-TRELLIX-Julio-2024 2. Informe-Gestion_Consola Antivirus-TRELLIX-Agosto-2024 3.Informe-Gestion_Consola Antivirus-TRELLIX-Septiembre-2024 2. EDR-XDR: 1. Informe-Gestion_EDR-XDR-Julio-2024 2.Informe-Gestion_EDR-XDR-Agosto-2024 3.Informe-Gestion_EDR-XDR-Septiembre-2024 3. Office365: (7.608/7.608) 1. SEGURIDAD OFFICE - INFORME JULIO 01-31 2. SEGURIDAD OFFICE - INFORME AGOSTO 01-31 3. SEGURIDAD OFFICE - INFORME SEPTIEMBRE 01-30 4. Seguridad Perimetral (197/197) 1. Informe alertas Soc mes Agosto 2024 2. Informe alertas Soc mes Julio 2024 3. Informe alertas Soc mes septiembre 4. Informe de boletines de seguridad agosto 5. Informe de boletines de seguridad julio 6. Informe de boletines de seguridad septiembre | BH35: No aplica | BI35: Terminado | BJ35: 105177882 | BK35: 78883411.5 | BL35: 1.084913763e+10 | BM35: 9740214242 | BN35: 7760878102 | BP35: =(3515+22+14510+325)/(3515+22+14510+325) -> 1 | BQ35: 1 | BR35: Avance satisfactorio | BS35: 1. Antivirus: (3515/3515) Durante el 4.º trimestre, se llevó a cabo un monitoreo constante de eventos para garantizar una protección efectiva del entorno informático, permitiendo la detección y respuesta oportuna a posibles amenazas y vulnerabilidades. 2. EDR/XDR: (22/22) Durante el 4to trimestre se evidencia unas detecciones en el EDR y XDR el cual fueron abordadas y mitigadas 3. Office365: (14510/14510) Para el cuarto trimestre se continuó con la gestión sobre la plataforma de herramientas colaborativas realizando las siguientes acciones: -Revisión de correos maliciosos y archivos en cuarentena -Seguimiento y revisión a la plataforma de seguridad. 4. Seguridad Perimetral (325/325) Durante el 4° trimestre se lograron resolver las alertas reportadas por el SOC (Security Operations Center) y las alertas identificadas por los dispositivos de seguridad perimetral que monitorean la infraestructura tecnológica del DANE. | BT35: Carpeta 1.Antivirus: (3515/3515) 1.Informe-Gestion-Consola-Antivirus-Octubre-Trellix 2.Informe-Gestion-Consola-Antivirus-Noviembre-Trellix 3.Informe-Gestion-Consola-Antivirus-Diciembre-Trellix Carpeta 2.EDR/XDR: 1.Informe-Gestion-EDR-XDR-Octubre 2.Informe-Gestion-EDR-XDR-Noviembre 3.Informe-Gestion-EDR-XDR-Diciembre 3. Office365: (14510/14510) 1. SEGURIDAD OFFICE - INFORME OCTUBRE 01-31 2. SEGURIDAD OFFICE - INFORME NOVIEMBRE 01-30 3. SEGURIDAD OFFICE - INFORME DICIEMBRE 01-31 4. Seguridad Perimetral (325/325) 1. Informe alertas Soc mes Octubre 3. Informe alertas Soc mes noviembre 5. Informe alertas Soc mes diciembre 2. Informe de boletines de seguridad octubre 4. Informe de boletines de seguridad noviembre 6. Informe de boletines de seguridad diciembre | BU35: No aplica | BV35: Terminado | BW35: 105177882 | BX35: 105177882 | BY35: 1.09039186e+10 | BZ35: 1.031874964e+10 | CA35: 9301573114
B36: OSIS_Oficina de Sistemas | C36: OSIS_14 | D36: L3 - Fortalecimiento de la producción estadística a partir de la innovación y la gestión tecnológica. | E36: L3.5_Fortalecer las capacidades tecnológicas que habilitan las operaciones estadísticas y la gestión institucional, asegurando la prestación de los servicios de tecnologías de la información y comunicaciones de la entidad. | F36: PEI_Plan Estratégico Institucional | G36: 1 | H36: Sistema de respaldo gestionado y administrado con el objetivo de custodiar la información de la Entidad. | I36: Eficacia | J36: Porcentual | K36: Número de servidores con respaldo en el trimestre/ número total de servidores registrados en la plataforma de respaldo sin novedad en el trimestre * 100% | L36: Reportes de monitoreo y custodia del respaldo de información. | M36: 2024-01-02 | N36: 2024-12-31 | O36: 1 | P36: 1 | Q36: 1 | R36: 1 | S36: Si aplica | T36: 105177882 | U36: Modernización tecnológica para la transformación digital del DANE a nivel Nacional | V36: Servicios tecnológicos | X36: 11_Gestión de Información y Transformación Digital | Y36: 10_Plan Estratégico de Tecnologías de la Información y las Comunicaciones_PETI | Z36: POL_07: Gobierno Digital | AA36: No aplica | AC36: =223/225 -> 0.9911111111 | AD36: 0.9911111111 | AE36: Avance satisfactorio | AF36: Sistema de respaldo (223/225): En el sistema de respaldo se encuentran matriculados 225 Instancias repartidos en: -158 Servidores físicos -67 Servidores Virtuales (OVM) En este primer trimestre se logró 223 servidores con respaldo de un total de 225 servidores. | AG36: 01 TRIMESTRE 2024.pdf | AH36: El 1 % no cumplido se debe a que el agente del sistema de respaldo falla en 2 instancias. Estos servidores que no se han logrado respaldar pertenecen a: -Un servidor ubicado en DANE Central -Un servidor ubicado en la territorial Bucaramanga | AI36: En gestión | AJ36: 104485412 | AK36: 26121353 | AP36: 0.9917695473 | AQ36: 0.9917695473 | AR36: Avance satisfactorio | AS36: Sistema de respaldo (241/243) En el sistema de respaldo se encuentran matriculados 243 Instancias. En este segundo trimestre se logró 241 servidores con respaldo de un total de 243 servidores. | AT36: 1. Informe de monitoreo y custodia del respaldo de información Abril 2024 2. Informe de monitoreo y custodia del respaldo de información Mayo 2024 3. Informe de monitoreo y custodia del respaldo de información Junio 2024 | AU36: El 1 % no cumplido se debe a que el agente del sistema de respaldo falla en 2 instancias. Estos servidores que no se han logrado respaldar pertenecen a: -Dos servidores ubicados en DANE Central | AV36: En gestión | AW36: 104485412 | AX36: 26121353 | BC36: =253/254 -> 0.9960629921 | BD36: 0.9960629921 | BE36: Avance satisfactorio | BF36: Sistema de respaldo (253/254) En el sistema de respaldo se encuentran matriculados 254 Instancias. En este segundo trimestre se logró 253 servidores con respaldo de un total de 254 servidores. | BG36: 1. Informe de monitoreo y custodia del respaldo de información Julio 2024 2. Informe de monitoreo y custodia del respaldo de información Agosto 2024 3. Informe de monitoreo y custodia del respaldo de información Septiembre 2024 | BH36: El 0.39 % no cumplido se debe a que el agente del sistema de respaldo falla en 1 instancia. Este servidor que no se ha logrado respaldar pertenece a: -un servidor ubicados en DANE Central. | BI36: =IF(COUNT(AC36,AP36,BC36,#REF!)=COUNT(O36:R36),"Terminado","En gestión") -> En gestión | BJ36: 105177882 | BK36: 78883411.5 | BP36: =259/260 -> 0.9961538462 | BQ36: 0.9961538462 | BR36: Avance satisfactorio | BS36: Sistema de respaldo (259/260) En el sistema de respaldo se encuentran matriculados 259 Instancias. En este cuarto trimestre se logró 259 servidores con respaldo de un total de 260 servidores. | BT36: 1. Informe de sistema de respaldo octubre 2. Informe de sistema de respaldo noviembre 3. Informe de sistema de respaldo diciembre | BU36: El 0.40% no cumplido se debe a que el agente del sistema de respaldo falla en 1 instancia. Este servidor que no se ha logrado respaldar pertenece a un servidor ubicados en DANE Central. | BV36: Terminado | BW36: 105177882 | BX36: 105177882
B37: OSIS_Oficina de Sistemas | C37: OSIS_15 | D37: L3 - Fortalecimiento de la producción estadística a partir de la innovación y la gestión tecnológica. | E37: L3.5_Fortalecer las capacidades tecnológicas que habilitan las operaciones estadísticas y la gestión institucional, asegurando la prestación de los servicios de tecnologías de la información y comunicaciones de la entidad. | F37: PEI_Plan Estratégico Institucional | G37: 1 | H37: Capacidades tecnológicas de producción estadísticas (PES) fortalecidas para optimizar la custodia y el procesamiento de información. | I37: Eficacia | J37: Porcentual | K37: Porcentaje de avance del proyecto de fortalecimiento del sistema de procesamiento y almacenamiento% | L37: Informe de avances de la arquitectura de implementación de la Solución de hiper convergencia. | M37: 2024-04-01 | N37: 2024-12-31 | O37: 0 | P37: 0.2 | Q37: 0.7 | R37: 1 | S37: Si aplica | T37: 186086152 | U37: Modernización tecnológica para la transformación digital del DANE a nivel Nacional | V37: Servicios tecnológicos | X37: 11_Gestión de Información y Transformación Digital | Y37: 10_Plan Estratégico de Tecnologías de la Información y las Comunicaciones_PETI | Z37: POL_07: Gobierno Digital | AA37: No aplica | AD37: No Aplica | AE37: No reporta avance en el periodo | AF37: No aplica | AG37: No aplica | AH37: No aplica | AI37: Sin iniciar | AJ37: 234376887 | AK37: 58594222 | AP37: 0.2 | AQ37: 1 | AR37: Avance satisfactorio | AS37: Se realiza la instalacion del Rack, donde se instalan 7 Nodos de Virtualizacion, Se lleva a cabo las diferentes conexiones eléctricas y de red, así como la instalación interna de componentes y actualizaciones iniciales en el microcódigo y firmware de cada uno de los componentes internos que componen la infraestructura Hiperconvergente. | AT37: 01 Informe Implementacion_HiperConvergencia_2_Trimestre.docx | AU37: No aplica | AV37: En gestión | AW37: 234376887 | AX37: 58594222 | BC37: 0.7 | BD37: 1 | BE37: Avance satisfactorio | BF37: Durante el tercer trimestre se realizó el ajuste y optimización de la infraestructura. Se instalaron consolas de administración y se completó la instalación de drivers de GPU (Unidad de Procesamiento Gráfico, por sus siglas en inglés Graphics Processing Unit), está optimizada para ejecutar tareas de procesamiento en paralelo, mejorando el rendimiento y la gestión de los recursos tecnológicos. | BG37: 01 Informe Implementacion_HiperConvergencia_3_Trimestre | BH37: No aplica | BI37: =IF(OR(AV37="En gestión",AV37="Sin iniciar"),IF($BC37>=$G37,"Terminado","En gestión"),"Terminado") -> En gestión | BJ37: 186086152.2 | BK37: 143681902.2 | BP37: 1 | BQ37: 1 | BR37: Avance satisfactorio | BS37: Durante el IV trimestre, se llevaron a cabo actividades de creación y migración de máquinas virtuales hacia la infraestructura Nutanix. Asimismo, se configuró y personalizó el Dashboard de acuerdo con las necesidades específicas de administración. Adicionalmente, se instalaron las últimas actualizaciones de la infraestructura Nutanix, ofreciendo la implementación de las versiones más recientes en términos de seguridad y estabilidad. | BT37: 01 Informe Implementacion_HiperConvergencia_4_Trimestre | BU37: No aplica | BV37: =IF($BQ37<1%,"Sin iniciar",IF($BQ37=100%,"Terminado","En gestión")) -> Terminado | BW37: 186086152 | BX37: 186086152
B38: OSIS_Oficina de Sistemas | C38: OSIS_16 | D38: L3 - Fortalecimiento de la producción estadística a partir de la innovación y la gestión tecnológica. | E38: L3.5_Fortalecer las capacidades tecnológicas que habilitan las operaciones estadísticas y la gestión institucional, asegurando la prestación de los servicios de tecnologías de la información y comunicaciones de la entidad. | F38: PEI_Plan Estratégico Institucional | G38: 1 | H38: Componentes de conectividad actualizados y monitoreados de la red de comunicaciones de la Entidad a nivel nacional a demanda. | I38: Efectividad | J38: Porcentual | K38: Porcentaje de avance en el índice de monitoreo de los canales de internet de la Entidad conforme a lo contratado para disponer los servicios de TI que soportan la operación de la entidad. | L38: Evidencias documentadas de los servicios de disponibilidad de la infraestructura, destinados a respaldar la red de comunicaciones. Informe final de los componentes de comunicación actualizados al cierre del 2024. | M38: 2024-01-02 | N38: 2024-12-31 | O38: 1 | P38: 1 | Q38: 1 | R38: 1 | S38: No aplica | T38: 0 | U38: Modernización tecnológica para la transformación digital del DANE a nivel Nacional | V38: Servicios tecnológicos | X38: 11_Gestión de Información y Transformación Digital | Y38: 10_Plan Estratégico de Tecnologías de la Información y las Comunicaciones_PETI | Z38: POL_07: Gobierno Digital | AA38: No aplica | AC38: =84/84 -> 1 | AD38: 1 | AE38: Avance satisfactorio | AF38: Los componentes de conectividad durante el primer trimestre se mantuvieron actualizados y monitoreados desde la red de comunicaciones de la Entidad a nivel nacional. Los servicios de internet del ISP Claro presentaron fallas de servicio asociadas a factores externos; pero no afectó la operatividad ni generó indisponibilidad de los servicios porque el enlace afectado tiene alta disponibilidad y cuenta con el enlace de respaldo. Es de aclarar, que las fallas fueron solucionadas con éxito dentro del trimestre. | AG38: ENERO 1. DANE DISPONIBILIDAD ENERO 2024.XLS 2. Service Manager-Interacción_Enero_2024.PDF FEBRERO 1. DANE DISPONIBILIDAD FEBRERO.XLS 2. Service Manager-Interacción_Febrero_2024.PDF MARZO 1. Service Manager-Interacción_Marzo_2024.PDF | AH38: No aplica | AI38: Terminado | AJ38: 0 | AK38: 0 | AP38: 1 | AQ38: 1 | AR38: Avance satisfactorio | AS38: Los componentes de conectividad durante el segundo trimestre se mantuvieron actualizados y monitoreados desde la red de comunicaciones de la Entidad a nivel nacional. Los servicios de internet del ISP Claro presentaron fallas de servicio asociadas a factores externos; pero no afectó la operación ni generó indisponibilidad de los servicios porque los enlaces afectados tienen alta disponibilidad y cuenta con el enlace de respaldo en tecnología SD-WAN. Es de aclarar, que las fallas que fueron reportadas como casos de servicio fueron solucionadas con éxito dentro del trimestre. | AT38: 1. DANE DISPONIBILIDAD ABRIL 2024.XLS 1. Service Manager-Interacción_Abril_2024.PDF 2. DANE DISPONIBILIDAD MAYO.XLS 2. Service Manager-Interacción_Mayo_2024.PDF 3. DANE DISPONIBILIDAD JUNIO.XLS 3. Service Manager-Interacción_Junio_2024.PDF | AU38: No aplica | AV38: Terminado | AW38: 0 | AX38: 0 | BC38: =147/147 -> 1 | BD38: 1 | BE38: Avance satisfactorio | BF38: Los componentes de conectividad durante el segundo trimestre se mantuvieron actualizados y monitoreados desde la red de comunicaciones de la Entidad a nivel nacional. Los servicios de internet del ISP Claro presentaron fallas de servicio asociadas a factores externos; pero no afectó la operatividad ni generó indisponibilidad de los servicios porque el enlace afectado tiene alta disponibilidad y cuenta con en enlace de respaldo. Es de aclarar, que las fallas fueron solucionadas con éxito dentro del trimestre. | BG38: Julio: _DANE JULIO 2024.xlsb _Service Manager-Interacción_Julio_2024 Agosto: _DANE AGOSTO 2024.xlsb _Service Manager-Interacción_Agosto_2024 Septiembre: _Service Manager-Interacción_Septiembre_2024 | BH38: No aplica | BI38: Terminado | BJ38: 0 | BK38: 0 | BP38: =146/147*100% -> 0.9931972789 | BQ38: 0.9931972789 | BR38: Avance satisfactorio | BS38: Durante el cuarto trimestre, los componentes de conectividad se mantuvieron actualizados y bajo constante monitoreo a través de la red de comunicaciones de la Entidad a nivel nacional. Los servicios de internet proporcionados por el ISP Claro experimentaron interrupciones debido a factores externos; sin embargo, estas incidencias no afectaron la operatividad ni causaron indisponibilidad de los servicios, gracias a la alta disponibilidad del enlace principal y a la existencia de un enlace de respaldo. Cabe destacar que todas las fallas fueron resueltas con éxito dentro del mismo trimestre. | BT38: Carpeta 1 Octubre DANE OCTUBRE 2024.XLS Service Manager-Interacción_Octubre_2024.PDF Carpeta 2 Noviembre DANE NOVIEMBRE 2024.XLS Service Manager-Interacción_Noviembre_2024.PDF Carpeta 3 Diciembre Service Manager-Interacción_Diciembre_2024.PDF DANE DIC2024 DISPONIBILIDAD | BU38: Los servicios de internet proporcionados por el ISP Claro experimentaron interrupciones debido a factores externos; sin embargo, estas incidencias no afectaron la operatividad ni causaron indisponibilidad de los servicios, gracias a la alta disponibilidad del enlace principal y a la existencia de un enlace de respaldo. | BV38: En gestión | BW38: 0 | BX38: 0
B39: OSIS_Oficina de Sistemas | C39: OSIS_17 | D39: L3 - Fortalecimiento de la producción estadística a partir de la innovación y la gestión tecnológica. | E39: L3.5_Fortalecer las capacidades tecnológicas que habilitan las operaciones estadísticas y la gestión institucional, asegurando la prestación de los servicios de tecnologías de la información y comunicaciones de la entidad. | F39: PEI_Plan Estratégico Institucional | G39: 1 | H39: Componentes de TIC a demanda, monitoreados de la plataforma tecnológica para brindar disponibilidad de los servicios a usuario final en la Entidad. | I39: Eficacia | J39: Porcentual | K39: Sumatoria porcentual de cumplimiento de los siguientes hitos: - Número de incidentes y requerimientos de mesa de ayuda gestionados en el trimestre/ Número de incidentes y requerimientos de mesa de ayuda solicitados en el trimestre: 60% - Servidores monitoreados a través de la plataforma de monitoreo/ Servidores en operación: 40% | L39: Evidencias de las actividades de monitoreo y la disponibilidad de los servicios de la infraestructura tecnológica de la Entidad. | M39: 2024-01-02 | N39: 2024-12-31 | O39: 1 | P39: 1 | Q39: 1 | R39: 1 | S39: Si aplica | T39: 250579932 | U39: Modernización tecnológica para la transformación digital del DANE a nivel Nacional | V39: Servicios tecnológicos | X39: 11_Gestión de Información y Transformación Digital | Y39: 10_Plan Estratégico de Tecnologías de la Información y las Comunicaciones_PETI | Z39: POL_07: Gobierno Digital | AA39: No aplica | AC39: =(6508/6508*60%)+(235/235*40%) -> 1 | AD39: 1 | AE39: Avance satisfactorio | AF39: Incidentes y Requerimientos: (6.508/6.508) - Para el primer trimestre se registraron 6.508, el cual se gestionaron 6.508 en la plataforma mesa de servicio. Servidores Monitoreados: (235/235) - Para el primer trimestre se registraron 235 en operación, el cual se monitorearon 235 en la plataforma monitoreo. | AG39: 1. TRIMESTRE_OSIS_17_INCIDENTES Y REQUERIMIENTOS.xlsx 2. TRIMESTRE_OSIS_17_SERVIDORES MONITOREADOS.xlsx | AH39: No aplica | AI39: Terminado | AJ39: 266243482 | AK39: 66560871 | AP39: 1 | AQ39: 1 | AR39: Avance satisfactorio | AS39: Incidentes y Requerimientos: (9.554/9.554) - Para el segundo trimestre se registraron 9.554 solicitudes de incidentes o requerimientos, de los cuales se gestionaron 9.554 en la plataforma mesa de servicio. Servidores Monitoreados: (235/235) - Para el segundo trimestre se registraron 235 servidores en operación, el cual se monitorearon 235 en la plataforma monitoreo. | AT39: 1. INFORME META OSIS_17 2 TRIMESTRE 2024 2. SEGUNDO TRIMESTRE_OSIS_17_INCIDENTES Y REQUERIMIENTOS 3. SEGUNDO TRIMESTRE_OSIS_17_SERVIDORES MONITOREADOS | AU39: No aplica | AV39: Terminado | AW39: 266243482 | AX39: 66560871 | BC39: =(14871/14871*60%)+(230/230*40%) -> 1 | BD39: 1 | BE39: Avance satisfactorio | BF39: Incidentes y Requerimientos: (14871/14871) - Para el tercer trimestre se registraron 14871 casos, el cual se gestionaron 14871 en la plataforma mesa de servicio. Servidores Monitoreados: (230/230) - Para el tercer trimestre se registraron 230 en operación, el cual se monitorearon 230 en la plataforma monitoreo. | BG39: 1. INFORME META OSIS_17 3 TRIMESTRE 2024 2. TERCER TRIMESTRE_OSIS_17_INCIDENTES Y REQUERIMIENTOS 3. TERCER TRIMESTRE_OSIS_17_SERVIDORES MONITOREADOS | BH39: No aplica | BI39: Terminado | BJ39: 250579932.2 | BK39: 189547581.2 | BP39: =(9846/9846*60%)+(228/228*40%) -> 1 | BQ39: 1 | BR39: Avance satisfactorio | BS39: Incidentes y Requerimientos: (9846/9846) - Para el tercer trimestre se registraron 9846 casos, el cual se gestionaron 9846 en la plataforma mesa de servicio. Servidores Monitoreados: (228/228) - Para el tercer trimestre se registraron 228 en operación, el cual se monitorearon 228 en la plataforma monitoreo. | BT39: 1. INFORME META OSIS_17 4 TRIMESTRE 2024 2. CUARTO TRIMESTRE_OSIS_17_INCIDENTES Y REQUERIMIENTOS 3. CUERTO TRIMESTRE_OSIS_17_SERVIDORES MONITOREADOS | BU39: No aplica | BV39: Terminado | BW39: 250579932 | BX39: 250579932
B40: OSIS_Oficina de Sistemas | C40: OSIS_18 | D40: L3 - Fortalecimiento de la producción estadística a partir de la innovación y la gestión tecnológica. | E40: L3.6_Mejorar la seguridad digital del DANE a través del fortalecimiento de las capacidades de ciberseguridad para asegurar la protección de la información misional e institucional | F40: PEI_Plan Estratégico Institucional | G40: 1 | H40: Acciones definidas en el plan de seguridad de la información 2024 a cargo de la Oficina de Sistemas, ejecutadas. | I40: Efectividad | J40: Porcentual | K40: Acciones ejecutadas por la OSIS en el Plan de Seguridad de la Información 2024 / Total de acciones definidas a ejecutar por la OSIS en el Plan de Seguridad de la Información 2024*100% | L40: Documentos desarrollados del plan de seguridad de la información | M40: 2024-01-31 | N40: 2024-12-31 | O40: 0.25 | P40: 0.5 | Q40: 0.75 | R40: 1 | S40: No aplica | T40: 0 | U40: Modernización tecnológica para la transformación digital del DANE a nivel Nacional | V40: Servicios tecnológicos | X40: 11_Gestión de Información y Transformación Digital | Y40: 12_Plan de Seguridad y Privacidad de la Información | Z40: POL_08:Seguridad Digital | AA40: No aplica | AC40: 0.25 | AD40: 1 | AE40: Avance satisfactorio | AF40: Se apoya en la elaboración del plan de seguridad de la información 2024 y en la revisión y aportes del BCP / Documento ajustes BCP Se elaboraron los documentos: Declaración de aplicabilidad y el Documento de herramienta autodiagnóstico 2023 (Instrumento_Evaluacion_MSPI 2023-2) | AG40: Documento de Plan de seguridad de la información 2024 Documento de la declaración de aplicabilidad Instrumento_Evaluacion_MSPI 2023-2 Continuidad de Negocio DANE - FONDANE_Rev OSIS | AH40: No aplica | AI40: En gestión | AJ40: 0 | AK40: 0 | AP40: 0.5 | AQ40: 1 | AR40: Avance satisfactorio | AS40: Se implementa el instrumento de seguimiento del plan de seguridad y privacidad de la información Se realiza revisión y ajustes a la documentación del subproceso de seguridad digital Se realizan sesiones de sensibilización a los usuarios finales en temas de seguridad digital Se reportan activos de seguridad de la información del proceso GTD Se cuenta con el DRP de la nube de Oracle | AT40: Instrumento de seguimiento al Plan de seguridad de la información 2024 Manual de políticas complementarias de seguridad digital Tips Informáticos Inventario de activos de seguridad de la información del proceso GTD Documento con el Plan de Recuperación de Desastres - nube Oracle | AU40: No aplica | AV40: En gestión | AW40: 0 | AX40: 0 | BC40: 0.75 | BD40: 1 | BE40: Avance satisfactorio | BF40: Se realiza el Informe Técnico para cierre del Hallazgo 007-2015 Se levanta información y se desarrolla la arquitectura de seguridad informática de la OSIS Se hace seguimiento a la ejecución del plan de seguridad de la información realizando la sesión del comité de seguridad Se desarrolla guía de seguridad digital por dominio con el apoyo del BID Durante este periodo se revisa y realizan observaciones al procedimiento y guía de gestión de activos | BG40: _Informe Técnico_V2.0_05072024 (Informe Técnico para cierre del Hallazgo 007-2015) _Arquitectura de Seguridad Digital (Arquitectura de seguridad informática de la OSIS) _29082024- Acta Comité de seguridad de la información (Seguimiento a la ejecución del plan de seguridad de la información realizando la sesión del comité de seguridad) _Anexo 1. GTD-060-GUI-001 Guía de Seguridad Digital (Guía de seguridad digital por dominio) _Guía Gestión activos de información DANE - FONDANE 2024 jul 9_Rev OSIS _Procedimiento Gestión de activos de información Ag 24 (Revisión y observaciones al procedimiento y guía de gestión de activos) | BH40: No aplica | BI40: =IF(OR(AV40="En gestión",AV40="Sin iniciar"),IF($BC40>=$G40,"Terminado","En gestión"),"Terminado") -> En gestión | BJ40: 0 | BK40: 0 | BP40: =+(9/9)*100% -> 1 | BQ40: 1 | BR40: Avance satisfactorio | BS40: Cada GIT de la OSIS identificó y realizo la gestión de riesgos de seguridad de la información y el resultado de esto se reportó a OPLAN de acuerdo con los lineamientos de administración de riesgos de la entidad. Se definió el plan para la implementación de un CSIRT Sectorial Se realizaron las mesas de trabajo para el alcance y el entendimiento del CSIRT Sectorial con los OSI de ambas entidades Durante este periodo se entregó la herramienta diagnostico 2023. los informes de auditoria (2022 y 2023) y el SoA al auditor de Control Interno para su revisión y análisis Actualización documentación del Subproceso GTD-060 Seguridad Digital Se realizaron mesas de trabajo para la definición del indicador del Subproceso de Seguridad Digital. | BT40: 1.Mapa Riesgos Seguridad de la Información GTD 2.Plan de Trabajo para la Implementación del CSIRT Sectorial_V1.0 3.Acceso Sharepoint Seguridad a OCI 202410 4.Documentación subproceso GTD -060 Seguridad Digital.(isolucion) 5.Ficha técnica del indicador de gestión GTD_Vulnerabilidades Firewall | BU40: No aplica | BV40: Terminado | BW40: 0 | BX40: 0
B41: OSIS_Oficina de Sistemas | C41: OSIS_19 | D41: L3 - Fortalecimiento de la producción estadística a partir de la innovación y la gestión tecnológica. | E41: L3.5_Fortalecer las capacidades tecnológicas que habilitan las operaciones estadísticas y la gestión institucional, asegurando la prestación de los servicios de tecnologías de la información y comunicaciones de la entidad. | F41: PEI_Plan Estratégico Institucional | G41: 1 | H41: Sistemas de Información construidos o actualizados para apoyar los procesos de la producción estadística en relación a la captura de datos, análisis de información y generación de reportes para los operativos estadísticos de las temáticas sociales, agropecuarias / económicas e índices de las cuales se hayan recibido solicitudes | I41: Eficacia | J41: Porcentual | K41: (Informe trimestral de seguimiento / 4)*100% | L41: Un informe trimestral de seguimiento de los proyectos con el cumplimiento del procedimiento de los operativos de las temáticas sociales, agropecuarias / económicas e índices de las cuales se hayan recibido solicitudes. | M41: 2024-01-02 | N41: 2024-12-31 | O41: 0.25 | P41: 0.5 | Q41: 0.75 | R41: 1 | S41: Si aplica | T41: 328850982 | U41: Modernización tecnológica para la transformación digital del DANE a nivel Nacional | V41: Sistemas de información implementados | W41: 1706579937 | X41: 11_Gestión de Información y Transformación Digital | Y41: 10_Plan Estratégico de Tecnologías de la Información y las Comunicaciones_PETI | Z41: POL_07: Gobierno Digital | AA41: No aplica | AC41: =(1/ 4) -> 0.25 | AD41: 1 | AE41: Avance satisfactorio | AF41: Mediante el informe técnico procedemos a establecer un seguimiento de los proyectos Censo de Edificaciones (CEED), Encuesta de Tecnologías de la Información y las Comunicaciones en Hogares (ENTIC Hogares) (ENTIC HOGARES), Encuesta de sacrificio de ganado (ESAG), Encuesta Pulso Migración (EPM). Con la finalidad de dar seguimiento al cumplimiento operativo para los Sistemas de Información construidos o actualizados enfocados en apoyar los procesos de la producción estadística. | AG41: Informe trimestral de seguimiento de los proyectos de las temáticas sociales, agropecuarias, económicas e índices OSIS 19 | AH41: No aplica | AI41: En gestión | AJ41: 355219981 | AK41: 88804995 | AL41: 1734069733 | AM41: 1551620034 | AN41: 134248100.7 | AP41: 0.5 | AQ41: 1 | AR41: Avance satisfactorio | AS41: Mediante el informe técnico procedemos a establecer un seguimiento de los proyectos Censo de Edificaciones (CEED), Encuesta de Tecnologías de la Información y las Comunicaciones en Hogares (ENTIC Hogares) (ENTIC HOGARES), Encuesta de sacrificio de ganado (ESAG), Encuesta Pulso Migración (EPM). Con la finalidad de dar seguimiento al cumplimiento operativo para los Sistemas de Información construidos o actualizados enfocados en apoyar los procesos de la producción estadística. | AT41: Informe trimestral de seguimiento de los proyectos de las temáticas sociales, agropecuarias, económicas e índices OSIS 19 | AU41: No aplica | AV41: En gestión | AW41: 355219981 | AX41: 88804995 | AY41: 1734069733 | AZ41: 1551620034 | BA41: 545105300 | BC41: =3/4 -> 0.75 | BD41: 1 | BE41: Avance satisfactorio | BF41: Mediante el informe técnico procedemos a establecer un seguimiento de los proyectos: Censo de Edificaciones (CEED), Encuesta de Tecnologías de la Información y las Comunicaciones en Hogares (ENTIC Hogares), Encuesta Pulso Migración (EPM), Encuesta Nacional de Uso del Tiempo (ENUT) Con la finalidad de dar seguimiento al cumplimiento operativo para los Sistemas de Información construidos o actualizados enfocados en apoyar los procesos de la producción estadística. | BG41: _Informe trimestral de seguimiento de los proyectos de las temáticas sociales, agropecuarias, económicas e índices OSIS 19 _Captura de pantalla del sharepoint del GIT Sistemas de Información | BH41: No aplica | BI41: En gestión | BJ41: 335449440.6 | BK41: 257085569.6 | BL41: 1734069733 | BM41: 1627206367 | BN41: 962239967 | BP41: =+(9/9)*100% -> 1 | BQ41: 1 | BR41: Avance satisfactorio | BS41: Mediante el informe técnico procedemos a establecer un seguimiento de los proyectos: Encuesta Latinoamericana de Preferencias Ciudadanas (VOCES), Clasificación de las funciones del gobierno (COFOG) Con la finalidad de dar seguimiento al cumplimiento operativo para los Sistemas de Información construidos o actualizados enfocados en apoyar los procesos de la producción estadística. | BT41: Informe trimestral de seguimiento de los proyectos de las temáticas sociales, agropecuarias, económicas e índices OSIS 19 _Captura de pantalla del sharepoint del GIT Sistemas de Información | BU41: No aplica | BV41: Terminado | BW41: 328850982 | BX41: 328850982 | BY41: 1706579937 | BZ41: 1659604333 | CA41: 1428808967
B42: OSIS_Oficina de Sistemas | C42: OSIS_20 | D42: L3 - Fortalecimiento de la producción estadística a partir de la innovación y la gestión tecnológica. | E42: L3.5_Fortalecer las capacidades tecnológicas que habilitan las operaciones estadísticas y la gestión institucional, asegurando la prestación de los servicios de tecnologías de la información y comunicaciones de la entidad. | F42: PEI_Plan Estratégico Institucional | G42: 1 | H42: Sistemas de Información soportados para apoyar los procesos de la producción estadística en relación a la captura de datos, análisis de información y generación de reportes para los operativos estadísticos de las temáticas sociales, agropecuarias / económicas e índices de las cuales se hayan recibido solicitudes mediante la herramienta designada por mesa de servicio. | I42: Eficacia | J42: Porcentual | K42: Cantidad de servicios solicitados por los usuarios para soportar los sistemas de información registrados en la plataforma de servicios en estado cerrado / Cantidad de servicios solicitados por los usuarios para soportar los sistemas de información registrados en la plataforma de servicios. *100% | L42: Reporte de servicios solicitados mediante mesa de ayuda. | M42: 2024-01-02 | N42: 2024-12-31 | O42: 0.8 | P42: 0.85 | Q42: 0.9 | R42: 1 | S42: Si aplica | T42: 364108013 | U42: Modernización tecnológica para la transformación digital del DANE a nivel Nacional | V42: Sistemas de información implementados | X42: 11_Gestión de Información y Transformación Digital | Y42: 10_Plan Estratégico de Tecnologías de la Información y las Comunicaciones_PETI | Z42: POL_07: Gobierno Digital | AA42: No aplica | AC42: =375/384 -> 0.9765625 | AD42: 1 | AE42: Avance satisfactorio | AF42: El reporte presenta el estado de avance de las solicitudes de servicio generadas mediante la herramienta de mesa de ayuda en los proyectos: Aplicativa muestra trimestral de servicios Bogotá CEED - Censo de edificaciones ECP - Encuesta de cultura política ECV - Encuesta de calidad de vida EDID - Encuesta sobre ambiente y desempeño institucional departamental EGIT - Encuesta de gasto interno en turismo ELCO - Encuesta longitudinal de Colombia ESAG - Encuesta de sacrificio de ganado EVI - Encuesta de Visitantes Internacionales Fedegan GEIH - Gran encuesta integrada de hogares ICCP - ÍNDICE DE COSTOS DE LA CONSTRUCCIÓN PESADA ICCV - ÍNDICE DE COSTOS DE LA CONSTRUCCIÓN DE VIVIENDA ICTCP - ÍNDICE DE COSTOS DE TRANSPORTE DE CARGA Y DE PASAJEROS INTERMUNICIPAL IPC - Índice de precios al consumidor IPP - Índice de precios del productor Para un total de Casos cerrados de 375, Casos en Curso (asignados) 3, Casos en estado en espera 6 dando como resultado un total de 384 casos solicitados por los usuarios en el proceso de servicio y soporte el cual forma parte integral del Plan Estratégico de Tecnologías de la Información (PETI) del DANE, distribuidos así, Agropecuarias 2, Económicas 23, Índices 253 y sociales 106, asegurando su impacto en la eficiencia, calidad y seguridad para la difusión de los sistemas de información, que contribuyen al proceso de recolección de información estadística. | AG42: Reporte de Incidencias OSIS 20 / Informe trimestral de seguimiento de los proyectos de las temáticas sociales, agropecuarias, económicas e índices OSIS 20 | AH42: No aplica | AI42: En gestión | AJ42: 390304823 | AK42: 97576206 | AP42: 0.99 | AQ42: 1 | AR42: Avance satisfactorio | AS42: El reporte presenta el estado de avance de las solicitudes de servicio generadas mediante la herramienta de mesa de ayuda en los proyectos: APLICATIVO CARTERA HIPOTECARIA DE VIVIENDA APLICATIVO ÍNDICE DE COSTOS DEL TRANSPORTE DE CARGA POR CARRETERA CEED - CENSO DE EDIFICACIONES EDI - ENCUESTA SOBRE AMBIENTE Y DESEMPEÑO INSTITUCIONAL NACIONAL EDID - ENCUESTA SOBRE AMBIENTE Y DESEMPEÑO INSTITUCIONAL DEPARTAMENTAL EGIT - ENCUESTA DE GASTO INTERNO EN TURISMO ELCO - ENCUESTA LONGITUDINAL DE COLOMBIA EMICRON - ENCUESTA DE MICRONEGOCIOS EPM - ENCUESTA PULSO MIGRATORIO ESAG - ENCUESTA DE SACRIFICIO DE GANADO EVI - ENCUESTA DE VISITANTES INTERNACIONALES GEIH - GRAN ENCUESTA INTEGRADA DE HOGARES ICCP - ÍNDICE DE COSTOS DE LA CONSTRUCCIÓN PESADA ICCV - ÍNDICE DE COSTOS DE LA CONSTRUCCIÓN DE VIVIENDA ICES - ÍNDICES DE COSTOS DE LA EDUCACIÓN SUPERIOR ICTCP - ÍNDICE DE COSTOS DE TRANSPORTE DE CARGA Y DE PASAJEROS INTERMUNICIPAL IPC - ÍNDICE DE PRECIOS AL CONSUMIDOR IPP - ÍNDICE DE PRECIOS DEL PRODUCTOR Para un total de Casos cerrados de 495, Casos en Curso (asignados) 0, Casos en estado en espera 9 dando como resultado un total de 504 casos solicitados por los usuarios en el proceso de servicio y soporte el cual forma parte integral del Plan Estratégico de Tecnologías de la Información (PETI) del DANE, distribuidos así, ECONÓMICAS / AGROPECUARIAS 37, INDICES 284 y SOCIALES 174, asegurando su impacto positivo en la eficiencia, calidad y seguridad para la difusión de los sistemas de información, que contribuyen al proceso de recolección de información estadística. | AT42: Reporte de Incidencias OSIS 20 / Informe trimestral de seguimiento de los proyectos de las temáticas sociales, agropecuarias, económicas e índices OSIS 20 | AU42: No aplica | AV42: En gestión | AW42: 390304823 | AX42: 97576206 | BC42: =1078/1096 -> 0.9835766423 | BD42: 1 | BE42: Avance satisfactorio | BF42: El reporte presenta el estado de avance de las solicitudes de servicio generadas mediante la herramienta de mesa de ayuda en los proyectos: Aplicativa muestra trimestral de servicios Bogotá Aplicativo cartera hipotecaria de vivienda Aplicativo censo nacional arrocero Aplicativo Recolección Indicadores ODS CEED - Censo de edificaciones ECC - Encuesta de consumo cultural ECSC - Encuesta de convivencia y seguridad ciudadana ECV - Encuesta de calidad de vida ECV - Encuesta de calidad de vida EDI - Encuesta sobre ambiente y desempeño institucional nacional EDID - Encuesta sobre ambiente y desempeño institucional departamental EGIT - Encuesta de gasto interno en turismo ELCO - Encuesta longitudinal de Colombia EMICRON - Encuesta de micronegocios ENA - Encuesta nacional agropecuaria ENTIC - Encuesta nacional de tecnologías de información y las comunicaciones ENUT - Encuesta nacional de uso del tiempo ESAG - Encuesta de sacrificio de ganado EVI - Encuesta de Visitantes Internacionales GEIH - Gran encuesta integrada de hogares ICCP - ÍNDICE DE COSTOS DE LA CONSTRUCCIÓN PESADA ICCV - ÍNDICE DE COSTOS DE LA CONSTRUCCIÓN DE VIVIENDA ICET - Índice de Capacidad Estadística Territorial ICTCP - ÍNDICE DE COSTOS DE TRANSPORTE DE CARGA Y DE PASAJEROS INTERMUNICIPAL IPC - Índice de precios al consumidor IPP - Índice de precios del productor LIMESURVEY - Formularios encuestas de percepción y/o comentarios proyectos de resolución Recuento Para un total de Casos cerrados de 1078, Casos en Curso (asignados) 11, Casos en estado en espera 7, dando como resultado un total de 1096, casos solicitados por los usuarios en el proceso de servicio y soporte el cual forma parte integral del Plan Estratégico de Tecnologías de la Información (PETI) del DANE, distribuidos así, ECONÓMICAS / AGROPECUARIAS 152, INDICES 274 y SOCIALES 670, asegurando su impacto positivo en la eficiencia, calidad y seguridad para la difusión de los sistemas de información, que contribuyen al proceso de recolección de información estadística. | BG42: _Reporte de Incidencias OSIS 20 / _Informe trimestral de seguimiento de los proyectos de las temáticas sociales, agropecuarias, económicas e índices OSIS 20 | BH42: No aplica | BI42: En gestión | BJ42: 370706471.6 | BK42: 292617438.7 | BP42: =+(9/9)*100% -> 1 | BQ42: 1 | BR42: Avance satisfactorio | BS42: Total de servicios solicitados y atendidos: 1316. El reporte presenta el estado de avance de las solicitudes de servicio generadas mediante la herramienta de mesa de ayuda en los proyectos: Aplicativa muestra trimestral de servicios Bogotá Aplicativo cartera hipotecaria de vivienda Aplicativo censo nacional agropecuario Aplicativo índice de costos del transporte de carga por carretera Aplicativo micro establecimientos CEED - Censo de edificaciones Consultas Públicas (CP) ECSC - Encuesta de convivencia y seguridad ciudadana ECV - Encuesta de calidad de vida ECV - Encuesta de calidad de vida EDI - Encuesta sobre ambiente y desempeño institucional nacional EDID - Encuesta sobre ambiente y desempeño institucional departamental EGIT - Encuesta de gasto interno en turismo EMICRON - Encuesta de micronegocios ENA - Encuesta nacional agropecuaria ENAM -Encuesta nacional de arroz mecanizado ENTIC - Encuesta nacional de tecnologías de información y las comunicaciones ENUT - Encuesta nacional de uso del tiempo ESAG - Encuesta de sacrificio de ganado GEIH - Gran encuesta integrada de hogares ICCP - ÍNDICE DE COSTOS DE LA CONSTRUCCIÓN PESADA ICCV - ÍNDICE DE COSTOS DE LA CONSTRUCCIÓN DE VIVIENDA ICES - ÍNDICES DE COSTOS DE LA EDUCACIÓN SUPERIOR ICET - Índice de Capacidad Estadística Territorial ICTCP - ÍNDICE DE COSTOS DE TRANSPORTE DE CARGA Y DE PASAJEROS INTERMUNICIPAL IPC - Índice de precios al consumidor IPP - Índice de precios del productor LIMESURVEY - Formularios encuestas de percepción y/o comentarios proyectos de resolución MySurvey PVPAPN - Precios de venta al público de artículos de primera necesidad PVPLVA - Precios de venta al público de licores, vinos, aperitivos y similares Recuento SIENA - Sistema de Consulta de Información de Economía Naranja Para un total de Casos cerrados de 1316, Casos en Curso (asignados) 0, Casos en estado en espera 0, dando como resultado un total de 1316, casos solicitados por los usuarios en el proceso de servicio y soporte el cual forma parte integral del Plan Estratégico de Tecnologías de la Información (PETI) del DANE, distribuidos así, ECONÓMICAS / AGROPECUARIAS 384, INDICES 256 y SOCIALES 676, asegurando su impacto positivo en la eficiencia, calidad y seguridad para la difusión de los sistemas de información, que contribuyen al proceso de recolección de información estadística. | BT42: _Reporte de Incidencias OSIS 20 / _Informe trimestral de seguimiento de los proyectos de las temáticas sociales, agropecuarias, económicas e índices OSIS 20 | BU42: No aplica | BV42: Terminado | BW42: 364108013 | BX42: 364108013
B43: OSIS_Oficina de Sistemas | C43: OSIS_21 | D43: L3 - Fortalecimiento de la producción estadística a partir de la innovación y la gestión tecnológica. | E43: L3.5_Fortalecer las capacidades tecnológicas que habilitan las operaciones estadísticas y la gestión institucional, asegurando la prestación de los servicios de tecnologías de la información y comunicaciones de la entidad. | F43: PEI_Plan Estratégico Institucional | G43: 1 | H43: Sistemas de información fortalecidos para optimizar los procesos de la producción estadística en relación a las diferentes fases de captura y análisis de información para los operativos estadísticos de las temáticas sociales, agropecuarias / económicas e índices, con el objetivo de habilitar procesos más eficientes y alineados a las necesidades específicas de cada área. | I43: Eficacia | J43: Porcentual | K43: (Informe trimestral de seguimiento / 4)*100% | L43: Un informe de seguimiento de los proyectos con el cumplimiento del procedimiento o Matriz de solicitud de solicitud de desarrollo o Matriz de ejecución de pruebas de los operativos de las temáticas sociales, agropecuarias / económicas e índices. | M43: 2024-01-02 | N43: 2024-12-31 | O43: 0.25 | P43: 0.5 | Q43: 0.75 | R43: 1 | S43: Si aplica | T43: 430421213 | U43: Modernización tecnológica para la transformación digital del DANE a nivel Nacional | V43: Sistemas de información implementados | X43: 11_Gestión de Información y Transformación Digital | Y43: 10_Plan Estratégico de Tecnologías de la Información y las Comunicaciones_PETI | Z43: POL_07: Gobierno Digital | AA43: No aplica | AC43: =(1/ 4) -> 0.25 | AD43: 1 | AE43: Avance satisfactorio | AF43: Mediante el informe técnico procedemos a establecer un seguimiento de los proyectos Censo de Edificaciones (CEED), Encuesta de Tecnologías de la Información y las Comunicaciones en Hogares (ENTIC Hogares) (ENTIC HOGARES), Encuesta de sacrificio de ganado (ESAG), Encuesta Pulso Migración (EPM). Con la finalidad de dar seguimiento al fortalecimiento y optimización los procesos de la producción estadística en relación a las diferentes fases de captura y análisis de información. | AG43: Informe trimestral de seguimiento de los proyectos de las temáticas sociales, agropecuarias, económicas e índices OSIS 21 | AH43: No aplica | AI43: En gestión | AJ43: 456181431 | AK43: 114045358 | AP43: 0.5 | AQ43: 1 | AR43: Avance satisfactorio | AS43: Mediante el informe técnico procedemos a establecer un seguimiento de los proyectos Censo de Edificaciones (CEED), Encuesta de Tecnologías de la Información y las Comunicaciones en Hogares (ENTIC Hogares) (ENTIC HOGARES), Encuesta de sacrificio de ganado (ESAG), Encuesta Pulso Migración (EPM). Con la finalidad de dar seguimiento al fortalecimiento y optimización los procesos de la producción estadística en relación a las diferentes fases de captura y análisis de información. | AT43: Informe trimestral de seguimiento de los proyectos de las temáticas sociales, agropecuarias, económicas e índices OSIS 21 | AU43: No aplica | AV43: En gestión | AW43: 456181431 | AX43: 114045358 | BC43: =3/4 -> 0.75 | BD43: 1 | BE43: Avance satisfactorio | BF43: Mediante el informe técnico procedemos a establecer un seguimiento de los proyectos: Encuesta de Tecnologías de la Información y las Comunicaciones en Hogares (ENTIC Hogares), Encuesta de sacrificio de ganado (ESAG), Encuesta Nacional de Uso del Tiempo (ENUT) Con la finalidad de dar seguimiento al fortalecimiento y optimización los procesos de la producción estadística en relación a las diferentes fases de captura y análisis de información. | BG43: _Informe trimestral de seguimiento de los proyectos de las temáticas sociales, agropecuarias, económicas e índices OSIS 21 _Captura de pantalla del sharepoint del GIT Sistemas de Información | BH43: No aplica | BI43: En gestión | BJ43: 437019671.6 | BK43: 342352338.7 | BP43: =+(9/9)*100% -> 1 | BQ43: 1 | BR43: Avance satisfactorio | BS43: Mediante el informe técnico procedemos a establecer un seguimiento de los proyectos: Encuesta Latinoamericana de Preferencias Ciudadanas (VOCES), Clasificación de las funciones del gobierno (COFOG) Con la finalidad de dar seguimiento al fortalecimiento y optimización los procesos de la producción estadística en relación a las diferentes fases de captura y análisis de información | BT43: _Informe trimestral de seguimiento de los proyectos de las temáticas sociales, agropecuarias, económicas e índices OSIS 21 _Captura de pantalla del sharepoint del GIT Sistemas de Información. | BU43: No aplica | BV43: Terminado | BW43: 430421213 | BX43: 430421213
B44: OSIS_Oficina de Sistemas | C44: OSIS_22 | D44: L3 - Fortalecimiento de la producción estadística a partir de la innovación y la gestión tecnológica. | E44: L3.5_Fortalecer las capacidades tecnológicas que habilitan las operaciones estadísticas y la gestión institucional, asegurando la prestación de los servicios de tecnologías de la información y comunicaciones de la entidad. | F44: PEI_Plan Estratégico Institucional | G44: 1 | H44: Sistemas de Información diseñados, construidos o mantenidos para la captura y/o inicio del operativo de las temáticas Comercio, Servicios, Industria, Infraestructura de las cuales se hayan recibido solicitudes. | I44: Eficacia | J44: Porcentual | K44: (Informe trimestral de seguimiento / 4)*100% | L44: Un informe trimestral de seguimiento de los proyectos con el cumplimiento del procedimiento relacionados con las temáticas Comercio, Servicios, Industria, Infraestructura | M44: 2024-01-02 | N44: 2024-12-31 | O44: 0.25 | P44: 0.5 | Q44: 0.75 | R44: 1 | S44: Si aplica | T44: 48208708 | U44: Modernización tecnológica para la transformación digital del DANE a nivel Nacional | V44: Sistemas de información implementados | X44: 11_Gestión de Información y Transformación Digital | Y44: 10_Plan Estratégico de Tecnologías de la Información y las Comunicaciones_PETI | Z44: POL_07: Gobierno Digital | AA44: No aplica | AC44: =(1/ 4) -> 0.25 | AD44: 1 | AE44: Avance satisfactorio | AF44: El informe técnico proporciona un seguimiento detallado del progreso de los proyectos FIVI-CHV, ECG-EC, NUEVA EAC, EMS, EMCES, ETUP, EAS, EAI y EAID en las temáticas Comercio, Servicios, Industria e Infraestructura. Se analiza y orienta para asegurar que estos proyectos impacten positivamente en la optimización e integridad del proceso de Desarrollo y Mantenimiento de los sistemas de información, aspectos cruciales para garantizar la fiabilidad en la recopilación de datos estadísticos. El GIT de AIOC ha logrado implementar mejores prácticas de desarrollo de software, lo que ha permitido una gestión eficiente de los proyectos y una alineación con las necesidades del DANE. Se ha enfocado en garantizar el seguimiento y la integridad en el proceso establecido para el proceso de Desarrollo y Mantenimiento de los sistemas, incluyendo un riguroso control de calidad y la mejora continua a través de la adaptación ágil a los cambios emergentes durante los ciclos de prueba ha resultado en una entrega más ágil de los productos de software. Asimismo, se han establecido mecanismos de control de calidad más rigurosos durante estos ciclos para garantizar la precisión y fiabilidad en la recopilación de datos estadísticos. Además, se ha facilitado la consecución de los objetivos del proyecto mediante la mejora continua de los procesos, basada en la retroalimentación obtenida durante los ciclos de prueba. Estas acciones han contribuido significativamente a la eficiencia de los proyectos del DANE en las temáticas mencionadas, asegurando su cumplimiento exitoso y la entrega de resultados confiables en las operaciones. | AG44: INFORME DE SEGUIMIENTO TRIMESTRE 1 PROYECTOS DE LAS TEMÁTICAS COMERCIO, SERVICIOS, INDUSTRIA, INFRAESTRUCTURA .docx | AH44: No aplica | AI44: En gestión | AJ44: 47891312 | AK44: 11972828 | AP44: 0.5 | AQ44: 1 | AR44: Avance satisfactorio | AS44: El informe técnico del segundo trimestre continúa proporcionando un seguimiento detallado del progreso de los proyectos FIVI-CHV, ECG-EC, NUEVA EAC, EMS, EMCES, ETUP, EAS, EAI y EAID en las temáticas de Comercio, Servicios, Industria e Infraestructura. Durante este periodo, se evidencia un avance significativo en la optimización e integridad del proceso de Desarrollo y Mantenimiento de los Sistemas de Información, aspectos cruciales para garantizar la fiabilidad en la recopilación de datos estadísticos. El GIT de AIOC ha logrado mantener la gestión eficiente de los proyectos, superando los retos técnicos asociados a la implementación de la arquitectura de referencia, lo que ha contribuido a las necesidades de las áreas usuarias de las temáticas de comercio, servicios, industria e infraestructura permitiendo así una mejor estructura de los recursos que conforman los productos que se entregan. | AT44: INFORME DE SEGUIMIENTO TRIMESTRE 2 PROYECTOS DE LAS TEMÁTICAS COMERCIO, SERVICIOS, INDUSTRIA, INFRAESTRUCTURA .docx | AU44: No aplica | AV44: En gestión | AW44: 47891312 | AX44: 11972828 | BC44: =3/4 -> 0.75 | BD44: 1 | BE44: Avance satisfactorio | BF44: El informe técnico del tercer trimestre proporciona un seguimiento detallado del progreso de los proyectos FIVI-CHV, ECG-EC, NUEVA EAC, EMS, EMCES, ETUP, EAS, EAI, EAID y EAE en las temáticas de Comercio, Servicios, Industria e Infraestructura. Durante este periodo, se evidencia un avance significativo en la optimización e integridad del proceso de Desarrollo y Mantenimiento de los Sistemas de Información, aspectos cruciales para garantizar la fiabilidad en la recopilación de datos estadísticos. El GIT de AIOC ha logrado mantener la gestión eficiente de los proyectos, superando los retos técnicos asociados a la implementación de la arquitectura de referencia, lo que ha contribuido a las necesidades de las áreas usuarias de las temáticas de comercio, servicios, industria e infraestructura permitiendo así una mejor estructura de los recursos que conforman los productos que se entregan. | BG44: INFORME DE SEGUIMIENTO PROYECTOS DE LAS TEMÁTICAS COMERCIO, SERVICIOS, INDUSTRIA, INFRAESTRUCTURA TRIMESTRE 3 - 2024 PAI 22 GIT AIOC.docx | BH44: No aplica | BI44: En gestión | BJ44: 48208708 | BK44: 36156531 | BP44: =(4/4) -> 1 | BQ44: 1 | BR44: Avance satisfactorio | BS44: El informe técnico del cuarto trimestre refleja el seguimiento al progreso de los proyectos FIVI-CHV, ECG-EC, NUEVA EAC, EMS, EMCES, ETUP, EAS, EAI, EAID y EAE en las temáticas de Comercio, Servicios, Industria e Infraestructura. Durante este periodo, se evidencia un avance significativo en la optimización e integridad del proceso de Desarrollo y Mantenimiento de los Sistemas de Información, aspectos cruciales para garantizar la fiabilidad en la recopilación de datos estadísticos. El GIT de AIOC ha logrado mantener la gestión eficiente de los proyectos, superando los retos técnicos asociados a la implementación de la arquitectura de referencia, lo que ha contribuido a las necesidades de las áreas usuarias de las temáticas de comercio, servicios, industria e infraestructura permitiendo así una mejor estructura de los recursos que conforman los productos que se entregan. | BT44: INFORME DE SEGUIMIENTO PROYECTOS DE LAS TEMÁTICAS COMERCIO, SERVICIOS, INDUSTRIA, INFRAESTRUCTURA TRIMESTRE 4 - 2024 PAI 22 GIT AIOC.docx | BU44: No aplica | BV44: Terminado | BW44: 48208708 | BX44: 48208708
B45: OSIS_Oficina de Sistemas | C45: OSIS_23 | D45: L3 - Fortalecimiento de la producción estadística a partir de la innovación y la gestión tecnológica. | E45: L3.5_Fortalecer las capacidades tecnológicas que habilitan las operaciones estadísticas y la gestión institucional, asegurando la prestación de los servicios de tecnologías de la información y comunicaciones de la entidad. | F45: PEI_Plan Estratégico Institucional | G45: 1 | H45: Sistemas de Información soportados para la captura y/o inicio del operativo de las temáticas Comercio, Servicios Industria, Infraestructura, Censos de las cuales se hayan recibido solicitudes mediante la herramienta designada por mesa de servicio. | I45: Eficacia | J45: Porcentual | K45: Número de servicios solicitados por los usuarios para soportar los sistemas de información registrados en la plataforma de servicios atendidos en los tiempos establecidos / Número de servicios solicitados por los usuarios para soportar los sistemas de información registrados en la plataforma de servicios*100% | L45: Reporte de servicios trimestral solicitados mediante mesa de ayuda. | M45: 2024-01-02 | N45: 2024-12-31 | O45: 0.8 | P45: 0.85 | Q45: 0.9 | R45: 1 | S45: Si aplica | T45: 48208708 | U45: Modernización tecnológica para la transformación digital del DANE a nivel Nacional | V45: Sistemas de información implementados | X45: 11_Gestión de Información y Transformación Digital | Y45: 10_Plan Estratégico de Tecnologías de la Información y las Comunicaciones_PETI | Z45: POL_07: Gobierno Digital | AA45: No aplica | AC45: =(175/185) -> 0.9459459459 | AD45: 1 | AE45: Avance satisfactorio | AF45: El informe detalla el progreso de las solicitudes de servicio y de los proyectos EMAV, IPOC, ELIC, EAM, EAID, COMEX, EAC, EMC y PVPCT, parte integral del Plan Estratégico de Tecnologías de la Información (PETI) del DANE. Se destaca cómo el soporte brindado por el GIT ha incidido positivamente en la eficiencia, calidad de los procesos de Desarrollo, Mantenimiento y difusión de los sistemas de información de las temáticas Comercio, Servicios Industria, Infraestructura. Este soporte ha contribuido directamente al proceso de recolección de información estadística, asegurando la integridad y confiabilidad de los datos de las Operaciones Estadísticas. | AG45: GLPI_Marzo 2024 INFORME SERVICIOS TRIMESTRALES SOLICITADOS MEDIANTE MESA DE AYUDA TRIMESTRE 1 - 2024.docx | AH45: No aplica | AI45: En gestión | AJ45: 47891312 | AK45: 11972828 | AP45: 0.8857 | AQ45: 1 | AR45: Avance satisfactorio | AS45: El informe contiene las solicitudes de servicio y de los proyectos Certificados en línea para contratistas, COMEX, EAI, EAID, EAS, ELIC, EMC, EMMET, EMCES, SIPSA, EAC, EAM, IPOC, Y PVPCT, como punto de apoyo al fortalecimiento de la operación estadística y como parte integral del proceso estadístico acordado con los usuarios para el periodo. Se evidencia que el soporte brindado por el GIT ha incidido positivamente en la eficiencia y la calidad de los procesos de Soporte de los sistemas de información de las temáticas de Comercio, Servicios Industria e Infraestructura. Este soporte aporta de forma efectiva al proceso de recolección de la información, para asegurar la confiabilidad y eficiencia de las Operaciones Estadísticas. | AT45: INFORME SERVICIOS TRIMESTRALES SOLICITADOS MEDIANTE MESA DE AYUDA TRIMESTRE 2 - 2024 PAI 23 GIT AIOC.docx | AU45: No aplica | AV45: En gestión | AW45: 47891312 | AX45: 11972828 | BC45: =380/408 -> 0.931372549 | BD45: 1 | BE45: Avance satisfactorio | BF45: El informe contiene las solicitudes de servicio y de los proyectos Certificados en línea para contratistas, COMEX, EAI, EAID, EAS, ELIC, EMC, EMMET, EMCES, SIPSA, EAC, EAM, IPOC, Y PVPCT, como punto de apoyo al fortalecimiento de la operación estadística y como parte integral del proceso estadístico acordado con los usuarios para el periodo. Se evidencia que el soporte brindado por el GIT ha incidido positivamente en la eficiencia y la calidad de los procesos de Soporte de los sistemas de información de las temáticas de Comercio, Servicios Industria e Infraestructura. Este soporte aporta de forma efectiva al proceso de recolección de la información, para asegurar la confiabilidad y eficiencia de las Operaciones Estadísticas. | BG45: _INFORME SERVICIOS TRIMESTRALES SOLICITADOS MEDIANTE MESA DE AYUDA TRIMESTRE 3 - 2024 PAI 23 GIT AIOC.docx _REPORTE GLPI-3 TRIMESTRE | BH45: No aplica | BI45: En gestión | BJ45: 48208708 | BK45: 36156531 | BP45: =+(355/355) -> 1 | BQ45: 1 | BR45: Avance satisfactorio | BS45: Total de servicios solicitados y atendidos: 355. El informe para el cuarto trimestre de 2024 contiene las solicitudes de servicio y de los proyectos tales como Certificados en línea para contratistas, COMEX, EAI, EAID, EAS, ELIC, EMC, EMMET, EMCES, SIPSA, EAC, EAM, IPOC, Y PVPCT, como punto de apoyo al fortalecimiento de la operación estadística y como parte integral del proceso estadístico acordado con los usuarios para el periodo. Se evidencia que el soporte brindado por el GIT ha incidido positivamente en la eficiencia y la calidad de los procesos de Soporte de los sistemas de información de las temáticas de Comercio, Servicios Industria e Infraestructura. Este soporte aporta de forma efectiva al proceso de recolección de la información, para asegurar la confiabilidad y eficiencia de las Operaciones Estadísticas. | BT45: INFORME SERVICIOS TRIMESTRALES SOLICITADOS MEDIANTE MESA DE AYUDA TRIMESTRE 4 - 2024 PAI 23 GIT AIOC.docx _REPORTE GLPI-3 TRIMESTRE | BU45: No aplica | BV45: Terminado | BW45: 48208708 | BX45: 48208708
B46: OSIS_Oficina de Sistemas | C46: OSIS_24 | D46: L3 - Fortalecimiento de la producción estadística a partir de la innovación y la gestión tecnológica. | E46: L3.5_Fortalecer las capacidades tecnológicas que habilitan las operaciones estadísticas y la gestión institucional, asegurando la prestación de los servicios de tecnologías de la información y comunicaciones de la entidad. | F46: PEI_Plan Estratégico Institucional | G46: 1 | H46: Sistemas de información diseñados o fortalecidos para capturar y poner en marcha operativos de temáticas económicas a nivel nacional en pro de la habilitación de procesos de acuerdo con los lineamientos y recomendaciones derivadas del censo económico o requerimientos solicitados por las áreas. | I46: Eficacia | J46: Porcentual | K46: (Informe trimestral de seguimiento / 4)*100% | L46: Un informe trimestral de seguimiento de los proyectos con el cumplimiento del procedimiento relacionados con las temáticas Económicas. | M46: 2024-01-02 | N46: 2024-12-31 | O46: 0.25 | P46: 0.5 | Q46: 0.75 | R46: 1 | S46: Si aplica | T46: 48208708 | U46: Modernización tecnológica para la transformación digital del DANE a nivel Nacional | V46: Sistemas de información implementados | X46: 11_Gestión de Información y Transformación Digital | Y46: 10_Plan Estratégico de Tecnologías de la Información y las Comunicaciones_PETI | Z46: POL_07: Gobierno Digital | AA46: No aplica | AC46: =(1/ 4) -> 0.25 | AD46: 1 | AE46: Avance satisfactorio | AF46: El documento trimestral, presenta las evidencias y el avance del proyecto de censo económico como cumplimiento del procedimiento relacionados con las temáticas Económicas. | AG46: INFORME DE SEGUIMIENTO TRIMESTRE 1 PAI 24 CENU.docx | AH46: No aplica | AI46: En gestión | AJ46: 47891312 | AK46: 11972828 | AP46: 0.5 | AQ46: =+IF($P46=0,"No Aplica",IF($AP46/$P46>=100%,100%,$AP46/$P46)) -> 1 | AR46: =IF(ISTEXT(AQ46),"No reporta avance en el periodo",IF(AQ46<=69%,"Avance insuficiente",IF(AQ46>95%,"Avance satisfactorio",IF(AQ46>70%,"Avance suficiente",IF(AQ46<94%,"Avance suficiente",0))))) -> Avance satisfactorio | AS46: Se generó el informe correspondiente al II Trimestre de 2024 donde se analizan las gestiones realizadas en el marco del proyecto CENU, así como los diferentes riesgos, alertas y amenazas que podrían advertirse | AT46: INFORME DE SEGUIMIENTO TRIMESTRE 2 PAI 24 CENU | AU46: No aplica | AV46: =IF($AP46<1%,"Sin iniciar",IF($AP46=100%,"Terminado","En gestión")) -> En gestión | AW46: 47891312 | AX46: 11972828 | BC46: =3/4 -> 0.75 | BD46: 1 | BE46: Avance satisfactorio | BF46: El informe relacionado contiene las gestiones adelantadas por la Oficina de Sistemas de Información en relación con el Censo Económico Nacional Urbano - CENU; en resumidas cuentas, para el trimestre correspondiente al reporte se realizó la salida a producción de dos sectores para DMC y tres sectores de auto diligenciamiento, acorde al cronograma previsto para el CENU, así como de las aplicaciones transversales requeridas para tal fin. | BG46: INFORME DE SEGUIMIENTO TRIMESTRE 3 PAI 24 CENU | BH46: No aplica | BI46: En gestión | BJ46: 48208708 | BK46: 36156531 | BP46: =(4/4) -> 1 | BQ46: 1 | BR46: Avance satisfactorio | BS46: El informe relacionado contiene las gestiones adelantadas por la Oficina de Sistemas de Información en relación con el Censo Económico Nacional Urbano - CENU; en resumidas cuentas, para el trimestre correspondiente al reporte se centra en la salida a producción de los sectores Web pendientes (Construcción y Establecimientos WEB y el soporte y monitoreo del CENU. | BT46: INFORME DE SEGUIMIENTO TRIMESTRE 4 PAI 24 CENU | BU46: No aplica | BV46: Terminado | BW46: 48208708 | BX46: 48208708
B47: OSIS_Oficina de Sistemas | C47: OSIS_25 | D47: L3 - Fortalecimiento de la producción estadística a partir de la innovación y la gestión tecnológica. | E47: L3.5_Fortalecer las capacidades tecnológicas que habilitan las operaciones estadísticas y la gestión institucional, asegurando la prestación de los servicios de tecnologías de la información y comunicaciones de la entidad. | F47: PEI_Plan Estratégico Institucional | G47: 1 | H47: Sistemas de información fortalecidos para la captura de información e inicio de operativo de las temáticas SIPSA, SIPSA LECHE y Censos a nivel nacional, con el objetivo de habilitar procesos acordes y alineados a las necesidades específicas de cada área. | I47: Eficacia | J47: Porcentual | K47: (Informe trimestral de seguimiento / 4)*100% | L47: Un informe trimestral de seguimiento de los proyectos con el cumplimiento del procedimiento de las temáticas SIPSA, SIPSA LECHE y Censos. | M47: 2024-01-02 | N47: 2024-12-31 | O47: 0.25 | P47: 0.5 | Q47: 0.75 | R47: 1 | S47: Si aplica | T47: 222989154 | U47: Modernización tecnológica para la transformación digital del DANE a nivel Nacional | V47: Sistemas de información implementados | X47: 11_Gestión de Información y Transformación Digital | Y47: 10_Plan Estratégico de Tecnologías de la Información y las Comunicaciones_PETI | Z47: POL_07: Gobierno Digital | AA47: No aplica | AC47: =(1/ 4) -> 0.25 | AD47: 1 | AE47: Avance satisfactorio | AF47: En dicho documento, se presenta el seguimiento de los proyectos relacionados con las temáticas SIPSA, SIPSA LECHE y Censos a nivel nacional, destacando su avance y cómo estás aplicaciones se convertirán en herramientas de apoyo en la recolección de información estadística. El GIT de AIOC ha logrado establecer mecanismos de validación y control de calidad para garantizar la integridad y fiabilidad de los datos que se pretenden capturar durante los operativos. Además de promover la colaboración efectiva mediante mesas de trabajo entre los diferentes equipos y partes interesadas para asegurar una implementación coherente y alineada con los objetivos de los proyectos agropecuarios y demás censos a nivel nacional. | AG47: INFORME DE SEGUIMIENTO TRIMESTRE 1 PROYECTOS SIPSA, SIPSA LECHE y CENSOS A NIVEL NACIONAL.docx | AH47: No aplica | AI47: En gestión | AJ47: 218249813 | AK47: 54562453 | AP47: 0.5 | AQ47: 1 | AR47: Avance satisfactorio | AS47: El informe técnico del segundo trimestre proporciona un seguimiento continuo a los proyectos relacionados con las temáticas SIPSA, SIPSA LECHE y Censos a nivel nacional, destacando su avance y cómo estás aplicaciones se convertirán en herramientas de apoyo en la recolección de información estadística. El GIT de AIOC proyectos relacionados con las temáticas SIPSA, SIPSA LECHE y Censos a nivel nacional ha mostrado un progreso sostenido, debido a los espacios de sensibilización generados desde el Git a través de mesas de trabajo con las partes interesadas, utilizando mecanismos de control y validación de calidad a los aplicativos destinados para el operativo. | AT47: INFORME DE SEGUIMIENTO PROYECTOS SIPSA, SIPSA LECHE y CENSOS A NIVEL NACIONAL TRIMESTRE 2 - 2024 PAI 25 GIT AIOC.docx | AU47: No aplica | AV47: En gestión | AW47: 218249813 | AX47: 54562453 | BC47: =3/4 -> 0.75 | BD47: 1 | BE47: Avance satisfactorio | BF47: En dicho documento, se presenta el seguimiento de los proyectos relacionados con las temáticas SIPSA, SIPSA LECHE y Censos a nivel nacional, durante el tercer Trimestre de 2024, destacando su avance y cómo estás aplicaciones se convertirán en herramientas de apoyo en la recolección de información estadística. El GIT de AIOC ha logrado establecer mecanismos de validación y control de calidad para garantizar la integridad y fiabilidad de los datos que se pretenden capturar durante los operativos. Además de promover la colaboración efectiva mediante mesas de trabajo entre los diferentes equipos y partes interesadas para asegurar una implementación coherente y alineada con los objetivos de los proyectos agropecuarios y demás censos a nivel nacional. | BG47: INFORME DE SEGUIMIENTO PROYECTOS SIPSA, SIPSA LECHE y CENSOS A NIVEL NACIONAL TRIMESTRE 3 - 2024 PAI 25 GIT AIOC.docx | BH47: No aplica | BI47: En gestión | BJ47: 219696240 | BK47: 164772180 | BP47: =(4/4) -> 1 | BQ47: 1 | BR47: Avance satisfactorio | BS47: En el documento se presenta el seguimiento realizado durante el 4 trimestre de 2024, de los proyectos relacionados con las temáticas SIPSA, SIPSA LECHE y Censos a nivel nacional, destacando su avance y cómo estás aplicaciones se convertirán en herramientas de apoyo en la recolección de información estadística. El GIT de AIOC ha logrado establecer mecanismos de validación y control de calidad para garantizar la integridad y fiabilidad de los datos que se pretenden capturar durante los operativos. Además de promover la colaboración efectiva mediante mesas de trabajo entre los diferentes equipos y partes interesadas para asegurar una implementación coherente y alineada con los objetivos de los proyectos agropecuarios y demás censos a nivel nacional. | BT47: INFORME DE SEGUIMIENTO PROYECTOS SIPSA, SIPSA LECHE y CENSOS A NIVEL NACIONAL TRIMESTRE 4 - 2024 PAI 25 GIT AIOC.docx | BU47: No aplica | BV47: Terminado | BW47: 222989154 | BX47: 222989154
B48: OAJ_Oficina Asesora Jurídica | C48: OAJ_1 | D48: L4 - Fortalecimiento de la gestión institucional y el modelo organizacional | E48: L4.5_Fortalecer la implementación y cumplimiento de los mecanismos de la política de prevención del daño antijurídico. | F48: PEI_Plan Estratégico Institucional | G48: 1 | H48: Mecanismos establecidos en la Política de Prevención del Daño Antijurídico para la vigencia 2024, verificados | I48: Eficacia | J48: Porcentual | K48: Porcentaje de elaboración de documento generado | L48: Informe de cumplimiento de los mecanismos definidos en la Política de Prevención del Daño Antijurídico establecidos para la vigencia 2024 | M48: 2024-10-01 | N48: 2024-12-31 | O48: 0 | P48: 0 | Q48: 0 | R48: 1 | S48: Si aplica | T48: 70109161.71 | U48: Fortalecimiento de la capacidad institucional para la implementación del modelo de gestión Nacional | V48: Documentos de planeación | W48: 487211066.7 | X48: 14_Gestión jurídica | Y48: No Aplica | Z48: POL_09:Defensa Jurídica | AA48: No aplica | AD48: No Aplica | AE48: No reporta avance en el periodo | AF48: No aplica | AG48: No aplica | AH48: No aplica | AI48: =IF(AC48<1%,"Sin iniciar",IF(AC48=100%,"Terminado","En gestión")) -> Sin iniciar | AJ48: 70109161.71 | AK48: 0 | AL48: 379392666.7 | AM48: 204960000 | AN48: 36485066 | AQ48: No Aplica | AR48: No reporta avance en el periodo | AS48: No aplica | AT48: No aplica | AU48: No aplica | AV48: Sin iniciar | AW48: N/A | AX48: N/A | AY48: 431292666.7 | AZ48: 204960000 | BA48: 137182666 | BD48: No Aplica | BE48: No reporta avance en el periodo | BF48: No aplica | BG48: No aplica | BH48: No aplica | BI48: Sin iniciar | BJ48: 70109161.71 | BK48: 0 | BL48: 516041333.3 | BM48: 436849333.3 | BN48: 252483066.7 | BP48: 1 | BQ48: =+IF($R48=0,"No Aplica",IF($BP48/$R48>=100%,100%,$BP48/$R48)) -> 1 | BR48: =IF(ISTEXT(BQ48),"No reporta avance en el periodo",IF(BQ48<=69%,"Avance insuficiente",IF(BQ48>95%,"Avance satisfactorio",IF(BQ48>70%,"Avance suficiente",IF(BQ48<94%,"Avance suficiente",0))))) -> Avance satisfactorio | BS48: Elaboración del informe del Plan de Acción de la Política de Prevención del Daño Antijurídico, junto con su anexo correspondiente, mediante el cual se constata el cumplimiento de los mecanismos allí definidos para la vigencia 2024. | BT48: 1.Informe Plan de Acción PPDA 2024-2025 2.Anexo 1. Informe Mesas de Trabajo PDA 3.Anexo 2. Memorando Informe Mesas de Trabajo PDA | BU48: No aplica | BV48: =IF($BP48<1%,"Sin iniciar",IF($BP48=100%,"Terminado","En gestión")) -> Terminado | BW48: 70109161.71 | BX48: 70109161.71 | BY48: 487211066.7 | BZ48: 473393199.7 | CA48: 409233199.7
B49: OAJ_Oficina Asesora Jurídica | C49: OAJ_2 | D49: L4 - Fortalecimiento de la gestión institucional y el modelo organizacional | E49: L4.5_Fortalecer la implementación y cumplimiento de los mecanismos de la política de prevención del daño antijurídico. | F49: PEI_Plan Estratégico Institucional | G49: 1 | H49: Fase de Juzgamiento en los procesos disciplinarios antes del término de prescripción, finalizada | I49: Eficacia | J49: Porcentual | K49: Número de procesos tramitados antes del término prescriptivo / Número de procesos recibidos de instrucción* 100% | L49: Decisión suscrita y notificada | M49: 2024-10-01 | N49: 2024-12-31 | O49: 0 | P49: 0 | Q49: 0 | R49: 1 | S49: Si aplica | T49: 70109161.71 | U49: Fortalecimiento de la capacidad institucional para la implementación del modelo de gestión Nacional | V49: Documentos de planeación | X49: 14_Gestión jurídica | Y49: No Aplica | Z49: POL_01: Gestión Estratégica del Talento Humano | AA49: No aplica | AD49: No Aplica | AE49: No reporta avance en el periodo | AF49: No aplica | AG49: No aplica | AH49: No aplica | AI49: Sin iniciar | AK49: 0 | AQ49: No Aplica | AR49: No reporta avance en el periodo | AS49: No aplica | AT49: No aplica | AU49: No aplica | AV49: Sin iniciar | AW49: N/A | AX49: N/A | BD49: No Aplica | BE49: No reporta avance en el periodo | BF49: No aplica | BG49: No aplica | BH49: No aplica | BI49: Sin iniciar | BJ49: 70109161.71 | BK49: 0 | BP49: 1 | BQ49: 1 | BR49: Avance satisfactorio | BS49: Gestión del fallo de primera instancia No. 001 del 26 de diciembre de 2024, correspondiente al expediente disciplinario 023-2020 | BT49: 1.Fallo No.1 primera instancia proceso 023-2020 2. Radicado 202410000398 comunicación fallo investigado 3. Correo entrega radicado 202410000398 comunicación fallo 4.Radicado 202410000397 comunicación fallo apoderado 5.Correo entrega radicado 202410000397 comunicación fallo apoderado | BU49: No aplica | BV49: Terminado | BW49: 70109161.71 | BX49: 70109161.71
B50: OAJ_Oficina Asesora Jurídica | C50: OAJ_3 | D50: L4 - Fortalecimiento de la gestión institucional y el modelo organizacional | E50: L4.5_Fortalecer la implementación y cumplimiento de los mecanismos de la política de prevención del daño antijurídico. | F50: PEI_Plan Estratégico Institucional | G50: 1 | H50: Acompañamiento jurídico brindado a los supervisores en la gestión de la liquidación de los convenios o contratos interadministrativos perfeccionados y en ejecución al 7 de julio de 2023 | I50: Eficacia | J50: Porcentual | K50: Acompañamientos jurídicos brindados/Solicitudes de acompañamiento requeridas en el trimestre*100% | L50: Soporte documental elaborado por el abogado asignado para efectuar la revisión jurídica del trámite de liquidación del convenio o contrato interadministrativo | M50: 2024-01-15 | N50: 2024-12-31 | O50: 1 | P50: 1 | Q50: 1 | R50: 1 | S50: Si aplica | T50: 70109161.71 | U50: Fortalecimiento de la capacidad institucional para la implementación del modelo de gestión Nacional | V50: Documentos de planeación | X50: 14_Gestión jurídica | Y50: No Aplica | Z50: POL_05:Compras y Contratación Pública | AA50: No aplica | AC50: =38/38*100% -> 1 | AD50: 1 | AE50: Avance satisfactorio | AF50: Durante el primer trimestre del año 2024, la Oficina Asesora Jurídica, para el cumplimiento de la meta "acompañamiento jurídico brindado a los supervisores en la gestión de la liquidación de los convenios o contratos interadministrativos perfeccionados y en ejecución al 7 de julio de 2023", realizó diferentes acciones jurídicas para efectos de gestionar las diferentes liquidaciones de los convenios y contratos interadministrativos de la entidad. | AG50: Como soporte de las gestiones adelantadas por la Oficina Asesora Jurídica, durante el primer trimestre del año 2024, se enlistan a continuación las siguientes. 1. Gestión cierre convenio Universidad de los Andes 2. Gestión liquidación convenio interadministrativo 313 (020) de 2020 SDP DANE - FONDANE 3. Gestión liquidación convenio 001 de 2022 CRA-DANE 4. Gestión liquidación convenio interadministrativo No. 01-2021 DANE- FONDANE y la Policía Nacional 5. Gestión liquidación convenio 027 de 2009 DANE-MADR 6. Gestión liquidación Contrato interadministrativo No. 4600094921 (Medellín) de 2022 7. Gestión liquidación convenio Alcaldía de Montería 8. Gestión liquidación convenios y contratos interadministrativos DICE 9. Gestión liquidación convenio 015-864 (FONTIC) 10. Gestión liquidación Convenio Interadministrativo DANE - MEN 2022 11. Gestión liquidación contrato de comodato N°14 del 2015 12. Gestión liquidación convenio 027 de 2009 DANE-MADR 13. Gestión liquidación convenio 027 de 2009 DANE-MADR-1 14. Gestión liquidación contrato No 4600094921 Medellín 2022 15. Gestión liquidación Acuerdo de financiación No. 025 de 2022 16. Gestión liquidación convenios y contratos interadministrativos DIRPEN 17. Gestión liquidación convenio de cooperación No. FNTC-230-2019 18. Gestión liquidación convenio 058 -230 de 2019 FIDUCOLDEX 19. Gestión liquidación convenio 058 230 de 2019 FIDUCOLDEX 20. Gestión liquidación acta final liquidación Contrato No. 347 de 2021 21. Gestión liquidación convenio 058 -230 de 2019 FIDUCOLDEX 22. Gestión liquidación convenio RTVC 2021 23. Gestión liquidación CI-003-2023 24. Gestión liquidación convenio 005 de 2020 Montería 25. Gestión liquidación Convenio de asociación No. 044 de 2017 26. Gestión liquidación convenio 015-864 (FONTIC) 27. Gestión liquidación convenio 009-2018 Banco de la República 28. Gestión liquidación convenio 027 de 2009 DANE-MADR 29. Gestión liquidación convenio RTVC 2021 30. Gestión liquidación contrato No 4600094921 DE 2022 Departamento de Planeación Medellín 31. Gestión liquidación Convenio No.010-19 - DEPARTAMENTO ADMINISTRATIVO NACIONAL DE ESTADÍSTICA – DANE 32. Gestión liquidación convenio 009-2014 de 2019 33. Gestión liquidación contrato de comodato 032-4282 de 2012 (IGAC) 34. Gestión Liquidación Convenio No. 004 de 2022 suscrito con la Universidad del Rosario 35. Gestión liquidación contrato de comodato 032-4282 de 2012 (IGAC) 36. Gestión Liquidación convenio 654 de 2022 37. Gestión Liquidación 634 de 2022 38. Gestión Liquidación convenio 009-2014 de 2019 | AH50: No aplica | AI50: Terminado | AK50: =(70109161.7142857)/12*3 -> 17527290.43 | AP50: =5/5*100% -> 1 | AQ50: 1 | AR50: Avance satisfactorio | AS50: Para el periodo evaluado la Oficina Asesora Jurídica brindo acompañamiento jurídico en la gestión de la liquidación de los convenios o contratos interadministrativos perfeccionados y en ejecución al 7 de julio de 2023 | AT50: 1.Matriz convenios liquidados II Trimestre 2024 2. Matriz liquidaciones en gestión 3. Carpeta soportes de las gestiones adelantadas para las liquidaciones | AU50: No aplica | AV50: Terminado | AW50: 56555345.14 | AX50: 28277672.57 | BC50: =14/14*100% -> 1 | BD50: 1 | BE50: Avance satisfactorio | BF50: Durante el tercer trimestre del año 2024, la Oficina Asesora Jurídica, para el cumplimiento de la meta “acompañamiento jurídico brindado a los supervisores en la gestión de la liquidación de los convenios o contratos interadministrativos perfeccionados y en ejecución al 7 de julio de 2023", realizó diferentes acciones jurídicas para efectos de gestionar las diferentes liquidaciones de los convenios y contratos interadministrativos de la entidad. | BG50: Como soporte de las gestiones adelantadas por la Oficina Asesora Jurídica, durante el tercer trimestre del año 2024, se enlistan a continuación las siguientes. 1.Acta de liquidación C-864-2021 2.Acta Liquidación Convenio de Cooperación 56-2021 3.Acta de liquidación Superservicios contrato 412 de 2022 4.Acta de liquidación Imprenta Nacional de Colombia- Cl-003-2023 OTRAS GESTIONES 5. Gestión frente a la solicitud cambio supervisor convenio 011-2020 supernotariado y DANE 6. Gestión frente a la liquidación del Convenio 2882 de 2021-Municipio de Villavicencio 7.Trámite de Liquidación Final Cto. 010-2021 CISA-DANE-FONDANE 8.Trámite de liquidación convenio 05-868 2021 Ministerio del Interior 9. Gestión frente a la liquidación BANREP 10.Gestión frente a la liquidación contrato 02_2023 - DANE 11. Gestión frente a la solicitud de adición y prórroga convenio FNTC 180 de 2023 12. Gestión frente a la solicitud de trámite de liquidación contrato 018-378 de 2022 DANE -IDEAM 13.Trámite de liquidación contrato Nro. 028 de 2020 ICETEX 14.Solicitud trámite de liquidación contrato 012_2022 | BH50: No aplica | BI50: Terminado | BJ50: 70109161.71 | BK50: 52581871.29 | BP50: =16/16*100% -> 1 | BQ50: 1 | BR50: Avance satisfactorio | BS50: Durante el cuarto trimestre del año 2024, la Oficina Asesora Jurídica, para el cumplimiento de la meta “acompañamiento jurídico brindado a los supervisores en la gestión de la liquidación de los convenios o contratos interadministrativos perfeccionados y en ejecución al 7 de julio de 2023", realizó diferentes acciones jurídicas para efectos de gestionar las diferentes liquidaciones de los convenios y contratos interadministrativos de la entidad. | BT50: 1.Contrato 018 de 2022 2.Contrato 019 de 2022 3.Contrato 02-2023 4.Contrato 05-868 de 2021 5.Contrato 410 de 2017 6.Contrato BID 056-2021 7.Contrato CO1.PCCNTR.5232431 de 2023 8.Contrato No. 313-2020 9.Contrato RTVC 027 de 2021 10.Contrato RTVC 12 de 2022 11.Convenio 014(347) de 2021 12.Convenio 015 de 2021 13.Convenio 058 de 2019 14.Convenio 116 de 2020 15.Convenio 44 de 2022 16.Convenio 4600094921 de 2022 Diapositiva liquidación comite Directivo | BU50: No aplica | BV50: Terminado | BW50: 70109161.71 | BX50: =+BW50/12*12 -> 70109161.71
B51: OAJ_Oficina Asesora Jurídica | C51: OAJ_4 | D51: L4 - Fortalecimiento de la gestión institucional y el modelo organizacional | E51: L4.5_Fortalecer la implementación y cumplimiento de los mecanismos de la política de prevención del daño antijurídico. | F51: PEI_Plan Estratégico Institucional | G51: 1 | H51: Procedimiento sancionatorio de conformidad con lo establecido en el artículo 57 de la Ley 2335 de 2023 elaborado | I51: Eficiencia | J51: Porcentual | K51: Porcentaje de avance elaboración del procedimiento Sancionatorio | L51: Borrador de procedimiento sancionatorio acorde con lo previsto en el CPACA. | M51: 2024-04-01 | N51: 2024-12-31 | O51: 0 | P51: 0.5 | Q51: 0.75 | R51: 1 | S51: Si aplica | T51: 70109161.71 | U51: Fortalecimiento de la capacidad institucional para la implementación del modelo de gestión Nacional | V51: Documentos de lineamientos técnicos | W51: 266978629 | X51: 14_Gestión jurídica | Y51: No Aplica | Z51: POL_10:Mejora Normativa | AA51: No aplica | AD51: No Aplica | AE51: No reporta avance en el periodo | AF51: No aplica | AG51: No aplica | AH51: No aplica | AI51: Sin iniciar | AL51: 278079333.3 | AM51: 159000000 | AN51: 37966667 | AP51: 0.5 | AQ51: 1 | AR51: Avance satisfactorio | AS51: La Oficina Asesora Jurídica en cumplimiento del Plan de Acción de la Dependencia, elaboró un primer borrador del proyecto de Manual denominado: Manual de Procedimiento Administrativo Sancionatorio. Este borrador de Manual fue compartido a las diferentes dependencias el 2 de mayo de 2024, recibiendo retroalimentación de la Secretaría general y de la Dirección de Recolección y Acopio, que se encuentra en revisión para la realización de los ajustes o modificaciones que jurídicamente correspondan. | AT51: Manual Procedimiento Sancionatorio | AU51: No aplica | AV51: En gestión | AY51: 278079333.3 | AZ51: 160478629 | BA51: 117466667 | BC51: 0.75 | BD51: 1 | BE51: Avance satisfactorio | BF51: La Oficina Asesora Jurídica en cumplimiento del Plan de Acción de la Dependencia, elaboró un primer borrador del proyecto de Manual denominado: Manual de Procedimiento Administrativo Sancionatorio, respecto de la revisión la Secretaria General remitió comentarios sobre el documento; de otra parte, el documento se encuentra en revisión por parte de la jefatura de la OAJ, se adjuntan dos soportes de lo informado. | BG51: 1.Revisión interna OAJ Manual procedimiento Sancionatorio. 2.Comentarios SG al Manual de Procedimiento Administrativo Sancionatorio. | BH51: No aplica | BI51: En gestión | BJ51: 70109161.71 | BK51: 52581871.29 | BL51: 257838512 | BM51: 256478629 | BN51: 176183756.1 | BP51: 1 | BQ51: 1 | BR51: Avance satisfactorio | BS51: Frente al cumplimiento de la meta, se cuenta con la siguiente documentación: 1.Manual Procedimiento Sancionatorio 2.Criterios inicio del proceso administrativo de imposición de sanción 3.Proyecto de Resolución competencias proceso sancionatorio 4.Salidas de radicado No. 20244200009073 5.Correo Centro Occidente 6.Correo Norte | BT51: 1.Manual Procedimiento Sancionatorio 2.Criterios inicio del proceso administrativo de imposición de sanción 3.Proyecto de Resolución competencias proceso sancionatorio 4.Salidas de radicado No. 20244200009073 5.Correo Centro Occidente 6.Correo Norte | BU51: No aplica | BV51: Terminado | BW51: 70109161.71 | BX51: =+BW51/12*12 -> 70109161.71 | BY51: 266978629 | BZ51: 265778629 | CA51: 211480038
B52: OAJ_Oficina Asesora Jurídica | C52: OAJ_5 | D52: L4 - Fortalecimiento de la gestión institucional y el modelo organizacional | E52: L4.5_Fortalecer la implementación y cumplimiento de los mecanismos de la política de prevención del daño antijurídico. | F52: PEI_Plan Estratégico Institucional | G52: 1 | H52: Proceso de reglamentación de la Ley de Estadísticas Oficiales acompañado jurídicamente | I52: Eficiencia | J52: Porcentual | K52: Acompañamientos jurídicos brindados/Solicitudes de acompañamiento requeridas en el trimestre *100% | L52: Informe final del resultado del proceso se acompañamiento jurídico en las diferentes reglamentaciones derivadas de la Ley 2335 de 2023. | M52: 2024-04-01 | N52: 2024-12-31 | O52: 0 | P52: 1 | Q52: 1 | R52: 1 | S52: Si aplica | T52: 70109161.71 | U52: Fortalecimiento de la capacidad institucional para la implementación del modelo de gestión Nacional | V52: Documentos de lineamientos técnicos | X52: 14_Gestión jurídica | Y52: No Aplica | Z52: POL_10:Mejora Normativa | AA52: No aplica | AD52: No Aplica | AE52: No reporta avance en el periodo | AF52: No aplica | AG52: No aplica | AH52: No aplica | AI52: Sin iniciar | AP52: =21/21*100% -> 1 | AQ52: 1 | AR52: Avance satisfactorio | AS52: La Oficina Asesora Jurídica ha brindado acompañamiento en lo referente a la reglamentación de los direfetentes artículos de la Ley 2335 de 2023 | AT52: 1. Informe sobre el estado de avance reglamentación Ley 2335 de 2023 2. Correos electrónicos | AU52: No aplica | AV52: Terminado | BC52: 1 | BD52: 1 | BE52: Avance satisfactorio | BF52: La Oficina Asesora Jurídica ha brindado acompañamiento en lo referente a la reglamentación de los diferentes artículos de la Ley 2335 de 2023, para el periodo evaluado se adelantaron las siguientes reuniones. 1.Reunión Lun 26_08_2024 2.Reunión Mié 28_08_2024 3.Reunión Lun 02_09_2024 4.Reunión Mar 03_09_2024 5.Reunión Jue 05_09_2024 Como resultado de las gestiones adelantadas, se cuenta con un informe con corte al 30 de septiembre de 2024. 6.Informe estado de avance Ley 2335_30092024 | BG52: La Oficina Asesora Jurídica ha brindado acompañamiento en lo referente a la reglamentación de los diferentes artículos de la Ley 2335 de 2023, para el periodo evaluado se adelantaron las siguientes reuniones. 1.Reunión Lun 26_08_2024 2.Reunión Mié 28_08_2024 3.Reunión Lun 02_09_2024 4.Reunión Mar 03_09_2024 5.Reunión Jue 05_09_2024 Como resultado de las gestiones adelantadas, se cuenta con un informe con corte al 30 de septiembre de 2024. 6.Informe estado de avance Ley 2335_30092025 | BH52: No aplica | BI52: Terminado | BJ52: 70109161.71 | BK52: 52581871.29 | BP52: =1/1*100% -> 1 | BQ52: 1 | BR52: Avance satisfactorio | BS52: Informe final del resultado del proceso de acompañamiento jurídico en las diferentes reglamentaciones derivadas de la Ley 2335 de 2023,el cual contiene el detalle del estado y las principales actividades que se han adelantado en el seguimiento a la reglamentación de los artículos de la Ley 2335 de 2023, en lo que corresponde a las competencias de apoyo jurídico de la OAJ. | BT52: Informe final del resultado del proceso de acompañamiento jurídico en las diferentes reglamentaciones derivadas de la Ley 2335 de 2023 | BU52: No aplica | BV52: Terminado | BW52: 70109161.71 | BX52: 70109161.71
B53: OAJ_Oficina Asesora Jurídica | C53: OAJ_6 | D53: L4 - Fortalecimiento de la gestión institucional y el modelo organizacional | E53: L4.5_Fortalecer la implementación y cumplimiento de los mecanismos de la política de prevención del daño antijurídico. | F53: PEI_Plan Estratégico Institucional | G53: 1 | H53: Trámite de los actos administrativos del sector estadística acompañados jurídicamente | I53: Eficacia | J53: Porcentual | K53: Acompañamientos jurídicos brindados/Solicitudes de acompañamiento requeridas en el trimestre *100% | L53: Proyectos de Actos administrativos revisados que guarden relación directa con el sector estadístico | M53: 2024-01-15 | N53: 2024-12-31 | O53: 1 | P53: 1 | Q53: 1 | R53: 1 | S53: Si aplica | T53: 70109161.71 | U53: Fortalecimiento de la capacidad institucional para la implementación del modelo de gestión Nacional | V53: Documentos de lineamientos técnicos | X53: 14_Gestión jurídica | Y53: No Aplica | Z53: POL_10:Mejora Normativa | AA53: No aplica | AC53: =4/4*100% -> 1 | AD53: 1 | AE53: Avance satisfactorio | AF53: Durante el primer trimestre del año 2024, la Oficina Asesora Jurídica, para el cumplimiento de la meta "Trámite de los actos administrativos del sector estadística acompañados jurídicamente", realizó diferentes acciones jurídicas para adelantar las diferentes revisiones jurídicas normativas requeridas por entidades o internamente | AG53: Como soporte de las gestiones adelantadas por la Oficina Asesora Jurídica, durante el primer trimestre del año 2024, se enlistan a continuación las siguientes. 1. Gestión actualización de certificaciones de población a 2023 Decreto 1652 de 2021 2. Gestión Proyecto de Ley Orgánica “Por la cual se desarrolla el artículo 13 de la Ley 2200 de 2022 3. Gestión Proyecto de Ley de Datos - MinTIC 4. Gestión Decreto CENU | AH53: No aplica | AI53: Terminado | AP53: =17/17*100% -> 1 | AQ53: 1 | AR53: Avance satisfactorio | AS53: Para el periodo evaluado la Oficina Asesora Jurídica brindo acompañamiento jurídico en la revisión de los diferentes actos administrativos que guardan relación directa con el sector estadístico | AT53: Revisión de los siguientes actos administrativos: 1.Resolución por la cual se crean los Comités Estadísticos Sectoriales, las Mesas Estadísticas Sectoriales y se regula su estructura y funcionamiento 2. Resolución por la cual se modifica la Clasificación Central de Productos Versión 2.1 Adaptada para Colombia – CPC Ver. 2.1 A.C. (2022) y se dictan otras disposiciones. 3.Resolución Por la cual se adopta el Marco de Aseguramiento Integral de la Calidad Estadística del Sistema Estadístico Nacional de Colombia” 4.Resolución Por la cual se adopta la Norma Técnica de Calidad del Proceso Estadístico. Requisitos de calidad para la generación de estadísticas NTC PE 1000:2020" 5. Decreto 0724 de 2024 - Asignación especial para los resguardos indígenas. 6.Comentarios proyecto normativo “Por medio del cual se reglamenta el Sistema Nacional de Registro, Atención, Seguimiento y Monitoreo de las Violencias Basadas en Género”. 7. Respuesta a solicitud Información Memoria del Convenio No.138 sobre la edad mínima de admisión de empleo 1973 8.Observaciones proyecto reglamentación Ley 70/93 9. Proyecto de reglamento: “Por el cual se adopta el Reglamento Interno del Mecanismo Especial de Seguimiento y Evaluación de las Políticas Públicas – MESEPP 10.Proyecto de Ley 417/2024C “Por la cual se ordena la caracterización de la mujer minera, guaquera y minera ancestral en Colombia y se dictan otras disposiciones” 11.Reglamentación de la Ley 2294 de 2023 “Por el cual se expide el Plan Nacional de Desarrollo 2022- 2026 -Colombia Potencia Mundial De La Vida 12.Normativa relacionada con el artículo 5 de la Ley 2281 de 2023. 13.Viabilidad propuesta proyecto de Ley “Por medio de la cual se dictan disposiciones para el suministro, intercambio y aprovechamiento de la infraestructura de datos del Estado colombiano (IDEC) y la interoperabilidad de los sistemas de información de las entidades públicas y se dictan otras disposiciones” 14.Concepto institucional del DANE al Proyecto de Ley 234 de 2024. 15.Proyecto de decreto “Por el cual se modifica el literal d del artículo 2.2.1.5.15 y el artículo 2.2.1.5.18 del Decreto 1066 de 2015 adicionado por el artículo 1 del Decreto 900 de 2020 por el cual se reglamenta parcialmente la Ley 1962 de 2019 en lo relativo a las Regiones Administrativas y de Planificación – RAP”. 16.Concepto institucional del DANE al Proyecto de Ley 433 de 2024 Cámara – 293 de 2023 Senado. 17. Comentarios al proyecto de decreto: “por medio del cual se adiciona el Título 4, de la Parte 3, del Libro 2 del Decreto 1066 de 2015, Único Reglamentario del Sector Administrativo del Interior, con el fin de reglamentar el artículo 358 de la Ley 2294 de 2023 “Por la cual se expide el Plan Nacional de Desarrollo 2022-2026 Colombia Potencia Mundial de la Vida” en lo relacionado con la composición y funcionamiento de la composición y funcionamiento de la Comisión Mixta Nacional para Asuntos Campesinos”. | AU53: No aplica | AV53: Terminado | BC53: =11/11*100% -> 1 | BD53: 1 | BE53: Avance satisfactorio | BF53: Para el periodo evaluado la Oficina Asesora Jurídica brindo acompañamiento jurídico en la revisión de los diferentes actos administrativos 1. Proyecto de Ley No 221 de 2024 Senado - Respuesta proyecto de ley libertad religiosa 2. Proyecto de Ley Orgánica 379 de 2024 Cámara - 281 de 2024 Senado 3. Solicitud de estado de avance de los instrumentos normativos protocolizados en la MPC 4. Análisis Proyecto de Ley Mujeres Rurales, Campesinas y Pesqueras - PL 070-2023C 5. Memorando Censo Pescadores Ley 2268 de 2022 6. Ley 2418 de 2024 Ley de Reserva de Plazas para personas con discapacidad 7. Reforma Laboral caracterización de sectores vulnerables de micronegocios 8. Concepto Proyecto de Ley No. 456 de 2024 Cámara -081 de 2023 Senado 9. Reporte Circular 38-4 Reglamentación PND julio 202410. 10. Reporte Circular 38-4 Reglamentación PND agosto 2024 11. Reporte Circular 38-4 Reglamentación PND septiembre 2024 | BG53: 1. Proyecto de Ley No 221 de 2024 Senado - Respuesta proyecto de ley libertad religiosa 2. Proyecto de Ley Orgánica 379 de 2024 Cámara - 281 de 2024 Senado 3. Solicitud de estado de avance de los instrumentos normativos protocolizados en la MPC 4. Análisis Proyecto de Ley Mujeres Rurales, Campesinas y Pesqueras - PL 070-2023C 5. Memorando Censo Pescadores Ley 2268 de 2022 6. Ley 2418 de 2024 Ley de Reserva de Plazas para personas con discapacidad 7. Reforma Laboral caracterización de sectores vulnerables de micronegocios 8. Concepto Proyecto de Ley No. 456 de 2024 Cámara -081 de 2023 Senado 9. Reporte Circular 38-4 Reglamentación PND julio 202410. 10. Reporte Circular 38-4 Reglamentación PND agosto 2024 11. Reporte Circular 38-4 Reglamentación PND septiembre 2024 | BH53: No aplica | BI53: Terminado | BJ53: 70109161.71 | BK53: 52581871.29 | BP53: =4/4*100% -> 1 | BQ53: 1 | BR53: Avance satisfactorio | BS53: Para el periodo evaluado la Oficina Asesora Jurídica brindó acompañamiento jurídico en la revisión de los diferentes actos administrativos que guardan relación directa con el sector estadístico | BT53: 1.Resolución 2262 del 9 de ocubre de 2024 "Por la cual se realiza el mantenimiento periódico anual de la Clasificación Única de Ocupaciones para Colombia – CUOC y se dictan otras disposiciones". 2.Resolución 2715 del 5 de diciembre de 2024 y anexo Política de Difusión y Terminología Unificada "Por la cual se adopta la Política de Difusión de las Estadísticas Oficiales y la Terminología Unificada para la Difusión de las Estadísticas Oficiales". 3. Resolución 2763 del 12 de diciembre de 2024 y anexo Programa anual de Evaluación para la Calidad Estadística (PECE 2025) "Por la cual se adopta el Programa Anual de Evaluación para la Calidad Estadística (PECE) para la vigencia 2025". 4.Resolución 2915 del 27 de diciembre 2024 "Por la cual se determina para el año 2025 el plazo para el reporte de información en el Sistema Consolidador de Hacienda e Información Pública (CHIP): Categoría Única de Información del Presupuesto Ordinario (CUIPO) y Categoría Sistema General de Regalías, que deben realizar las entidades territoriales que hacen parte de la muestra del cálculo de las estadísticas del Producto Interno Bruto Nacional Trimestral, Cuentas Nacionales Trimestrales por Sector Institucional". | BU53: No aplica | BV53: Terminado | BW53: 70109161.71 | BX53: 70109161.71
B54: OAJ_Oficina Asesora Jurídica | C54: OAJ_7 | D54: L4 - Fortalecimiento de la gestión institucional y el modelo organizacional | E54: L4.5_Fortalecer la implementación y cumplimiento de los mecanismos de la política de prevención del daño antijurídico. | F54: PEI_Plan Estratégico Institucional | G54: 1 | H54: Acompañamiento jurídico transversal brindado a los procesos con enfoque diferencial y étnico | I54: Eficacia | J54: Porcentual | K54: Acompañamientos jurídicos brindados/Solicitudes de acompañamiento requeridas en el trimestre *100% | L54: Informe final del resultado del acompañamiento, en los procesos normativos relacionados con el enfoque étnico y diferencial del sector estadístico. | M54: 2024-04-01 | N54: 2024-12-31 | O54: 0 | P54: 1 | Q54: 1 | R54: 1 | S54: Si aplica | T54: 70109161.71 | U54: Fortalecimiento de la capacidad institucional para la implementación del modelo de gestión Nacional | V54: Documentos de lineamientos técnicos | X54: 14_Gestión jurídica | Y54: No Aplica | Z54: POL_10:Mejora Normativa | AA54: No aplica | AD54: No Aplica | AE54: No reporta avance en el periodo | AF54: No aplica | AG54: No aplica | AH54: No aplica | AI54: Sin iniciar | AP54: =6/6*100% -> 1 | AQ54: 1 | AR54: Avance satisfactorio | AS54: Durante el periodo evaluado la Oficina Asesora Jurídica brindó acompañamiento jurídico a los procesos con enfoque diferencial y étnico, a saber: 1. Comentarios proyecto de decreto “Por el cual se modifica el literal d del artículo 2.2.1.5.15 y el artículo 2.2.1.5.18 del Decreto 1066 de 2015 adicionado por el artículo 1 del Decreto 900 de 2020 por el cual se reglamenta parcialmente la Ley 1962 de 2019 en lo relativo a las Regiones Administrativas y de Planificación – RAP”. En este proyecto normativo se modifica la participación de los grupos étnicos en los órganos administrativos de las RAP. 2. Apoyo frente respuesta a Derecho de Petición Radicado No. 204488003134202 referente a las acciones a cargo del DANE en el marco del cumplimiento de la sentencia T-302 de 2017 y la Asignación Especial del Sistema General de Participaciones para Resguardos Indígenas -AESGPRI. 3. Revisión proyecto de respuesta tipo a cargo de la DCD, sobre eventuales desacuerdos e incidentes de desacato en el marco del Dialogo genuino Sentencia T302 de 2017. 2. Se realizan observaciones a proyecto de respuesta frente Derecho de petición asignado a la OPLAN, presentado por el ciudadano Fernando Baena. 4. Preparación respuesta a requerimiento de la Procuraduría General de la Nación, relativo a las acciones DANE encaminadas al cumplimiento de la sentencia T-302 de 2017. 5. Revisión jurídica de proyecto de reglamentación interna Consejo Mesepp. 6. Acción de Tutela Radicación No. 110013105005 20241007300 Accionante: CONSEJO COMUNITARIO “QUEDRADA TABLA” Accionada: DEPARTAMENTO ADMINISTRATIVO NACIONAL DE ESTADÍSTICA (DANE) Vinculados: MINISTERIO DEL INTERIOR – DIRECCIÓN DE AUTORIDAD NACIONAL Y CONSULTA PREVIA, PROCURADURÍA GENERAL DE LA NACIÓN, DEFENSORÍA DEL PUEBLO Asunto: Impugnación fallo tutela Respetado Juez, En mi calidad de Coordinadora del Grupo Interno de Trabajo de Asuntos Judiciales de la Oficina Asesora Jurídica del DEPARTAMENTO ADMINISTRATIVO NACIONAL DE ESTADÍSTICA – DANE, entidad accionada dentro de la tutela de la referencia, calidad acreditada de conformidad con los documentos anexos a la contestación de tutela, a través del presente memorial y dentro del término legal dispuesto, me permito presentar impugnación al fallo de tutela emitido por su Despacho, calendado con fecha 22 de mayo de 2024. I. LA DECISIÓN DEL JUZGADO Mediante fallo de fecha 22 de mayo de 2024, notificado a través del buzón de notificaciones judiciales de esta entidad en la misma fecha, el Juzgado que conoce de la presente acción de tutela emitió pronunciamiento de fondo frente al amparo solicitado por la parte accionante, resolviendo en primer lugar declarar ausencia de vulneración frente al derecho fundamental de petición invocado, no obstante, en los artículos SEGUNDO y TERCERO de la sentencia | AT54: 1. Comentarios proyecto de decreto “Por el cual se modifica el literal d del artículo 2.2.1.5.15 y el artículo 2.2.1.5.18 del Decreto 1066 de 2015 adicionado por el artículo 1 del Decreto 900 de 2020 por el cual se reglamenta parcialmente la Ley 1962 de 2019 en lo relativo a las Regiones Administrativas y de Planificación – RAP”. En este proyecto normativo se modifica la participación de los grupos étnicos en los órganos administrativos de las RAP. 2. Apoyo frente respuesta a Derecho de Petición Radicado No. 204488003134202 referente a las acciones a cargo del DANE en el marco del cumplimiento de la sentencia T-302 de 2017 y la Asignación Especial del Sistema General de Participaciones para Resguardos Indígenas -AESGPRI. 3. Revisión proyecto de respuesta tipo a cargo de la DCD, sobre eventuales desacuerdos e incidentes de desacato en el marco del Dialogo genuino Sentencia T302 de 2017. 2. Se realizan observaciones a proyecto de respuesta frente Derecho de petición asignado a la OPLAN, presentado por el ciudadano Fernando Baena. 4. Preparación respuesta a requerimiento de la Procuraduría General de la Nación, relativo a las acciones DANE encaminadas al cumplimiento de la sentencia T-302 de 2017. 5. Revisión jurídica de proyecto de reglamentación interna Consejo Mesepp. 6. Acción de Tutela Radicación No. 110013105005 20241007300 Accionante: CONSEJO COMUNITARIO “QUEDRADA TABLA” Accionada: DEPARTAMENTO ADMINISTRATIVO NACIONAL DE ESTADÍSTICA (DANE) Vinculados: MINISTERIO DEL INTERIOR – DIRECCIÓN DE AUTORIDAD NACIONAL Y CONSULTA PREVIA, PROCURADURÍA GENERAL DE LA NACIÓN, DEFENSORÍA DEL PUEBLO Asunto: Impugnación fallo tutela Respetado Juez, En mi calidad de Coordinadora del Grupo Interno de Trabajo de Asuntos Judiciales de la Oficina Asesora Jurídica del DEPARTAMENTO ADMINISTRATIVO NACIONAL DE ESTADÍSTICA – DANE, entidad accionada dentro de la tutela de la referencia, calidad acreditada de conformidad con los documentos anexos a la contestación de tutela, a través del presente memorial y dentro del término legal dispuesto, me permito presentar impugnación al fallo de tutela emitido por su Despacho, calendado con fecha 22 de mayo de 2024. I. LA DECISIÓN DEL JUZGADO Mediante fallo de fecha 22 de mayo de 2024, notificado a través del buzón de notificaciones judiciales de esta entidad en la misma fecha, el Juzgado que conoce de la presente acción de tutela emitió pronunciamiento de fondo frente al amparo solicitado por la parte accionante, resolviendo en primer lugar declarar ausencia de vulneración frente al derecho fundamental de petición invocado, no obstante, en los artículos SEGUNDO y TERCERO de la sentencia | AU54: No aplica | AV54: Terminado | BC54: =5/5*100% -> 1 | BD54: 1 | BE54: Avance satisfactorio | BF54: Durante el periodo evaluado la Oficina Asesora Jurídica brindó acompañamiento jurídico a los procesos con enfoque diferencial y étnico, a saber: 1. Derecho de petición solicitud de información giro resguardo el paujil 2. Documentación IGAC - Decreto Catastro Multipropósito - radicado 20243130153582 3. Proyección y consolidación de comentarios frente a proyecto de reglamentación del MESEPP 4. Revisión borrador carta del relator especial sobre los derechos de los pueblos indígenas 5. Decretos leyes étnicos | BG54: 1. Derecho de petición solicitud de información giro resguardo el paujil 2. Documentación IGAC - Decreto Catastro Multipropósito - radicado 20243130153582 3. Proyección y consolidación de comentarios frente a proyecto de reglamentación del MESEPP 4. Revisión borrador carta del relator especial sobre los derechos de los pueblos indígenas 5. Decretos leyes étnicos | BH54: No aplica | BI54: Terminado | BJ54: 70109161.71 | BK54: 52581871.29 | BP54: =1/1*100% -> 1 | BQ54: 1 | BR54: Avance satisfactorio | BS54: Elaboración del documento que contiene la información de los acompañamientos étnicos y diferenciales realizados por la OAJ en el año 2024 | BT54: Informe acompañamiento étnico y diferencial OAJ 2024 | BU54: No aplica | BV54: Terminado | BW54: 70109161.71 | BX54: 70109161.71
B55: OPLAN_Oficina Asesora de Planeación | C55: OPLAN_1 | D55: L4 - Fortalecimiento de la gestión institucional y el modelo organizacional | E55: L4.1_Aumentar el índice de desempeño institucional de las políticas del MIPG | F55: PEI_Plan Estratégico Institucional | G55: 1 | H55: Mantener o aumentar el puntaje del Índice de Desempeño Institucional del DANE en un puntaje mínimo del 92 puntos. | I55: Eficacia | J55: Porcentual | K55: Porcentaje de cumplimiento en el puntaje del Índice de Desempeño Institucional del DANE | L55: Resultados del Índice de Desempeño Institucional 2023 | M55: 2024-04-01 | N55: 2024-12-31 | O55: 0 | P55: 0.1 | Q55: 0.6 | R55: 1 | S55: Si aplica | T55: 58671986.95 | U55: Fortalecimiento de la capacidad institucional para la implementación del modelo de gestión Nacional | V55: Documentos de planeación | W55: 797904228.6 | X55: 1_Direccionamiento Estratégico | Y55: No Aplica | Z55: POL_03:Planeación Institucional | AA55: No aplica | AD55: No Aplica | AE55: No reporta avance en el periodo | AF55: No aplica | AG55: No aplica | AH55: No aplica | AI55: Sin iniciar | AJ55: 58671986.95 | AK55: =+AJ55/4 -> 14667996.74 | AL55: 834634331.9 | AM55: 665326666 | AN55: 96126665.99 | AP55: 0.1 | AQ55: 1 | AR55: Avance satisfactorio | AS55: Durante el mes de mayo se diligenció la matriz furag y se realizó el envío a través del aplicarivo FURAG, a la espera de la publicación de los resultados a finales de julio por el DAFP. | AT55: Formulario diligenciado FURAG y Certificado de diligenciamiento de Función Pública | AU55: No aplica | AV55: En gestión | AW55: 58671986.95 | AX55: =+AK55*2 -> 29335993.48 | AY55: 957697715.9 | AZ55: 609754228.6 | BA55: 256476642.2 | BC55: 1 | BD55: =+IF($Q55=0,"No Aplica",IF($BC55/$Q55>=100%,100%,$BC55/$Q55)) -> 1 | BE55: =IF(ISTEXT(BD55),"No reporta avance en el periodo",IF(BD55<=69%,"Avance insuficiente",IF(BD55>95%,"Avance satisfactorio",IF(BD55>70%,"Avance suficiente",IF(BD55<94%,"Avance suficiente",0))))) -> Avance satisfactorio | BF55: Durante el mes de mayo se diligenció el furag y se realizó el envío a través del aplicativo FURAG, los resultados fueron publicados por el DAFP en el mes de julio de 2024 con un índice desempeño de 95.9% para la entidad. | BG55: Resultados del Índice de Desempeño Institucional 2023 publicados por el DAFP | BH55: No aplica | BI55: =IF(OR(AV55="En gestión",AV55="Sin iniciar"),IF($BC55>=$G55,"Terminado","En gestión"),"Terminado") -> Terminado | BJ55: 58671986.95 | BK55: =+(BJ55/4)*3 -> 44003990.21 | BL55: 843481050.2 | BM55: 781827378.6 | BN55: 412919439.8 | BP55: 1 | BQ55: 1 | BR55: Avance satisfactorio | BS55: Meta finalizada en el tercer trimestre | BT55: Meta finalizada en el tercer trimestre | BU55: No aplica | BV55: =IF(OR(BI55="En gestión",BI55="Sin iniciar"),IF($BC55>=$G55,"Terminado","En gestión"),"Terminado") -> Terminado | BW55: 58671986.95 | BX55: 58671986.95 | BY55: 797904228.6 | BZ55: 792327285.6 | CA55: 633094690.8
B56: OPLAN_Oficina Asesora de Planeación | C56: OPLAN_2 | D56: L4 - Fortalecimiento de la gestión institucional y el modelo organizacional | E56: L4.1_Aumentar el índice de desempeño institucional de las políticas del MIPG | F56: PEI_Plan Estratégico Institucional | G56: 1 | H56: Autodiagnósticos de las políticas del Modelo Integrado de Planeación y Gestión - MIPG, realizados y publicados en el micrositio en Sharepoint de Planes Institucionales. | I56: Eficacia | J56: Porcentual | K56: Porcentaje de avance en la realización de los autodiagnósticos de las políticas de MIPG. | L56: Autodiagnósticos de las políticas del Modelo Integrado de Planeación y Gestión - MIPG, publicados en el micrositio en Sharepoint de Planes Institucionales. | M56: 2024-02-01 | N56: 2024-12-31 | O56: 0.2 | P56: 0.5 | Q56: 0.7 | R56: 1 | S56: Si aplica | T56: 32553490.15 | U56: Fortalecimiento de la capacidad institucional para la implementación del modelo de gestión Nacional | V56: Documentos de planeación | X56: 1_Direccionamiento Estratégico | Y56: No Aplica | Z56: POL_03:Planeación Institucional | AA56: No aplica | AC56: 0.2 | AD56: =+IF(O56=0,"No Aplica",IF(AC56/O56>=100%,100%,AC56/O56)) -> 1 | AE56: =IF(ISTEXT(AD56),"No reporta avance en el periodo",IF(AD56<=69%,"Avance insuficiente",IF(AD56>95%,"Avance satisfactorio",IF(AD56>70%,"Avance suficiente",IF(AD56<94%,"Avance suficiente",0))))) -> Avance satisfactorio | AF56: Se realizó el plan de trabajo y cronograma para la realización de los autodiagnósticos de MIPG para dar inicio en el mes de Mayo y finalizar en junio, después de finalizar el reporte de FURAG. Este plan de trabajo ya fue aprobado por la Jefe de la Oficina de Planeación. | AG56: Presentación realización autodiagnósticos MIPG Correo aprobación Plan de trabajo autodiagnósticos MIPG | AH56: No aplica | AI56: En gestión | AJ56: 32553490.15 | AK56: 8138372.537 | AP56: 0.5 | AQ56: 1 | AR56: Avance satisfactorio | AS56: Se realizaron los autodiagnósticos de las 15 políticas de MIPG disponibles en la página del DAFP, se continuará con la fase de revisión y análisis por parte del GIT de Planeación Estratégica para poder realizar el Documento de Brechas de las Políticas de MIPG. | AT56: Autodiagnósticos realizados. https://danegovco.sharepoint.com/:f:/r/sites/PlanesInstitucionales-MetasHisttricasporrea2018-2022/Documentos%20compartidos/DILIGENCIAMIENTO%20FURAG/AUTODIAGN%C3%93STICOS?csf=1&web=1&e=EeyvPK | AU56: No aplica | AV56: En gestión | AW56: 32553490.15 | AX56: 16276745.07 | BC56: 0.7 | BD56: 1 | BE56: Avance satisfactorio | BF56: Se revisaron los autodiagnósticos con cada una de las áreas responsables de las políticas y se inició la consolidación de las posibles acciones para el fortalecimiento de la gestión institucional | BG56: Autodiagnósticos revisados disponibles en el micrositio https://danegovco.sharepoint.com/sites/PlanesInstitucionales-MetasHisttricasporrea2018-2022/Documentos%20compartidos/Forms/AllItems.aspx?id=%2Fsites%2FPlanesInstitucionales%2DMetasHisttricasporrea2018%2D2022%2FDocumentos%20compartidos%2FFURAG%2FAUTODIAGN%C3%93STICOS%2F2024&viewid=4898ae3e%2D639a%2D41ac%2Db718%2D8f47bbb2b81e | BH56: No aplica | BI56: =IF(OR(AV56="En gestión",AV56="Sin iniciar"),IF($BC56>=$G56,"Terminado","En gestión"),"Terminado") -> En gestión | BJ56: 32553490.15 | BK56: 24415117.61 | BP56: 1 | BQ56: 1 | BR56: Avance satisfactorio | BS56: Se publicaron todos los autodiagnósticos en el SharePoint en el cual cada una de las dependencias realizó el autodiagnóstico correspondiente. | BT56: Autodiagnosticos revisados disponibles en el micrositio https://danegovco.sharepoint.com/sites/PlanesInstitucionales-MetasHisttricasporrea2018-2022/Documentos%20compartidos/Forms/AllItems.aspx?id=%2Fsites%2FPlanesInstitucionales%2DMetasHisttricasporrea2018%2D2022%2FDocumentos%20compartidos%2FFURAG%2FAUTODIAGN%C3%93STICOS%2F2024&viewid=4898ae3e%2D639a%2D41ac%2Db718%2D8f47bbb2b81e | BU56: No aplica | BV56: =IF($BP56<1%,"Sin iniciar",IF($BP56=100%,"Terminado","En gestión")) -> Terminado | BW56: 32553490.15 | BX56: 32553490.15
B57: OPLAN_Oficina Asesora de Planeación | C57: OPLAN_3 | D57: L4 - Fortalecimiento de la gestión institucional y el modelo organizacional | E57: L4.1_Aumentar el índice de desempeño institucional de las políticas del MIPG | F57: PEI_Plan Estratégico Institucional | G57: 0.95 | H57: Ejecución presupuestal de los recursos de inversión y funcionamiento en compromisos | I57: Efectividad | J57: Porcentual | K57: (Compromisos / Apropiación Vigente) *100% | L57: Bases mensuales de reportes de ejecución presupuestal | M57: 2024-01-01 | N57: 2024-12-31 | O57: 0.26 | P57: 0.35 | Q57: 0.65 | R57: 0.95 | S57: Si aplica | T57: 18920829.91 | U57: Fortalecimiento de la capacidad institucional para la implementación del modelo de gestión Nacional | V57: Documentos de planeación | X57: 1_Direccionamiento Estratégico | Y57: No Aplica | Z57: POL_04: Gestión Presupuestal y Eficiencia del Gasto Publico | AA57: No aplica | AC57: 0.26 | AD57: 1 | AE57: Avance satisfactorio | AF57: Se comprometió el 24% de los recursos de funcionamiento y el 26% de los recursos de inversión para un avance total del 26% | AG57: Ejecución Presupuestal DANE Inversión y Funcionamiento_Enero_31 Ejecución Presupuestal DANE Inversión y Funcionamiento Febrero 29 Ejecución Presupuestal DANE Inversión y Funcionamiento Marzo 31 | AH57: La meta no se cumplió debido a las reprogramaciones solicitadas por la Dirección de Censos y Demografía, para los procesos del Censo Económico y de la Sentencia t 302, los cuales inicialmente estaban programados para el primer trimestre y fueron aplazados para el segundo. (Procesos de transporte, aprendizaje, contratación del personal operativo, operador logístico, impresos, entre otros). | AI57: En gestión | AJ57: 18920829.91 | AK57: 4730207.478 | AP57: 0.38 | AQ57: 1 | AR57: Avance satisfactorio | AS57: Se comprometió el 46% de los recursos de funcionamiento y el 36% de los recursos de inversión para un avance total del 38% | AT57: Ejecución Presupuestal DANE Inversión y Funcionamiento_Abril_30 Ejecución Presupuestal DANE Inversión y Funcionamiento_Mayo_31 Ejecución Presupuestal DANE Inversión y Funcionamiento_Junio_30 | AU57: No aplica | AV57: En gestión | AW57: 18920829.91 | AX57: 9460414.955 | BC57: 0.68 | BD57: 1 | BE57: Avance satisfactorio | BF57: Se comprometió el 69% de los recursos de funcionamiento y el 68% de los recursos de inversión para un avance total del 68% | BG57: Ejecución Presupuestal DANE Inversión y Funcionamiento_Julio_31 Ejecución Presupuestal DANE Inversión y Funcionamiento_Agosto_31 Ejecución Presupuestal DANE Inversión y Funcionamiento_Septiembre_30 | BH57: No aplica | BI57: =IF(OR(AV57="En gestión",AV57="Sin iniciar"),IF($BC57>=$G57,"Terminado","En gestión"),"Terminado") -> En gestión | BJ57: 18920829.91 | BK57: 14190622.43 | BP57: 0.96 | BQ57: 1 | BR57: Avance satisfactorio | BS57: Se comprometió el 97% de los recursos de funcionamiento y el 96% de los recursos de inversión para un avance total del 96% | BT57: Ejecución Presupuestal DANE Inversión y Funcionamiento_Octubre_31 Ejecución Presupuestal DANE Inversión y Funcionamiento_Noviembre_30 Ejecución Presupuestal DANE Inversión y Funcionamiento_Diciembre_31 | BU57: No aplica | BV57: =IF($BQ57<1%,"Sin iniciar",IF($BQ57=100%,"Terminado","En gestión")) -> Terminado | BW57: 18920829.91 | BX57: 18920829.91
B58: OPLAN_Oficina Asesora de Planeación | C58: OPLAN_4 | D58: L4 - Fortalecimiento de la gestión institucional y el modelo organizacional | E58: L4.1_Aumentar el índice de desempeño institucional de las políticas del MIPG | F58: PEI_Plan Estratégico Institucional | G58: 0.85 | H58: Ejecución presupuestal de los recursos comprometidos de inversión y funcionamiento en obligaciones | I58: Efectividad | J58: Porcentual | K58: (Obligaciones / Apropiación comprometida) *100% | L58: Bases mensuales de reportes de ejecución presupuestal | M58: 2024-01-01 | N58: 31/012/2024 | O58: 0.4 | P58: 0.5 | Q58: 0.6 | R58: 0.85 | S58: Si aplica | T58: 68805684.31 | U58: Fortalecimiento de la capacidad institucional para la implementación del modelo de gestión Nacional | V58: Documentos de planeación | X58: 1_Direccionamiento Estratégico | Y58: No Aplica | Z58: POL_04: Gestión Presupuestal y Eficiencia del Gasto Publico | AA58: No aplica | AC58: 0.27 | AD58: 0.675 | AE58: Avance insuficiente | AF58: Se obligo el 79%de los recursos de funcionamiento pero solo el 14% de los recursos de inversión, lo que nos lleva a un total del 27% de ejecución total. | AG58: Ejecución Presupuestal DANE Inversión y Funcionamiento_Enero_31 Ejecución Presupuestal DANE Inversión y Funcionamiento_Febrero 29 Ejecución Presupuestal DANE Inversión y Funcionamiento_Marzo 31 | AH58: Debido a que no se cumplió la meta en compromisos, no se puede cumplir la meta de obligaciones. | AI58: En gestión | AJ58: 68805684.31 | AK58: 17201421.08 | AP58: 0.53 | AQ58: 1 | AR58: Avance satisfactorio | AS58: Se obligo el 92% de los recursos de funcionamiento y el 39% de los recursos de inversión, lo que nos lleva a un total del 53% de ejecución total. | AT58: Ejecución Presupuestal DANE Inversión y Funcionamiento_Abril_30 Ejecución Presupuestal DANE Inversión y Funcionamiento_Mayo_31 Ejecución Presupuestal DANE Inversión y Funcionamiento_Junio_30 | AU58: No aplica | AV58: En gestión | AW58: 68805684.31 | AX58: 34402842.16 | BC58: 0.55 | BD58: 0.9166666667 | BE58: Avance suficiente | BF58: Se obligo el 97% de los recursos de funcionamiento y el 43% de los recursos de inversión, lo que nos lleva a un total del 55% de ejecución total. | BG58: Ejecución Presupuestal DANE Inversión y Funcionamiento_Julio_31 Ejecución Presupuestal DANE Inversión y Funcionamiento_Agosto_31 Ejecución Presupuestal DANE Inversión y Funcionamiento_Septiembre_30 | BH58: La meta en obligaciones para este trimestre no se cumplió, debido a complejidades operativas presentadas en campo en el desarrollo de la recolección de información en el departamento de la Guajira en el marco de la sentencia T302 de 2018. Esto llevó a replantear el plan de trabajo con los encuestadores quienes no pudieron cumplir con las metas inicialmente establecidas, por lo tanto, no se pudieron realizar los respectivos pagos de manera oportuna. Por lo anterior, la Dirección de Censos y Demografía está realizando los debidos acompañamientos a las Organizaciones Wayúu, con el fin de garantizar el cumplimiento de los contratos celebrados. | BI58: =IF(OR(AV58="En gestión",AV58="Sin iniciar"),IF($BC58>=$G58,"Terminado","En gestión"),"Terminado") -> En gestión | BJ58: 68805684.31 | BK58: 51604263.23 | BP58: 0.8 | BQ58: 0.9411764706 | BR58: Avance suficiente | BS58: Se obligó el 99% de los recursos de funcionamiento y el 74% de los recursos de inversión, lo que nos lleva a un total del 80% de ejecución total. | BT58: Ejecución Presupuestal DANE Inversión y Funcionamiento_Octubre_31 Ejecución Presupuestal DANE Inversión y Funcionamiento_Noviembre_30 Ejecución Presupuestal DANE Inversión y Funcionamiento_Diciembre_31 | BU58: No se cumplio la meta, debido a que el Ministerio de Hacienda y Credito Público - MHCP no asignó a la entidad todo el PAC solicitado para el pago de las cuentas de cobro de los meses de noviembre y diciembre. | BV58: =IF($BQ58<1%,"Sin iniciar",IF($BQ58=100%,"Terminado","En gestión")) -> En gestión | BW58: 68805684.31 | BX58: 68805684.31
B59: OPLAN_Oficina Asesora de Planeación | C59: OPLAN_5 | D59: L4 - Fortalecimiento de la gestión institucional y el modelo organizacional | E59: L4.1_Aumentar el índice de desempeño institucional de las políticas del MIPG | F59: PAI_Plan de Acción Institucional 2023 | G59: 0.2 | H59: Nuevos desarrollos tecnológicos en el SPGI con el fin de articular la planeación física con la presupuestal. | I59: Efectividad | J59: Porcentual | K59: Porcentaje de avance en los nuevos desarrollos tecnológicos en el SPGI durante el periodo. | L59: Documento de Desarrollo - aplicativo | M59: 2024-01-01 | N59: 2024-02-29 | O59: 0.2 | P59: 0 | Q59: 0 | R59: 0 | S59: Si aplica | T59: 18920829.91 | U59: Fortalecimiento de la capacidad institucional para la implementación del modelo de gestión Nacional | V59: Documentos de planeación | X59: 1_Direccionamiento Estratégico | Y59: 10_Plan Estratégico de Tecnologías de la Información y las Comunicaciones_PETI | Z59: POL_03:Planeación Institucional | AA59: No aplica | AC59: 0.2 | AD59: 1 | AE59: Avance satisfactorio | AF59: En el presente trimestre, se ha logrado un notable avance en el desarrollo y afinamiento de la funcionalidad de ejecución presupuestal mediante la construcción de la herramineta SPGI. Utilizando Django como framework, se implementó un módulo en un sistema web para la gestión presupuestal en la parte de ejecucion, con el objetivo de facilitar a los usuarios la gestion y solicitud de cdp para recursos. | AG59: Doc_Proyect: Documento que evidencia el desarrollo del aplicativo con los nuevos componentes en el primer trimestre 2024. \\systema20\Registros_PDE\2024\05 _CONTRATISTAS_OPLAN\FSLESMESF \1. MARZO | AH59: No aplica | AI59: =IF(AC59<1%,"Sin iniciar",IF(AC59=20%,"Terminado","En gestión")) -> Terminado | AJ59: 18920829.91 | AK59: 4730207.478 | AP59: 0.2 | AQ59: =+IF($O59=0,"No Aplica",IF($AP59/$O59>=100%,100%,$AP59/$O59)) -> 1 | AR59: Avance satisfactorio | AS59: Se finalizo el desarrollo de la funcionalidad de ejecución presupuestal mediante la construcción de la herramienta SPGI. Utilizando Django como framework, se implementó un módulo en un sistema web para la gestión presupuestal en la parte de ejecución, con el objetivo de facilitar a los usuarios la gestión y solicitud de cdp para recursos. | AT59: Aplicativo | AU59: No aplica | AV59: =IF($AP59<1%,"Sin iniciar",IF($AP59=20%,"Terminado","En gestión")) -> Terminado | AW59: 18920829.91 | AX59: 9460414.955 | BC59: 0 | BD59: No Aplica | BE59: No reporta avance en el periodo | BF59: Meta cumplida en el primer trimestre | BG59: No aplica | BH59: Meta cumplida en el primer trimestre | BI59: Terminado | BJ59: 18920829.91 | BK59: 14190622.43 | BP59: 1 | BQ59: =+IF($AQ59=0,"No Aplica",IF($BP59/$AQ59>=100%,100%,$BP59/$AQ59)) -> 1 | BR59: =IF(ISTEXT(BQ59),"No reporta avance en el periodo",IF(BQ59<=69%,"Avance insuficiente",IF(BQ59>95%,"Avance satisfactorio",IF(BQ59>70%,"Avance suficiente",IF(BQ59<94%,"Avance suficiente",0))))) -> Avance satisfactorio | BS59: Meta finalizada en el primer trimestre | BT59: Meta finalizada en el primer trimestre | BU59: No aplica | BV59: =IF(AP59+BC59+BP59+CC59>=G59,"Terminado","En gestión") -> Terminado | BW59: 18920829.91 | BX59: 18920829.91
B60: OPLAN_Oficina Asesora de Planeación | C60: OPLAN_6 | D60: L4 - Fortalecimiento de la gestión institucional y el modelo organizacional | E60: L4.1_Aumentar el índice de desempeño institucional de las políticas del MIPG | F60: PEI_Plan Estratégico Institucional | G60: 1 | H60: Nuevos desarrollos tecnológicos en el SPGI implementados para la gestión de las reprogramaciones de recursos, reportes de datos programados y la documentación de la herramienta | I60: Eficacia | J60: Porcentual | K60: Porcentaje de avance en los nuevos desarrollos tecnológicos en el SPGI durante el periodo. | L60: Nuevos desarrollos entregados | M60: 2024-03-01 | N60: 2024-12-31 | O60: 0.05 | P60: 0.6 | Q60: 0.8 | R60: 1 | S60: Si aplica | T60: 18920829.91 | U60: Fortalecimiento de la capacidad institucional para la implementación del modelo de gestión Nacional | V60: Documentos de planeación | X60: 1_Direccionamiento Estratégico | Y60: 10_Plan Estratégico de Tecnologías de la Información y las Comunicaciones_PETI | Z60: POL_03:Planeación Institucional | AA60: No aplica | AC60: 0.05 | AD60: 1 | AE60: Avance satisfactorio | AF60: Se realizó la preparación de los espacios necesarios en Bases de Datos para los nuevos desarrollos en el aplicativo SPGI. | AG60: Doc_Proyect: Documento que evidencia el desarrollo del aplicativo con los nuevos componentes en el primer trimestre 2024. \\systema20\Registros_PDE\2024\05 _CONTRATISTAS_OPLAN\FSLESMESF \1. MARZO | AH60: No aplica | AI60: En gestión | AJ60: 18920829.91 | AK60: 4730207.478 | AP60: 0.6 | AQ60: 1 | AR60: Avance satisfactorio | AS60: Se desarrolló e implementó el módulo de solicitud de CDP dentro del SPGI, asegurando una interfaz intuitiva y accesible para los usuarios, que facilite la entrada de datos y la gestión de solicitudes. • Se crearon mecanismos de validación y verificación dentro del sistema para garantizar la precisión y la integridad de las solicitudes de CDP, minimizando errores y optimizando el flujo de trabajo. • Se integraron las funcionalidades que permitan el seguimiento detallado de cada solicitud de CDP a través de las diferentes etapas de su ciclo de vida, desde su creación hasta la radicación final, incluyendo notificaciones y actualizaciones de estado en tiempo real para los usuarios. • Hubo colaboración con la Oficina Asesora de Planeación para entender sus necesidades específicas y ajustar el sistema de acuerdo con estas, mejorando así la eficiencia operativa y la satisfacción del usuario. • Se continua con la construcción de documentación técnica. | AT60: EVIDENCIAS ENTREGA DE DESARROLLO SPGI LANZAMIENTO SPGI 2.0 - Informe de asistencia 5-16-24 Presentación SPGI 2.0 REUNIÓN DE LANZAMIENTO REUNIÓN DE LANZAMIENTO_2 | AU60: No aplica | AV60: En gestión | AW60: 18920829.91 | AX60: 9460414.955 | BC60: 0.8 | BD60: 1 | BE60: Avance satisfactorio | BF60: Para este periodo, se realizaron continuas reuniones de trabajo para dar lineamientos en el desarrollo del aplicativo SPGI 2.0, Se corrigieron las inconsistencias y mejoras en el módulo de programación, específicamente con las validaciones y alertas en caso de que haya una mala programación. Se dio línea y verificaron las validaciones en la programación de meses: para que no se pasen de acuerdo con la vigencia, en la casilla días, para que no supere los 30 días del mes, en la fecha máxima de contratación para que coincida con el número de meses del contrato y no supere entre la fecha inicial del contrato y la cantidad de meses de la vigencia, validación para el rango de honorarios dependiendo del perfil, no debe superar el rango de la tabla desplegable. | BG60: Validadores realizados en el aplicativo. Pantallazos y documentos https://spgi.dane.gov.co/admin/ | BH60: No aplica | BI60: =IF(OR(AV60="En gestión",AV60="Sin iniciar"),IF($BC60>=$G60,"Terminado","En gestión"),"Terminado") -> En gestión | BJ60: 18920829.91 | BK60: 14190622.43 | BP60: 1 | BQ60: 1 | BR60: Avance satisfactorio | BS60: Se finaliza y entrega el aplicativo SPGI 2.0 y se realiza la capacitación del uso del mismo a todos los usuarios del DANE. | BT60: Aplicativo en ejecución; Listado de asitencia capacitación; presentaciones realizadas en la capacitación | BU60: No aplica | BV60: =IF(AP60+BC60+BP60+CC60>=G60,"Terminado","En gestión") -> Terminado | BW60: 18920829.91 | BX60: 18920829.91
B61: OPLAN_Oficina Asesora de Planeación | C61: OPLAN_7 | D61: L4 - Fortalecimiento de la gestión institucional y el modelo organizacional | E61: L4.1_Aumentar el índice de desempeño institucional de las políticas del MIPG | F61: PEI_Plan Estratégico Institucional | G61: 1 | H61: Sistema Integrado de gestión con certificación mantenida bajo los criterios de la norma ISO 9001 | I61: Eficacia | J61: Porcentual | K61: Número de planes de mejoramiento de la auditoría externa en termino / Número total de Planes de mejoramiento resultado de la auditoria*100% | L61: Informe de Auditoría externa | M61: 2024-01-01 | N61: 2024-12-30 | O61: 0.1 | P61: 0.3 | Q61: 0.8 | R61: 1 | S61: Si aplica | T61: 221813192.7 | U61: Fortalecimiento de la capacidad institucional para la implementación del modelo de gestión Nacional | V61: Servicio de actualización del Sistema de Gestión | W61: 294597179.7 | X61: 4_Sinergia Organizacional | Y61: 11_Plan de Tratamiento de Riesgos de Seguridad y Privacidad de la Información | Z61: POL_06: Fortalecimiento Organizacional y simplificación de procesos | AA61: No aplica | AC61: 0.1 | AD61: 1 | AE61: Avance satisfactorio | AF61: Se realizó la programación de la auditoría externa y se inició con la ejecución de las auditorías internas bajo los criterios de la norma NTC PE 1000:2020 | AG61: ACTA CICCI 80 FEB 2024 (1) - Informe de Auditoría Interna CSEC 2024 - Informe de Auditoría Interna IMA 2024 -Informe de Auditoría Interna IPOC 2024 (1) | AH61: No aplica | AI61: En gestión | AJ61: 221813192.7 | AK61: 55453298.18 | AL61: 304041266.7 | AM61: 198829152.7 | AN61: 34385706.67 | AP61: 0.4 | AQ61: 1 | AR61: Avance satisfactorio | AS61: Se finalizó el ciclo de auditorías internas a los procesos bajo los criterios de la norma ISO 9001:2015. | AT61: Informes de auditoría a procesos | AU61: No aplica | AV61: En gestión | AW61: 221813192.7 | AX61: =+AW61/2 -> 110906596.4 | AY61: 304041266.7 | AZ61: 258095819.7 | BA61: 93666855.67 | BC61: 1 | BD61: 1 | BE61: Avance satisfactorio | BF61: Se llevo acabo la auditoria de seguimiento por parte de ICONTEC, con un resultado positivo para la Entidad, dado a que no se identifican No conformidades | BG61: Informe Auditoria ICONTEC | BH61: No aplica | BI61: =IF(OR(AV61="En gestión",AV61="Sin iniciar"),IF($BC61>=$G61,"Terminado","En gestión"),"Terminado") -> Terminado | BJ61: 221813192.7 | BK61: 166359894.5 | BL61: 304041266.7 | BM61: 270025353.7 | BN61: 165824387.7 | BP61: 1 | BQ61: =+IF($BP61=0,"No Aplica",IF($BP61/$R61>=100%,100%,$BP61/$R61)) -> 1 | BR61: Avance satisfactorio | BS61: Meta finalizada en el tercer trimestre | BT61: Meta finalizada en el tercer trimestre | BU61: No aplica | BV61: =IF(OR(BI61="En gestión",BI61="Sin iniciar"),IF($BC61>=$G61,"Terminado","En gestión"),"Terminado") -> Terminado | BW61: 221813192.7 | BX61: 221813193 | BY61: 294597179.7 | BZ61: 283008902.7 | CA61: 261941098.7
B62: OPLAN_Oficina Asesora de Planeación | C62: OPLAN_8 | D62: L4 - Fortalecimiento de la gestión institucional y el modelo organizacional | E62: L4.3_Realizar la reestructuración organizacional del DANE | F62: PAI_Plan de Acción Institucional 2023 | G62: 1 | H62: Documento de fortalecimiento Institucional y formalización laboral radicada de acuerdo con los lineamientos del Departamento Administrativo de la Función Pública y el plan de trabajo. | I62: Eficacia | J62: Porcentual | K62: Porcentaje de avance en el plan de trabajo para radicar la propuesta de ampliación de planta ante el DAFP | L62: Seguimiento al plan de trabajo Documento de fortalecimiento Institucional y formalización laboral radicada | M62: 2024-01-01 | N62: 2024-12-30 | O62: 0.1 | P62: 0.5 | Q62: 0.75 | R62: 1 | S62: Si aplica | T62: 42329826.91 | U62: Fortalecimiento de la capacidad institucional para la implementación del modelo de gestión Nacional | V62: Servicio de actualización del Sistema de Gestión | X62: 4_Sinergia Organizacional | Y62: 5_Plan Estratégico de Talento Humano | Z62: POL_01: Gestión Estratégica del Talento Humano | AA62: 2_Seguridad humana y justicia social | AC62: 0.1 | AD62: 1 | AE62: Avance satisfactorio | AF62: Se adelanta la verificaciónde perfiles y su validación frente al presupuesto de inversión por parte de las dependecias pertinenetes | AG62: Correos de Jsutificación - Cronograma de restructuracción | AH62: No aplica | AI62: En gestión | AJ62: 42329826.91 | AK62: 10582456.73 | AP62: 0.5 | AQ62: 1 | AR62: Avance satisfactorio | AS62: Durante el segundo trimestre de 2024 se continuó con los pasos establecidos en la circular conjunta 100-011 de 2023, como resultado de las mesas de trabajo con DNP y Ministerio de Hacienda se identificó la necesidad de separar el proceso en dos: Creación de planta temporal o ampliación de planta: Adicional a los análisis que se adelantan sobre si es planta temporal o ampliación de planta la figura adecuada, este ejercicio requiere destinación de recursos de inversión, por lo que el DNP informa que solo se concentrará en ese tema y no conceptuará sobre la modificación organizacional con cargo a funcionamiento a costo cero. Modificación de la estructura organizacional y actualización del decreto de funciones en correspondencia con la Ley de Estadísticas Oficiales, a costo cero: Debido a que esta parte de la reestructuración se propone con cargo a los recursos de funcionamiento de la entidad, el concepto debe ser solicitado al Ministerio de Hacienda y Crédito Público. Por lo anterior, se radicó ante el Ministerio de Hacienda y Crédito Público la solicitud del concepto de viabilidad presupuestal para la segunda opción la cual corresponde al rediseño institucional del DANE a costo cero, del cual actualmente se espera respuesta. También se socializó con la comunidad DANE el resultado del estudio de cargas laborales y se dispuso en consulta pública los proyectos de decreto de: modificación a la estructura del DANE y modificación a la planta de personal. | AT62: Presentación resultado de cargas Concepto viabilidad presupuestal rediseño institucional (radicados) | AU62: No aplica | AV62: En gestión | AW62: 42329826.91 | AX62: =+AW62/2 -> 21164913.45 | BC62: 0.75 | BD62: 1 | BE62: Avance satisfactorio | BF62: Se radico el estudio ante el DAPRE del proyecto y se recibió respuesta con las indicaciones para su ajuste, lo cual se viene desarrollando para su presentación en el último trimestre | BG62: OFI24-00157366 GFPU PRESIDENCIA 22-8-2024 (2) y 20241100150241_LAURA CAMILA SARABIA TORRES PRESIDENCIA (1) | BH62: No aplica | BI62: =IF(OR(AV62="En gestión",AV62="Sin iniciar"),IF($BC62>=$G62,"Terminado","En gestión"),"Terminado") -> En gestión | BJ62: 42329826.91 | BK62: 31747370.18 | BP62: 1 | BQ62: 1 | BR62: Avance satisfactorio | BS62: En el mes de diciembre se procedió a radicar la solicitud de rediseño a costo 0 ante el DAFP | BT62: https://danegovco.sharepoint.com/sites/PlanesInstitucionales-MetasHisttricasporrea2018-2022/Documentos%20compartidos/Forms/AllItems.aspx?id=%2Fsites%2FPlanesInstitucionales%2DMetasHisttricasporrea2018%2D2022%2FDocumentos%20compartidos%2FOPLAN%2FEvidencias%20Planes%20Institucionales%202024%2FPAI%2FOPLAN%5F8%2FIV%20TRIMESTRE&viewid=4898ae3e%2D639a%2D41ac%2Db718%2D8f47bbb2b81e | BU62: No aplica | BV62: =IF($BQ62<1%,"Sin iniciar",IF($BQ62=100%,"Terminado","En gestión")) -> Terminado | BW62: 42329826.91 | BX62: 42329827
B63: OPLAN_Oficina Asesora de Planeación | C63: OPLAN_9 | D63: L4 - Fortalecimiento de la gestión institucional y el modelo organizacional | E63: L4.1_Aumentar el índice de desempeño institucional de las políticas del MIPG | F63: PAI Plan de Acción Institucional 2023 | G63: 1 | H63: Cumplimiento de la Fase 1 - Documentación de operaciones estadística revisada y actualizada en el Sistema Integrado de Gestión de acuerdo con la metodología establecida - Línea base 93% | I63: Eficacia | J63: Porcentual | K63: Número de documentos fase I revisados en el periodo / Número total de documentos fase I asignados para revisión*100% | L63: Informes de seguimiento a la gestión documental de la Fase 1 | M63: 2024-01-01 | N63: 2024-12-30 | O63: 0.95 | P63: 0.97 | Q63: 0.98 | R63: 1 | S63: Si aplica | T63: 70756350.31 | U63: Fortalecimiento de la capacidad institucional para la implementación del modelo de gestión Nacional | V63: Documentos de lineamientos técnicos | W63: 116283333.3 | X63: 4_Sinergia Organizacional | Y63: No Aplica | Z63: POL_06: Fortalecimiento Organizacional y simplificación de procesos | AA63: No aplica | AC63: 0.02 | AD63: 0.02105263158 | AE63: Avance insuficiente | AF63: Se avanza con la revisión de 8 documentos de fase 1 acorde con lo reportado en el seguimiento con corte a 31 de Marzo | AG63: BD_Docs_OOEE_31-mar-2024 | AH63: No aplica | AI63: En gestión | AJ63: 70756350.31 | AK63: 17689087.58 | AL63: 104130000 | AM63: 104130000 | AN63: 14833333 | AP63: 0.05 | AQ63: 0.05154639175 | AR63: Avance insuficiente | AS63: Se avanza con la revisión de 5 documentos de fase 1 acorde con lo reportado en el seguimiento con corte a 30 de Junio | AT63: BD_Docs_OOEE_03-jul-2024 | AU63: Las operaciones estadísticas actualizan su documentación continuamente lo cual conlleva a realizar una nueva revisión de los documentos de fase I, esto aunado a la cantidad de información que contienen y la rotación de personal producto de la provisión de empleos, demoran la ejecución de la tarea. | AV63: =IF($AP63<1%,"Sin iniciar",IF($AP63=100%,"Terminado","En gestión")) -> En gestión | AW63: 70756350.31 | AX63: =+AW63/2 -> 35378175.16 | AY63: 104130000 | AZ63: 104130000 | BA63: 41533333 | BC63: 0.98 | BD63: 1 | BE63: Avance satisfactorio | BF63: Se avanza con la revisión de 18 documentos de fase 1 acorde con lo reportado en el seguimiento con corte a 30 de septiembre | BG63: BD_Docs_OOEE_30-sep-2024 | BH63: No aplica | BI63: =IF(OR(AV63="En gestión",AV63="Sin iniciar"),IF($BC63>=$G63,"Terminado","En gestión"),"Terminado") -> En gestión | BJ63: 70756350.31 | BK63: 53067262.73 | BL63: 124370821.3 | BM63: 103833333.3 | BN63: 68233333 | BP63: 1 | BQ63: 1 | BR63: Avance satisfactorio | BS63: Se revisaron por parte de Oplan un total de 316 documentos de fase 1 de los 340 posibles, los 24 faltantes corresponden a documentos que no fueron aportados por las OOEE para revisión. | BT63: https://danegovco.sharepoint.com/sites/PlanesInstitucionales-MetasHisttricasporrea2018-2022/Documentos%20compartidos/Forms/AllItems.aspx?id=%2Fsites%2FPlanesInstitucionales%2DMetasHisttricasporrea2018%2D2022%2FDocumentos%20compartidos%2FOPLAN%2FEvidencias%20Planes%20Institucionales%202024%2FPAI%2FOPLAN%5F9%2FIV%20TRIMESTRE&viewid=4898ae3e%2D639a%2D41ac%2Db718%2D8f47bbb2b81e | BU63: No aplica | BV63: Terminado | BW63: 70756350.31 | BX63: 70756350 | BY63: 116283333.3 | BZ63: 116236982 | CA63: 99583333
B64: OPLAN_Oficina Asesora de Planeación | C64: OPLAN_10 | D64: L4 - Fortalecimiento de la gestión institucional y el modelo organizacional | E64: L4.1_Aumentar el índice de desempeño institucional de las políticas del MIPG | F64: PEI_Plan Estratégico Institucional | G64: 0.4 | H64: Documentación complementaria de operaciones estadísticas revisada de acuerdo con la metodología definida. | I64: Eficacia | J64: Porcentual | K64: Número de documentos complementarios revisados / Número total de documentos complementarios de las OOEE activas *100% | L64: Informes de seguimiento a la gestión documental | M64: 2024-01-01 | N64: 2024-12-30 | O64: 0.05 | P64: 0.15 | Q64: 0.25 | R64: 0.4 | S64: Si aplica | T64: 79459766.95 | U64: Fortalecimiento de la capacidad institucional para la implementación del modelo de gestión Nacional | V64: Documentos de lineamientos técnicos | X64: 4_Sinergia Organizacional | Y64: No Aplica | Z64: POL_06: Fortalecimiento Organizacional y simplificación de procesos | AA64: No aplica | AC64: 0.05 | AD64: 1 | AE64: Avance satisfactorio | AF64: Se avanza en la revisión de 18 documentos complementarios de operaciones estadísticas | AG64: BD_Docs_OOEE_31-mar-2024 | AH64: No aplica | AI64: En gestión | AJ64: 79459766.95 | AK64: 19864941.74 | AP64: 0.15 | AQ64: 1 | AR64: Avance satisfactorio | AS64: Se avanza en la revisión de 17 documentos complementarios de operaciones estadísticas acorde con lo reportado en el seguimiento con corte a 30 de Junio | AT64: BD_Docs_OOEE_03-jul-2024 | AU64: No aplica | AV64: En gestión | AW64: 79459766.95 | AX64: =+AW64/2 -> 39729883.48 | BC64: 0.25 | BD64: 1 | BE64: Avance satisfactorio | BF64: Se avanza en la revisión de 76 documentos complementarios de operaciones estadísticas acorde con lo reportado en el seguimiento con corte a 30 de Septiembre | BG64: BD_Docs_OOEE_30-sep-2024 | BH64: No aplica | BI64: =IF(OR(AV64="En gestión",AV64="Sin iniciar"),IF($BC64>=$G64,"Terminado","En gestión"),"Terminado") -> En gestión | BJ64: 79459766.95 | BK64: 59594825.21 | BP64: 0.56 | BQ64: 1 | BR64: Avance satisfactorio | BS64: Se revisaron 508 documentos de 900 posibles, los restantes 392 no han iniciado su respectivo ciclo. | BT64: https://danegovco.sharepoint.com/sites/PlanesInstitucionales-MetasHisttricasporrea2018-2022/Documentos%20compartidos/Forms/AllItems.aspx?id=%2Fsites%2FPlanesInstitucionales%2DMetasHisttricasporrea2018%2D2022%2FDocumentos%20compartidos%2FOPLAN%2FEvidencias%20Planes%20Institucionales%202024%2FPAI%2FOPLAN%5F10%2FIV%20TRIMESTRE&viewid=4898ae3e%2D639a%2D41ac%2Db718%2D8f47bbb2b81e | BU64: No aplica | BV64: Terminado | BW64: 79459766.95 | BX64: 79459767
B65: DICE_Dirección de Difusión y Cultura Estadística | C65: DICE_1 | D65: L1 - Difusión y acceso a la información | E65: L1.4_Desarrollar una estrategia de comunicación y difusión de la información estadística que permita la visualización de brechas sociales, económicas y ambientales. | F65: PEI_Plan Estratégico Institucional | G65: 59 | H65: Acciones o espacios de relacionamiento con personas naturales o entidades nacionales e internacionales (pares estadísticos) para la implementación de planes de aprendizaje, caracterización y alcance a grupos de interés en desarrollo de la estrategia de comunicación y difusión de la información producida por el DANE. | I65: Eficacia | J65: Numérico | K65: Número de acciones o espacios de relacionamiento realizados | L65: Informe de implementación de las acciones o espacio de relacionamiento. | M65: 2024-01-15 | N65: 2024-12-15 | O65: 5 | P65: 20 | Q65: 40 | R65: 59 | S65: Si aplica | T65: 52143569 | U65: Cultura Estadística | V65: Servicio de apoyo a la gestión de conocimiento y consolidación de la cultura estadística | W65: 1235365194 | X65: 2_Comunicación | Y65: No Aplica | Z65: POL_15:Transparencia, acceso a la información pública y lucha contra la corrupción | AA65: No aplica | AC65: 10 | AD65: 1 | AE65: Avance satisfactorio | AF65: Para el I trimestre se desarrollaron los siguientes espacios de relacionamiento: Grupo de Interés: alcaldes y Gobernadores Actor clave con que se llevó a cabo la acción de relacionamiento: Nuevas administraciones departamentales y municipales Tipo de acción de relacionamiento realizada: Presentación de herramientas para la planeación territorial. Fecha: 14/02/24: realización de webinar en conjunto con DNP y UNFPA Links evidencia: https://www.dane.gov.co/index.php/actualidad-dane/5720-el-dane-presento-el-ecosistema-de-datos-a-las-nuevas-autoridades-departamentales-y-municipales. DANE - Información estadística desagregada con enfoque territorial y diferencial. Grupo de Interés: Personal DANE Actor clave con que se llevó a cabo la acción de relacionamiento: Personal operativo EMICRON Tipo de acción de relacionamiento realizada: Sesión Relacionamiento, sensibilización y comunicación. Fecha:15/02/24: orientación sesión sobre relacionamiento, sensibilización y comunicación Link evidencia: https://danegovco.sharepoint.com/:x:/r/sites/DANE_GITComunicacincongruposdeinters_0365/_layouts/15/Doc.aspx?sourcedoc=%7B1CAC3D73-D743-4D7F-9A1D-D39A3CC59E6E%7D&file=Retroalimentaci%C3%B3n%20y%20asistencia%20-%20Entrenamiento%20EMICRON%2015_02_24(1-147).xlsx&action=default&mobileredirect=true Grupo de Interés: Personal DANE Actor clave con que se llevó a cabo la acción de relacionamiento: Personal del DANE Tipo de acción de relacionamiento realizada: Creación de textos para sección de DANEnet sobre el CENU Fecha: 03/04/24: publicación en DANEnet Link evidencia: https://danegovco.sharepoint.com/sites/DANEnet/SitePages/CENU_%F0%9F%91%A8%E2%80%8D%F0%9F%92%BC%F0%9F%91%A9%E2%80%8D%F0%9F%8D%B3%F0%9F%91%A8%E2%80%8D%F0%9F%8C%BE%F0%9F%91%A9%E2%80%8D%F0%9F%94%A7.aspx | AG65: Matriz de seguimiento a los espacios de relacionamiento con Grupos de Interés | AH65: No aplica | AI65: En gestión | AJ65: 52143569 | AK65: 13035892.2 | AL65: 1260779221 | AM65: 966075184.7 | AN65: 96831207.41 | AP65: 25 | AQ65: 1 | AR65: Avance satisfactorio | AS65: Fecha: 05/03/2024 Tema: Capacitación sobre GEIH y Estadísticas de Pobreza Grupo de interés: Universidad la Gran Colombia sede Armenia Cantidad de asistentes: 11 Modalidad: Video conferencia Fecha: 14/03/2024 Tema: Capacitación Geoportal Grupo de interés: Alcaldía Itagüí Cantidad de asistentes: 7 Modalidad: videoconferencia Fecha: 19/03/2024 Tema: Capacitación página web DANE - enfasis en Censo y Pobreza Multidimensional Grupo de interés: Universidad Externado de Colombia Cantidad de asistentes: 18 Modalidad: conferencia Fecha: 20/03/2024 Tema: Capacitación Mercado Laboral Grupo de interés: Universidad Nacional Cantidad de asistentes: 41 Modalidad: conferencia Fecha: 21/03/2024 Tema: Capacitación en estadísticas de comercio internacional Grupo de interés: Universidad Agustiniana Cantidad de asistentes: 28 Modalidad: conferencia Fecha: 22/03/2024 Tema: Capacitación en Censos y Demografía Grupo de interés: Universidad Nacional Cantidad de asistentes: 16 Modalidad: conferencia Fecha: 03/04/2024 Tema: Solicitud capacitación información estadística Grupo de interés: Auditoría General de la República Cantidad de asistentes: 96 Modalidad: videoconferencia Fecha: 09/04/2024 Tema: Consulta técnica sobre bases ANDA de mercado laboral Grupo de interés: Ministerio de Comercio Industria y Turismo Cantidad de asistentes: 10 Modalidad: videoconferencia Fecha: 09/04/2024 Tema: Consulta para tesis de grado Grupo de interés: Juan Esteban Buitrago Garzón, Consulta cuentas ambientales - Cuentas de Flujos del Agua Cantidad de asistentes: 6 Modalidad: videoconferencia Fecha: 12/04/2024 Tema: Socialización página web del DANE Grupo de interés: consejo de Bogotá Cantidad de asistentes: 6 Modalidad: conferencia Fecha: 22/04/2024 Tema: Solicitud apoyo capacitaciones Secretaría Distrital de Ambiente Grupo de interés: LEIDY JOHANNA CABRERA ROJAS Cantidad de asistentes: 6 Modalidad: videoconferencia Fecha: 26/04/2024 Tema: Socialización página web del DANE Grupo de interés: Universidad de la Guajira Cantidad de asistentes: 25 Modalidad: videoconferencia Fecha: 03/05/2024 Tema: Capacitación portal web Grupo de interés: Universidad de la Sabana Cantidad de asistentes: 14 Modalidad: presencial Fecha: 09/05/2024 Tema: Capacitación portal web Grupo de interés:Universidad Santo Tomás de Bucaramanga Cantidad de asistentes: 20 Modalidad: conferencia Fecha: 14/05/2024 Tema: Capacitación portal web - REDATAM, ANDA Grupo de interés: U Sanbuenaventura sede Cali Cantidad de asistentes: 10 Modalidad: conferencia Fecha: 17/0572024 Tema: Capacitación portal web,REDATAM y ANDA Grupo de interés: Capacitación para funcionarios de la territorial suroccidente Cantidad de asistentes: 38 Modalidad: videoconferencia Fecha: 20/05/2024 Tema: Socialización estadísticas de Mercado Laboral Grupo de interés: Observatorio de empleo de la Universidad del Tolima Cantidad de asistentes: 20 Modalidad: videoconferencia Fecha: 23/05/2024 Tema: Solicitud práctica pedagógica del que hacer del DANE Grupo de interés: Colegio Liceo Nacional José Joaquín Casas Cantidad de asistentes: 40 Modalidad: conferencia actividad dinámica | AT65: INFORME DE EJECUCIÓN | AU65: No aplica | AV65: En gestión | AW65: 51150325.6 | AX65: 24995802.4 | AY65: 1260779221 | AZ65: 1127289038 | BA65: 376248681.7 | BC65: 40 | BD65: 1 | BE65: Avance satisfactorio | BF65: Durante el tercer trimestre, el DANE organizó los siguientes espacios virtuales abiertos a todos los grupos de interés, con el objetivo de promover la transparencia y el conocimiento sobre las operaciones estadísticas que se llevan a cabo en la entidad: 02/09/2024 Socialización inicio de recolección Índice de Capacidad Estadística Territorial (ICET) 2023 https://www.youtube.com/watch?v=YStU2z3iAvI 11/09/2024 Conozca los avances del Censo Económico Nacional Urbano 2024 (CENU) https://www.youtube.com/watch?v=b7jP_RBVSYk 27/09/2024 Resultados de la Cuenta Satélite de Economía Cultural y Creativa de Bogotá https://www.youtube.com/live/-5yJhStZZqc?si=6a66EAUT_g7rxk8 Septiembre: Toma CENU . La DICE contribuyó a mantener informados a los grupos de interés sobre las noticias más relevantes en producción estadística, mediante la realización de comunicados y ruedas de prensa, según se describe en el reporte correspondiente : Informe de comunicados y ruedas de prensa septiembre 2024. Como parte del contrato interadministrativo entre RTVC y DANE, se ejecutó el plan de medios del CENU, con el objetivo de informar al público sobre el inicio de la fase de barrido del Censo Económico Nacional, mediante la publicación de pautas en diversos medios de comunicación, las evidencias de esta actividad se encuentran en la carpeta: | BG65: i) Informe de comunicados y ruedas de prensa septiembre 2024. ii) Informe de implementación de acciones y espacios de relacionamiento_CENU. iii)Informe de implementación de acciones y espacios de relacionamiento_septiembre iv) Informe de ejecución plan de medios CENU. | BH65: No aplica | BI65: En gestión | BJ65: 51150325.6 | BK65: 38362744.2 | BL65: 1260779221 | BM65: 1203809192 | BN65: 685256705.7 | BP65: 59 | BQ65: 1 | BR65: Avance satisfactorio | BS65: Para el IV trimestre se desarrollaron los siguientes espacios de relacionamiento: Grupo de Interés: V Foro Mundial de Datos: Espacio de intercambio de experiencias internacionales alrededor de la producción, uso y difusión de datos estadísticos. - El V Foro Mundial de Datos inicia con gran éxito en Medellín https://danegovco.sharepoint.com/sites/DANEnet/SitePages/El-V-Foro-Mundial-de-Datos-inicia-con-gran-%C3%A9xito-en-Medell%C3%ADn.aspx - Apertura a las plenarias 1 y 2 del V Foro Mundial de Datos https://danegovco.sharepoint.com/sites/DANEnet/SitePages/D%C3%ADa-1-del-V-Foro-Mundial-de-Datos--Innovaci%C3%B3n%2C-inclusi%C3%B3n-y-el-poder-transformador-de-la-informaci%C3%B3n.aspx - V Foro Mundial de Datos: Un día alrededor de la confianza, protección y ética de los datos https://danegovco.sharepoint.com/sites/DANEnet/SitePages/V-Foro-Mundial-de-Datos--Un-d%C3%ADa-alrededor-de-la-confianza%2C-protecci%C3%B3n-y-%C3%A9tica-de-los-datos.aspx - Cierre del V Foro Mundial de Datos: Un Compromiso Global hacia un futuro informado y equitativo https://danegovco.sharepoint.com/sites/DANEnet/SitePages/Cierre-del-V-Foro-Mundial-de-Datos--Un-Compromiso-Global-hacia-un-futuro-informado-y-equitativo.aspx - Socialización de experiencias del V Foro Mundial de Datos de Naciones Unidas https://www.youtube.com/live/VlDQPhw8B1w Taller de lecciones aprendidas con comunicadores territoriales: Espacio de retroalimentación para identificar las lecciones aprendidas, retos y oportunidades en el marco de las acciones de comunicación del CENU 2024 Evento Misión Internacional CENU 2024: Datos locales con impacto global Espacio de relacionamiento con representantes de ONEs de la región y organizaciones multilaterales para intercambiar experiencias en torno al CENU. https://www.dane.gov.co/index.php/actualidad-dane/5809-el-censo-economico-nacional-urbano-se-fortalece-con-la-mision-internacional-cenu-2024 Información y Servicio al Ciudadano: Como ejercicio para la promoción de la cultura estadística, el GIT Información y Servicio al Ciudadano, durante el III cuatrimestre realizó 20 charlas de socialización de información estadística dirigidas a universidades, entidades e instituciones educativas a nivel nacional. Estas charlas tuvieron la participación de aproximadamente 318 personas, entre las cuales se incluyeron estudiantes, docentes y personal del sector público y privado; en estas sesiones, se abordaron temas de gran importancia relacionados con la producción estadística del DANE, sus metodologías, tipos de recolección de información y manejo del portal web DANE. Adicionalmente, de manera interna se llegó a cabo un (1) taller "Conociendo la cultura sorda" dirigido a los servidores públicos, especialmente a aquellos responsables de la atención a la ciudadanía, tanto en la sede central como en las sedes territoriales y a responsables de los centros de datos en universidades o entidades públicas. Estas charlas tuvieron como objetivo fortalecer las competencias de los servidores públicos en relación con los productos estadísticos y mejorar la calidad de la atención al ciudadano. | BT65: - Estrategia relacionamiento grupos de interés 30-12-2024 - Estrategia servicio al ciudadano 2024 - Taller de Lecciones aprendidas - CENU - Taller Conociendo la cultura sorda - CHARLAS DE SOCIALIZACIÓN Nov - CHARLAS DE SOCIALIZACIÓN Dic | BU65: No Aplica | BV65: Terminado | BW65: 52143569 | BX65: 52143569 | BY65: 1235365194 | BZ65: 1224555641 | CA65: 1053781093
B66: DICE_Dirección de Difusión y Cultura Estadística | C66: DICE_2 | D66: L1 - Difusión y acceso a la información | E66: L1.4_Desarrollar una estrategia de comunicación y difusión de la información estadística que permita la visualización de brechas sociales, económicas y ambientales. | F66: PEI_Plan Estratégico Institucional | G66: 1 | H66: Manual de gestión de crisis de comunicación, elaborado en el marco de la estrategia de divulgación de información pública. | I66: Eficacia | J66: Porcentual | K66: Porcentaje de cumplimiento en la elaboración del manual de gestión de crisis de comunicación | L66: Manual de crisis | M66: 2024-01-15 | N66: 2024-12-31 | O66: 0.2 | P66: 0.9 | Q66: 0.95 | R66: 1 | S66: Si aplica | T66: 85912984 | U66: Cultura Estadística | V66: Servicio de apoyo a la gestión de conocimiento y consolidación de la cultura estadística | X66: 2_Comunicación | Y66: No Aplica | Z66: POL_15:Transparencia, acceso a la información pública y lucha contra la corrupción | AA66: No aplica | AC66: 0.2 | AD66: 1 | AE66: Avance satisfactorio | AF66: La comunicación efectiva es un pilar fundamental en la prevención y gestión de crisis en cualquier organización. En el contexto actual, donde la información se difunde rápidamente a través de diversos canales, contar con una estrategia sólida de comunicación es crucial para mantener la reputación y la credibilidad de la institución ante situaciones adversas. Por lo anterior para el presente periodo se realizó una capacitación con una vocería para directivos DANE, en el que se trataron entre otros los siguientes temas: Sobre los medios en Colombia Análisis de entrevistas Análisis de entrevistas (La técnica del sándwich) Análisis de entrevistas (La técnica del helicóptero) Análisis de entrevistas (La técnica del ABC) Claves para utilizar los medios sociales | AG66: PPT Capacitación en vocería para directivos DANE Matriz de riesgos comunicacionales | AH66: No aplica | AI66: En gestión | AJ66: 85912984 | AK66: 21478246.05 | AP66: 0.9 | AQ66: 1 | AR66: Avance satisfactorio | AS66: El "Protocolo de manejo de crisis con medios de comunicación" del Departamento Administrativo Nacional de Estadística (DANE) es una guía integral para enfrentar situaciones que puedan comprometer la credibilidad y el buen nombre de la entidad. Establece procedimientos claros y detallados para identificar y reaccionar ante diferentes tipos de crisis, como la filtración de datos, críticas a la credibilidad de la información publicada, amenazas tecnológicas y problemas de seguridad. Al definir roles y responsabilidades dentro de un comité de crisis, así como una línea discursiva unificada, el protocolo busca garantizar una respuesta oportuna y coherente, minimizando los efectos negativos a corto, mediano y largo plazo. Además, enfatiza la importancia de la transparencia y el seguimiento informativo constante para evitar la desinformación y mantener la confianza del público y los medios de comunicación. | AT66: Protocolo de manejo de crisis con medios de comunicación versión preliminar | AU66: El documento se encuentra elaborado, está en versión preliminar para aprobación, por lo tanto se deja en 90% | AV66: =IF($AP66<1%,"Sin iniciar",IF($AP66=100%,"Terminado","En gestión")) -> En gestión | AW66: 89846785.83 | AX66: 42566771 | BC66: 0.95 | BD66: No Aplica | BE66: No reporta avance en el periodo | BF66: Dentro del proceso de revisión de la versión a la fecha del " Manual de Gestión de Crisis de Comunicaciones" se ha identificado la necesidad de profundizar en los siguientes aspectos: i) Identificación de posibles escenarios de crisis, ii) Establecimiento de un equipo de gestión de crisis, iii)Definición de roles y responsabilidades iv) Estrategia de comunicación a corto y largo plazo, v) Gestión de medios y relaciones públicas, vi) Manejo de redes sociales y canales digitales, entre otros | BG66: Protocolo de manejo de crisis con medios de comunicación ( en construcción) | BH66: No aplica | BI66: En gestión | BJ66: 85912984 | BK66: 64434738 | BP66: 0.96 | BQ66: 0.96 | BR66: Avance satisfactorio | BS66: El Documento quedó en proceso de revisión y aprobación por parte del Director Operativo de la Dirección de Difusión y Cultura Estadística | BT66: PROTOCOLO_Manejo de crisis_versión preliminar | BU66: El documento se encuentra en proceso de revisión y aprobación por parte de la nueva Dirección de Difusión y Cultura Estadística (DICE), por lo que se continua con esta meta para la vigencia 2025 y se espra dejar publicada en el I trimestre del año. | BV66: En gestión | BW66: 85912984 | BX66: 81617335
B67: DICE_Dirección de Difusión y Cultura Estadística | C67: DICE_3 | D67: L1 - Difusión y acceso a la información | E67: L1.4_Desarrollar una estrategia de comunicación y difusión de la información estadística que permita la visualización de brechas sociales, económicas y ambientales. | F67: PEI_Plan Estratégico Institucional | G67: 2000 | H67: Piezas gráficas y audiovisuales para redes sociales y con ocasión de eventos de divulgación pública (tanto presenciales como mediáticos), publicadas como parte de la estrategia de comunicación para la difusión de información estadística. | I67: Eficacia | J67: Numérico | K67: Número de piezas gráficas y audiovisuales difundidas | L67: Matrices con las publicaciones realizadas y la difusión de contenido | M67: 2024-01-15 | N67: 2024-12-15 | O67: 500 | P67: 500 | Q67: 500 | R67: 500 | S67: Si aplica | T67: 71770544 | U67: Cultura Estadística | V67: Servicio de apoyo a la gestión de conocimiento y consolidación de la cultura estadística | X67: 2_Comunicación | Y67: No Aplica | Z67: POL_15:Transparencia, acceso a la información pública y lucha contra la corrupción | AA67: No aplica | AC67: 502 | AD67: 1 | AE67: Avance satisfactorio | AF67: Publicaciones en medios digitales de las piezas de difusión que dan cuenta del alcance obtenido para dar a conocer la misión del DANE, sus operaciones estadísticas y los eventos convocados a la ciudadanía: Instagram: 78 Facebook: 107 X: 272 Youtube: 15 Tiktok: 9 Linked IN: 10 Difusión de resultados de operaciones estadísticas mediante esta modalidad ruedas de prensa o comunicados de prensa. Comunicados de prensa: 11 | AG67: Matriz seguimiento a publicaciones en redes sociales Matriz control comunicados ruedas de prensa | AH67: No aplica | AI67: =IF(AC67<1,"Sin iniciar",IF(AC67=502,"Terminado","En gestión")) -> Terminado | AJ67: 71770544 | AK67: 17942636.1 | AP67: 1123 | AQ67: 1 | AR67: Avance satisfactorio | AS67: Publicaciones en medios digitales de las piezas de difusión que dan cuenta del alcance obtenido para dar a conocer la misión del DANE, sus operaciones estadísticas y los eventos convocados a la ciudadanía: Instagram: 107 Facebook: 242 X: 603 Youtube: 38 Tiktok: 38 Linked IN: 95 Difusión de resultados de operaciones estadísticas mediante esta modalidad ruedas de prensa o comunicados de prensa. Comunicados de prensa: 16 | AT67: Matriz seguimiento a publicaciones en redes sociales Matriz control comunicados ruedas de prensa | AU67: No aplica | AV67: En gestión | AW67: 80080571 | AX67: 37689964 | BC67: 500 | BD67: 1 | BE67: Avance satisfactorio | BF67: En el tercer trimestre, el equipo de comunicación del DANE creó una serie de materiales visuales y audiovisuales para compartir en redes sociales y otros espacios de divulgación pública: Encuesta de Convivencia y Seguridad Ciudadana, Encuesta Nacional de Uso del Tiempo, Censo Económico Nacional, Directorio Nacional de Infraestructura, estadísticas de licencias de construcción, Sistema de Información de Precios y Abastecimiento del Sector Agropecuario. | BG67: Piezas gráficas producidas en desarrollo de las operaciones estadísticas adelantadas por el DANE | BH67: No aplica | BI67: Terminado | BJ67: 71770544 | BK67: 53827908 | BP67: 1056 | BQ67: 1 | BR67: Avance satisfactorio | BS67: Publicaciones en medios digitales de las piezas de difusión que dan cuenta del alcance obtenido para dar a conocer la misión del DANE, sus operaciones estadísticas y los eventos convocados a la ciudadanía: Instagram: 125 Facebook: 347 X: 431 Youtube: 29 Tiktok: 19 Linked IN: 82 Difusión de resultados de operaciones estadísticas mediante esta modalidad ruedas de prensa o comunicados de prensa. Comunicados de prensa: 23 | BT67: - Formato control comunicados y ruedas de prensa 2024 - Parrilla de contenidos -DANE Colombia | BU67: No Aplica | BV67: Terminado | BW67: 71770544 | BX67: 71770544
B68: DICE_Dirección de Difusión y Cultura Estadística | C68: DICE_4 | D68: L1 - Difusión y acceso a la información | E68: L1.3_Mejorar el acceso y visualización de los contenidos del portal web del DANE | F68: PEI_Plan Estratégico Institucional | G68: 10 | H68: Herramientas de visualización con desarrollo informático que permitan el acceso y visualización de la información estadística y de las actividades del DANE | I68: Eficacia | J68: Numérico | K68: Número de herramientas de visualización implementadas | L68: Informe con las herramientas desarrolladas y links de acceso | M68: 2024-01-15 | N68: 2024-12-15 | O68: 1 | P68: 3 | Q68: 4 | R68: 2 | S68: Si aplica | T68: 76326632 | U68: Cultura Estadística | V68: Servicio de difusión de la información estadística | W68: 711166150 | X68: 2_Comunicación | Y68: No Aplica | Z68: POL_15:Transparencia, acceso a la información pública y lucha contra la corrupción | AA68: No aplica | AC68: 1 | AD68: 1 | AE68: Avance satisfactorio | AF68: APP dispositivos android para el Censo Económico Nacional Urbano. Entrega de la APP CENU : es un aplicación desarrollada en apache cordova y compilada para la plataforma Android 14 y superior, que permite instalar la aplicación en dispositivos móviles Android y cuenta con la funcionalidad de responder preguntas de la base de conocimiento sin tener acceso a internet, por lo tanto, se almacena la información de la base de conocimiento en su almacenamiento interno dentro de una base de datos SQLite 6.1 para permitir la resolución de preguntas con o sin internet. La app se envió a la oficina de sistemas para ser instalar en las DCM en el proceso de alistamiento para el Censo Económico CENU2024 | AG68: Manual de usuario APP DANE Censo Económico. Correo entrega URL de descarga. | AH68: No aplica | AI68: =IF(AC68<1,"Sin iniciar",IF(AC68=100,"Terminado","En gestión")) -> En gestión | AJ68: 76326632 | AK68: 19081658.1 | AL68: 715631305 | AM68: 520125649 | AN68: 33809770 | AP68: 3 | AQ68: 1 | AR68: Avance satisfactorio | AS68: Se implementó un chat virtual en los servidores del DANE. A partir de esto, se desarrollaron tres (3) instancias de atención diferenciada con sesiones ilimitadas y disponibilidad 24/7. Cada una cuenta con un desarrollo independiente y una base de conocimiento de respuestas diferenciadas de la siguiente forma: Servicio al ciudadano Chat DANE (agenti.com.co) Encuestas Económicas (DRA) https://chatbot.dane.gov.co/agenti_lite_dane_dra/ Censo Económico Nacional Urbano. https://chatbot.dane.gov.co/agenti_lite_dane_economico/ | AT68: CENU https://chatbot.dane.gov.co/agenti_lite_dane_economico/ DRA https://chatbot.dane.gov.co/agenti_lite_dane_dra/ EAID https://chatbot.dane.gov.co/agenti_lite_dane_eaid/ | AU68: No aplica | AV68: =IF($AP68<1%,"Sin iniciar",IF($AP68=100%,"Terminado","En gestión")) -> En gestión | AW68: 75283655 | AX68: 36633973.7 | AY68: 715631305 | AZ68: 587903481 | BA68: 266290518 | BC68: 4 | BD68: 1 | BE68: Avance satisfactorio | BF68: Desarrollo en la página web del DANE de los espacios para la difusión de información de : i) Enfoque diferencial e interseccional Campesinado. ii) actualización permanente del espacio Noticias Campesinado. iii) Auto diligenciamiento web para el Censo Económico Nacional (CENU) iv) Visita a negocios. v) CENU en medio. vi) actualización del cuestionario de auto diligenciamiento (CENU) | BG68: 20240912_Implementacion_seccion-campesinado,20240916_Seguimiento_Seccion-Campesinado,20240918_Seguimiento_Seccion-Campesinado,20240902_Actualizacion_Autodiligenciamiento-Construccion_baja-documentos,20240905_Actualizacion_Autodiligenciamiento-Construccion_cargue-infografias,20240910_Actualizacion_Autodiligenciamiento-Construccion_cargue-cuestionario,20240917_Actualizacion_Autodiligenciamiento-PMGE_Manual,20240919_Actualizacion_Autodiligenciamiento-Construccion_cargue-video,20240919_Propuesta_Visitas-negocios,20240920_Actualizacion-notas-prensa,20240923_Actualizacion_Autodiligenciamiento-Establecimientos-cuestionario,20240923_Ajuste-propuesta_Visitas-negocios | BH68: No aplica | BI68: En gestión | BJ68: 75283655 | BK68: 56462741.25 | BL68: 715631305 | BM68: 605878326 | BN68: 436586219 | BP68: 3 | BQ68: 1 | BR68: Avance satisfactorio | BS68: Sitio del Quinto Foro Mundial de datos https://foromundialdedatos.dane.gov.co/es/ https://foromundialdedatos.dane.gov.co/en/ La creación del micrositio para el Foro Mundial de Datos contempló un proceso que se va desde su diseño inicial hasta su publicación y actualización continúa. Este sitio, que funciona como una plataforma informativa y de interacción para el evento programado del 12 al 15 de noviembre de 2024 en Medellín, siendo una herramienta de difusión con enfoque en la accesibilidad y la usabilidad, buscando que los interesados accedan a información relevante. A partir de agosto, comenzó la publicación de contenido en el micrositio, incluyendo la creación de una nueva sección para la agenda del foro y artículos en "Últimas noticias". En octubre, se continuó con la subida de artículos relevantes y la actualización de documentos PDF relacionados con la programación del evento. En noviembre y diciembre, se llevaron a cabo las últimas actualizaciones, incluyendo ajustes en los contenidos y la subida del artículo No. 10 sobre los resultados del foro. Se implementaron mejoras estéticas y funcionales en varias secciones, permitiendo que el sitio esté completamente operativo y alineado con las expectativas de los participantes. (Ver pág. 10 del documento Implementación_est_desarrollo Web 2024) Micrositio del Censo Económico Nacional Urbano – CENU https://censoeconomiconacionalurbano.dane.gov.co/ El Micrositio del Censo Económico Nacional Urbano (CENU) 2024 ha sido desarrollado con el objetivo de apoyar e informar sobre la operación estadística más importante del año por su dimensión y los resultados que se desean obtener. En octubre, se lanzó una nueva sección en el micrositio y se publicaron documentos actualizados en la sección de auto diligenciamiento. Finalmente, en noviembre, se realizaron más actualizaciones, como el cambio de nombre de una sección y la implementación de un área dedicada a noticias relacionadas con el CENU. A lo largo de este proceso, se ha buscado asegurar que la información estadística sea accesible y comprensible para todos los ciudadanos. Las actividades realizadas permiten informar sobre el Censo Económico Nacional Urbano, además de fomentar una mayor participación y comprensión de los datos estadísticos, contribuyendo así al desarrollo social y económico del país. (Ver pág. 13 y 14 del documento Implementación_est_desarrollo Web 2024) Visor de datos turismo https://sitios.dane.gov.co/turismo/ En la implementación de la estrategia de desarrollos web y aplicaciones móviles, se decidió cambiar el visor de datos del Censo Económico Nacional Urbano (CENU) por el visor de turismo. Esta decisión se tomó debido a que el CENU aún se encuentra en proceso de recolección de información, lo que dificultaba el desarrollo de esta herramienta de difusión estadística. Al optar por el visor de turismo, se busca aprovechar la disponibilidad de datos y la necesidad de promover la información turística, facilitando así el acceso a estadísticas relevantes para usuarios y tomadores de decisiones. El desarrollo del Visor de Datos de Turismo ha sido un proceso estructurado que se ha llevado a cabo desde septiembre hasta diciembre de 2024. Durante este periodo, se realizaron diversas actividades para asegurar la creación y funcionalidad del visor. En septiembre, se elaboró el documento inicial de solicitud de desarrollo y se normalizó el modelo de datos, estableciendo las bases necesarias para el proyecto. En octubre, se avanzó con la propuesta inicial del mockup, incorporando comentarios sobre los insumos recibidos en relación con los lineamientos de diseño, usabilidad y accesibilidad. Se desarrolló un modelo multidimensional para la Encuesta de Gasto Interno en Turismo (EGIT) y se actualizaron los modelos relacionados con las encuestas EVI y EMA. Además, se comenzó la visualización del home y la página de turismo internacional, sentando las bases para el diseño final del visor. En noviembre y diciembre, se continuaron los ajustes en el mockup y se finalizó la normalización de la base de datos. Se generaron e implementaron iconos para el visor, así como cambios en la estructura HTML necesaria para su integración. También se realizaron ajustes gráficos en informes de Power BI, asegurando que el visor sea funcional y ofrezca una experiencia visual atractiva y accesible para los usuarios. ( Ver pág. 14 y 15 del documento Implementación_est_desarrollo Web 2024) | BT68: - Implementación_Estrategia de desarrollo Web 2024 | BU68: No Aplica | BV68: Terminado | BW68: 76326632 | BX68: 76326632 | BY68: 711166150 | BZ68: 682880412 | CA68: 566551970
B69: DICE_Dirección de Difusión y Cultura Estadística | C69: DICE_5 | D69: L1 - Difusión y acceso a la información | E69: L1.3_Mejorar el acceso y visualización de los contenidos del portal web del DANE | F69: PEI_Plan Estratégico Institucional | G69: 4 | H69: Secciones actualizadas del portal web conforme a la norma NTC 5854, en cumplimiento de los requisitos de accesibilidad para las páginas web. | I69: Eficacia | J69: Numérico | K69: Número de secciones actualizadas del portal web | L69: Informe con los links de acceso a las secciones actualizadas | M69: 2024-04-01 | N69: 2024-12-15 | O69: 0 | P69: 1 | Q69: 1 | R69: 2 | S69: Si aplica | T69: 17306417 | U69: Cultura Estadística | V69: Servicio de difusión de la información estadística | X69: 2_Comunicación | Y69: No Aplica | Z69: POL_15:Transparencia, acceso a la información pública y lucha contra la corrupción | AA69: No aplica | AD69: No Aplica | AE69: No reporta avance en el periodo | AF69: No aplica | AG69: No aplica | AH69: No aplica | AI69: =IF(AC69<1%,"Sin iniciar",IF(AC69=100%,"Terminado","En gestión")) -> Sin iniciar | AJ69: 17306417 | AK69: 0 | AP69: 1 | AQ69: 1 | AR69: Avance satisfactorio | AS69: Reestructuración sección portal DANE del Censo Económico Nacional Urbano (CENU) 2024 Se realizaron ajustes en el mockup, se adiciono una nueva sección en el micrositio, ajustando el botón de Contamos con su voz, como un dropdown, para adicionar. Se configuró el framework y se inició la implementación del micrositio web a partir de lo planteado en el mockup. Se realizaron ajustes de diseño, estructura, y estilos. | AT69: INFORME DE EJECUCIÓN link_https://censoeconomiconacionalurbano.dane.gov.co/ | AU69: No aplica | AV69: =IF($AP69<1,"Sin iniciar",IF($AP69=2,"Terminado","En gestión")) -> En gestión | AW69: 16945866.45 | AX69: 8292658.05 | BC69: 1 | BD69: 1 | BE69: Avance satisfactorio | BF69: Con la participación del equipo DICE se produjo la :Guía de buenas prácticas y lineamientos gráficos para desarrollos en Power BI Temática Economía. Se realizó el testeo de usabilidad de la sección de la página web del DANE: enfoque diferencial e interseccional. También se realizó el testeo de acceso y usabilidad de los productos del registro multidimensional Wayuu publicados en la página web DANE. | BG69: Guías de buenas practicas y resultados de testeos: i) Guía de usabilidad, accesibilidad e identidad para desarrollos. ii) Pruebas de usabilidad - Tercer trimestre. iii)Revisión accesibilidad y usabilidad | BH69: No aplica | BI69: En gestión | BJ69: 16945866.45 | BK69: 12709399.84 | BP69: 3 | BQ69: 1 | BR69: Avance satisfactorio | BS69: Actualización y rediseño de 3 secciones conforme norma NTC 5854 ' - Información para la construcción de los planes de desarrollo 2024-2027: Sección dirigida a los alcaldes y gobernadores, con cuatro herramientas para la elaboración de los planes de desarrollo municipales y departamentales. Estos insumos sirven para que municipios y departamentos cuenten con información estadística de calidad que les permita trazar los objetivos de su administración en beneficio del bienestar de sus habitantes. https://www.dane.gov.co/index.php/acerca-del-dane/informacion-institucional/normatividad/leyes/ley-de-estadisticas-oficiales-de-colombia - Campesinado: Sección creada en cumplimiento de lo ordenado por la STP 2028/18, con el objetivo de visibilizar y atender las necesidades estadísticas de la población campesina en Colombia. La sección de campesinado busca sensibilizar a los usuarios sobre la diversidad y complejidad de la vida campesina. A través de gráficos, visualizaciones y análisis, se pretende ofrecer una representación más completa de las realidades rurales y promover un mayor entendimiento de los desafíos que enfrenta la población campesina en Colombia. https://www.dane.gov.co/index.php/estadisticas-por-tema/enfoque-diferencial-e-interseccional/enfoque-campesino - Enfoque diferencial e interseccional Afrocolombianidad: La sección NARP del Departamento Administrativo Nacional de Estadística (DANE) se enfoca en ofrecer estadísticas precisas sobre las condiciones sociales, económicas y de vida de la población negra, afrocolombiana, raizal y palenquera en Colombia. A través de un micrositio con enfoques diferenciales, el DANE publica indicadores sobre pobreza, mercado laboral y estadísticas vitales desde una perspectiva étnico-racial. En cumplimiento de la Ley 2335 de 2023 y la Sentencia T-276 de 2022 de la Corte Constitucional, el DANE ha mejorado la medición de la Encuesta Nacional Agropecuaria en el Chocó y ha realizado un estudio participativo sobre las dificultades en la identificación de esta población en censos anteriores, promoviendo así políticas públicas inclusivas y equitativas. https://www.dane.gov.co/index.php/estadisticas-por-tema/enfoque-diferencial-e-interseccional/autorreconocimiento-etnico/poblacion-negra-afrocolombiana-raizal-y-palenquera | BT69: - Estrategia Accesibilidad Web 2024 | BU69: No Aplica | BV69: Terminado | BW69: 17306417 | BX69: 17306417
